Workbook

Sheet Overblik
A1: =A914 -> Retten i Næstved | B1: =_xlfn.IFS($A$1=$A$900,B900,$A$1=$A$901,B901,$A$1=$A$902,B902,$A$1=$A$903,B903,$A$1=$A$904,B904,$A$1=$A$905,B905,$A$1=$A$906,B906,$A$1=$A$907,B907,$A$1=$A$908,B908,$A$1=$A$909,B909,$A$1=$A$910,B910,$A$1=$A$911,B911,$A$1=$A$912,B912,$A$1=$A$913,B913,$A$1=$A$914,B914,$A$1=$A$915,B915,$A$1=$A$916,B916,$A$1=$A$917,B917,$A$1=$A$918,B918,$A$1=$A$919,B919,$A$1=$A$920,B920,$A$1=$A$921,B921,$A$1=$A$922,B922,$A$1=$A$923,B923) -> 98.00625099 | C1: 96.9586504 | D1: 106.2176039 | E1: 105.0191861 | F1: 90.69343896 | G1: 92.16239419 | H1: 0.1959952203 | I1: 0.1842972517 | J1: 178 | K1: 185 | L1: 651 | M1: 617 | N1: 68 | O1: 57 | P1: 47 | Q1: 36 | R1: 11.4 | S1: 14.90413058 | T1: 6.6 | U1: 9.118967259 | V1: 63.34694 | W1: 62.87093 | X1: 16.17279 | Y1: 16.41913 | Z1: 36.56963 | AA1: 36.95231 | AB1: 35.95013405 | AC1: 35.71747119 | AD1: =AD899 -> 0 | AE1: =AE899 -> 0 | AF1: 0
A2: =A ->  | B2: =AD1 -> 0
B3: ÅRSNØGLETAL 2023
I4: Evt. sammenligning
B5: =A1 -> Retten i Næstved | I5: =B33 -> 0 | L5: Datatabeller
D6: 2022 | E6: 2023 | F6: Gnst. BR 2023 | G6: 5. bedste 2023 | I6: =$D$6 -> 2022 | J6: =$E$6 -> 2023 | L6: KLIK PÅ PILENE FOR AT HOPPE TIL DATA:
B7: Samlet produktivitet, retten (indeks) | D7: =B1 -> 98.00625099 | E7: =C1 -> 96.9586504 | F7: ='Produkt.SAML.'!$E$6 -> 98.53577594 | G7: =LARGE($C$900:$C$923,5) -> 104.7244182 | I7: =IF($B$5=$I$5,"",C33) -> 0 | J7: =IF($B$5=$I$5,"",D33) -> 0 | M7: Produktivitet, samlet for retten
B8: Samlet produktivitet, jurister (indeks) | D8: =D1 -> 106.2176039 | E8: =E1 -> 105.0191861 | F8: =Produkt.JUR!$E$6 -> 99.49804683 | G8: =LARGE($E$900:$E$923,5) -> 109.8767475 | I8: =IF($B$5=$I$5,"",E33) -> 0 | J8: =IF($B$5=$I$5,"",F33) -> 0 | M8: Produktivitet, jurister
B9: Samlet produktivitet, kontorfunktionærer (indeks) | D9: =F1 -> 90.69343896 | E9: =G1 -> 92.16239419 | F9: =Produkt.KON!$E$6 -> 99.63749161 | G9: =LARGE($G$900:$G$923,5) -> 105.7331567 | I9: =IF($B$5=$I$5,"",G33) -> 0 | J9: =IF($B$5=$I$5,"",H33) -> 0 | M9: Produktivitet, kontor
B10: Årsværksandel til generel ledelse og administration (pct.) | D10: =H1*100 -> 19.59952203 | E10: =I1*100 -> 18.42972517 | F10: ='Generel ledelse_Adm.'!$J$13*100 -> 17.81549162 | G10: - | I10: =IF($B$5=$I$5,"",I33*100) -> 0 | J10: =IF($B$5=$I$5,"",J33*100) -> 0 | M10: Årsværk, ledelse og administration
B11: Gnst. sagsbehandlingstid, domsmandssager (dage) | D11: =J1 -> 178 | E11: =K1 -> 185 | F11: =Sagstid.Straf!$G$6 -> 261 | G11: =Sagstid.Straf!$G$7 -> 196 | I11: =IF($B$5=$I$5,"",K33) -> 0 | J11: =IF($B$5=$I$5,"",L33) -> 0 | M11: Aktivitet ved retten
B12: Gnst. sagsbehandlingstid, hovedforhandlet alm. civil sag (dage) | D12: =L1 -> 651 | E12: =M1 -> 617 | F12: =Sagstid.Civil!$E$6 -> 683 | G12: =Sagstid.Civil!$E$7 -> 569 | I12: =IF($B$5=$I$5,"",M33) -> 0 | J12: =IF($B$5=$I$5,"",N33) -> 0 | M12: Målopfyldelse, straffesager
B13: Gnst. sagsbehandlingstid, almindelig fogedsag (dage) | D13: =N1 -> 68 | E13: =O1 -> 57 | F13: =Sagstid.Foged!$E$6 -> 82 | G13: =Sagstid.Foged!$E$7 -> 70 | I13: =IF($B$5=$I$5,"",O33) -> 0 | J13: =IF($B$5=$I$5,"",P33) -> 0 | M13: Målopfyldelse, civile sager
B14: Gnst. sagsbehandlingstid, boudlæg (dage) | D14: =P1 -> 47 | E14: =Q1 -> 36 | F14: =Sagstid.Skifte!$E$6 -> 47 | G14: =Sagstid.Skifte!$E$7 -> 30 | I14: =IF($B$5=$I$5,"",Q33) -> 0 | J14: =IF($B$5=$I$5,"",R33) -> 0 | M14: Målopfyldelse, fogedsager
B15: Gnst. sygefravær pr. årsværk (dage pr. år) | D15: =R1 -> 11.4 | E15: =S1 -> 14.90413058 | F15: ='HR-nøgletal_lønsum'!$E$6 -> 12.7 | G15: ='HR-nøgletal_lønsum'!$E$7 -> 9.759939992 | I15: =IF($B$5=$I$5,"",S33) -> 0 | J15: =IF($B$5=$I$5,"",T33) -> 0 | M15: Målopfyldelse, skiftesager
B16: Personaleomsætningsprocent (procent) | D16: =T1 -> 6.6 | E16: =U1 -> 9.118967259 | F16: ='HR-nøgletal_lønsum'!$G$6 -> 9.8 | G16: - | I16: =IF($B$5=$I$5,"",U33) -> 0 | J16: =IF($B$5=$I$5,"",V33) -> 0 | M16: Gnst. Sagsbehandlingstid, straffesager
B17: Samlet årsværksforbrug, retten (årsværk) | D17: =V1 -> 63.34694 | E17: =W1 -> 62.87093 | F17: =Årsværk_Pers.kat!$O$8/24 -> 59.70492625 | G17: - | I17: =IF($B$5=$I$5,"",W33) -> 0 | J17: =IF($B$5=$I$5,"",X33) -> 0 | M17: Gnst. Sagsbehandlingstid, civile sager
B18: Samlet årsværksforbrug, jurister (årsværk) | D18: =X1 -> 16.17279 | E18: =Y1 -> 16.41913 | F18: =Årsværk_Pers.kat!$J$8/24 -> 17.57764333 | G18: - | I18: =IF($B$5=$I$5,"",Y33) -> 0 | J18: =IF($B$5=$I$5,"",Z33) -> 0 | M18: Gnst. Sagsbehandlingstid, fogedsager
B19: Samlet årsværksforbrug, kontorfunktionærer (årsværk) | D19: =Z1 -> 36.56963 | E19: =AA1 -> 36.95231 | F19: =Årsværk_Pers.kat!$K$8/24 -> 33.45835042 | G19: - | I19: =IF($B$5=$I$5,"",AA33) -> 0 | J19: =IF($B$5=$I$5,"",AB33) -> 0 | M19: Gnst. Sagsbehandlingstid, skiftesager
B20: Samlet lønsumsforbrug (mio. kr.) | D20: =AB1 -> 35.95013405 | E20: =AC1 -> 35.71747119 | F20: ='HR-nøgletal_lønsum'!$I$6 -> 36.99203646 | G20: - | I20: =IF($B$5=$I$5,"",AC33) -> 0 | J20: =IF($B$5=$I$5,"",AD33) -> 0 | M20: HR-nøgletal
B21: Noter: | M21: Årsværksforbrug, personalekategorier
B22: 1) Ved beregningen af indeks for produktivitet samlet for retten, for jurister og kontor er indeks 100 lig gennemsnittet ved byretterne i 2019. | M22: Årsværksforbrug, sagsområder
B23: 2) Årsværksandel til generel ledelse og administration er samlet for retten og inkluderer alle personalegrupper.
B24: 3) Den gennemsnitlige sagsbehandlingstid for en hovedforhandlet almindelig civil sag inkluderer sagstypen almindelige sager. Boligretssager og småsager indgår ikke.
B25: 4) Ansatte under socialt kapitel indgår ikke i beregningen af det gennemsnitlige sygefravær pr. medarbejder (årsværk).
B26: 5) Lønsumsforbruget inkluderer egentlig løn, over- og merarbejde, stævningsmænd, refusioner og pensionsbidrag.
B27: 6) Der er ikke angivet data for 5. bedste byret for årsværksandel til generel ledelse og administration, personaleomsætning, årsværksforbrug og lønsumsforbrug, idet dette ikke er et meningsfuldt benchmark for disse kategorier.
B30: KLIK FOR AT AKTIVERE SAMMENLIGNING:
B32: =A924 -> 0 | C32: =B923 -> 0 | D32: 0 | E32: 0 | F32: 0 | G32: 0 | H32: 0 | I32: 0 | J32: 0 | K32: 0 | L32: 0 | M32: 0 | N32: 0 | O32: 0 | P32: 0 | Q32: 0 | R32: 0 | S32: =R923 -> 0 | T32: 0 | U32: 0 | V32: 0 | W32: 0 | X32: 0 | Y32: 0 | Z32: 0 | AA32: 0 | AB32: 0 | AC32: 0
B33: =A932 -> 0 | C33: =B932 -> 0 | D33: 0 | E33: 0 | F33: 0 | G33: 0 | H33: 0 | I33: 0 | J33: 0 | K33: 0 | L33: 0 | M33: 0 | N33: 0 | O33: 0 | P33: 0 | Q33: 0 | R33: 0 | S33: 0 | T33: 0 | U33: 0 | V33: 0 | W33: 0 | X33: 0 | Y33: 0 | Z33: 0 | AA33: 0 | AB33: 0 | AC33: 0 | AD33: 0 | AE33: 0 | AF33: 0 | AG33: 0 | AH33: 0 | AI33: 0
AD35: =AC934 -> 0 | AE35: =AD933 -> 0 | AF35: 0 | AG35: 0 | AH35: 0 | AI35: 0
B36: =A934 -> 0 | C36: 0 | D36: 0 | E36: 0 | F36: 0 | G36: 0 | H36: 0 | I36: 0 | J36: 0 | K36: 0 | L36: 0 | M36: 0 | N36: 0 | O36: 0 | P36: 0 | Q36: 0 | R36: 0 | S36: 0 | T36: 0 | U36: 0 | V36: 0 | W36: 0 | X36: 0 | Y36: 0 | Z36: 0 | AA36: 0 | AB36: 0 | AC36: 0
B898: Samlet produktivitet, retten | D898: Samlet produktivitet, jurister | F898: Samlet produktivitet, kontor | H898: ÅRVK ledelse og adm. (andel) | J898: Sagstider domsmandssager | L898: Sagstider hfh. alm. Civil | N898: Sagstid alm. fogedsag | P898: Sagstider boudlæg | R898: Sygefravær | T898: Personaleomsætning | V898: Årsværk retten | X898: Årsværk jurist | Z898: Årsværk kontor | AB898: Samlet lønsum
A899: Ret | B899: =$D$6 -> 2022 | C899: =$E$6 -> 2023 | D899: =$D$6 -> 2022 | E899: =$E$6 -> 2023 | F899: =$D$6 -> 2022 | G899: =$E$6 -> 2023 | H899: =$D$6 -> 2022 | I899: =$E$6 -> 2023 | J899: =$D$6 -> 2022 | K899: =$E$6 -> 2023 | L899: =$D$6 -> 2022 | M899: =$E$6 -> 2023 | N899: =$D$6 -> 2022 | O899: =$E$6 -> 2023 | P899: =$D$6 -> 2022 | Q899: =$E$6 -> 2023 | R899: =$D$6 -> 2022 | S899: =$E$6 -> 2023 | T899: =$D$6 -> 2022 | U899: =$E$6 -> 2023 | V899: =$D$6 -> 2022 | W899: =$E$6 -> 2023 | X899: =$D$6 -> 2022 | Y899: =$E$6 -> 2023 | Z899: =$D$6 -> 2022 | AA899: =$E$6 -> 2023 | AB899: =$D$6 -> 2022 | AC899: =$E$6 -> 2023
A900: Retten i Hjørring | B900: ='Produkt.SAML.'!D9 -> 92.53914513 | C900: ='Produkt.SAML.'!E9 -> 102.769414 | D900: =Produkt.JUR!D9 -> 93.75064523 | E900: =Produkt.JUR!E9 -> 106.8593636 | F900: =Produkt.KON!D9 -> 90.86513468 | G900: =Produkt.KON!E9 -> 102.0394123 | H900: ='Generel ledelse_Adm.'!I21 -> 0.1454211175 | I900: ='Generel ledelse_Adm.'!J22 -> 0.1421032378 | J900: =Sagstid.Straf!F9 -> 182 | K900: =Sagstid.Straf!G9 -> 226 | L900: =Sagstid.Civil!D9 -> 554 | M900: =Sagstid.Civil!E9 -> 630 | N900: =Sagstid.Foged!D9 -> 84 | O900: =Sagstid.Foged!E9 -> 88 | P900: =Sagstid.Skifte!D9 -> 60 | Q900: =Sagstid.Skifte!E9 -> 60 | R900: ='HR-nøgletal_lønsum'!D9 -> - | S900: ='HR-nøgletal_lønsum'!E9 -> - | T900: ='HR-nøgletal_lønsum'!F9 -> 10.6 | U900: ='HR-nøgletal_lønsum'!G9 -> 14.421774 | V900: =Årsværk_Pers.kat!I10 -> 44.07507 | W900: =Årsværk_Pers.kat!O10 -> 41.515 | X900: =Årsværk_Pers.kat!D10 -> 12.60653 | Y900: =Årsværk_Pers.kat!J10 -> 10.83359 | Z900: =Årsværk_Pers.kat!E10 -> 26.51046 | AA900: =Årsværk_Pers.kat!K10 -> 24.83007 | AB900: ='HR-nøgletal_lønsum'!H9 -> 26.02203098 | AC900: ='HR-nøgletal_lønsum'!I9 -> 24.89226561
A901: Retten i Aalborg | B901: ='Produkt.SAML.'!D10 -> 97.49098313 | C901: ='Produkt.SAML.'!E10 -> 105.9394915 | D901: =Produkt.JUR!D10 -> 98.66292971 | E901: =Produkt.JUR!E10 -> 109.8767475 | F901: =Produkt.KON!D10 -> 92.65104342 | G901: =Produkt.KON!E10 -> 103.2234557 | H901: ='Generel ledelse_Adm.'!I28 -> 0.09655449819 | I901: ='Generel ledelse_Adm.'!J29 -> 0.0860015112 | J901: =Sagstid.Straf!F10 -> 206 | K901: =Sagstid.Straf!G10 -> 243 | L901: =Sagstid.Civil!D10 -> 669 | M901: =Sagstid.Civil!E10 -> 690 | N901: =Sagstid.Foged!D10 -> 77 | O901: =Sagstid.Foged!E10 -> 83 | P901: =Sagstid.Skifte!D10 -> 67 | Q901: =Sagstid.Skifte!E10 -> 57 | R901: ='HR-nøgletal_lønsum'!D10 -> 8.6 | S901: ='HR-nøgletal_lønsum'!E10 -> 14.02714123 | T901: ='HR-nøgletal_lønsum'!F10 -> 5.8 | U901: ='HR-nøgletal_lønsum'!G10 -> 14.12216745 | V901: =Årsværk_Pers.kat!I11 -> 73.1207 | W901: =Årsværk_Pers.kat!O11 -> 72.78109 | X901: =Årsværk_Pers.kat!D11 -> 21.71415 | Y901: =Årsværk_Pers.kat!J11 -> 20.23366 | Z901: =Årsværk_Pers.kat!E11 -> 42.44295 | AA901: =Årsværk_Pers.kat!K11 -> 40.85452 | AB901: ='HR-nøgletal_lønsum'!H10 -> 43.59657191 | AC901: ='HR-nøgletal_lønsum'!I10 -> 43.66916866
A902: Retten i Randers | B902: ='Produkt.SAML.'!D11 -> 93.33676804 | C902: ='Produkt.SAML.'!E11 -> 100.3296449 | D902: =Produkt.JUR!D11 -> 100.1101562 | E902: =Produkt.JUR!E11 -> 106.1064719 | F902: =Produkt.KON!D11 -> 90.29526298 | G902: =Produkt.KON!E11 -> 99.45662339 | H902: ='Generel ledelse_Adm.'!I35 -> 0.1679824169 | I902: ='Generel ledelse_Adm.'!J36 -> 0.1496675086 | J902: =Sagstid.Straf!F11 -> 222 | K902: =Sagstid.Straf!G11 -> 240 | L902: =Sagstid.Civil!D11 -> 704 | M902: =Sagstid.Civil!E11 -> 779 | N902: =Sagstid.Foged!D11 -> 89 | O902: =Sagstid.Foged!E11 -> 89 | P902: =Sagstid.Skifte!D11 -> 35 | Q902: =Sagstid.Skifte!E11 -> 29 | R902: ='HR-nøgletal_lønsum'!D11 -> 14.6 | S902: ='HR-nøgletal_lønsum'!E11 -> 11.03265335 | T902: ='HR-nøgletal_lønsum'!F11 -> 2.9 | U902: ='HR-nøgletal_lønsum'!G11 -> 5.890981541 | V902: =Årsværk_Pers.kat!I12 -> 50.13222 | W902: =Årsværk_Pers.kat!O12 -> 48.34099 | X902: =Årsværk_Pers.kat!D12 -> 12.86885 | Y902: =Årsværk_Pers.kat!J12 -> 12.44181 | Z902: =Årsværk_Pers.kat!E12 -> 29.21068 | AA902: =Årsværk_Pers.kat!K12 -> 28.00232 | AB902: ='HR-nøgletal_lønsum'!H11 -> 30.06977239 | AC902: ='HR-nøgletal_lønsum'!I11 -> 29.36774854
A903: Retten i Aarhus | B903: ='Produkt.SAML.'!D12 -> 96.44860828 | C903: ='Produkt.SAML.'!E12 -> 92.915966 | D903: =Produkt.JUR!D12 -> 96.21304634 | E903: =Produkt.JUR!E12 -> 93.23914245 | F903: =Produkt.KON!D12 -> 101.8695996 | G903: =Produkt.KON!E12 -> 96.1977882 | H903: ='Generel ledelse_Adm.'!I42 -> 0.1458479646 | I903: ='Generel ledelse_Adm.'!J43 -> 0.1213418461 | J903: =Sagstid.Straf!F12 -> 437 | K903: =Sagstid.Straf!G12 -> 520 | L903: =Sagstid.Civil!D12 -> 913 | M903: =Sagstid.Civil!E12 -> 957 | N903: =Sagstid.Foged!D12 -> 93 | O903: =Sagstid.Foged!E12 -> 83 | P903: =Sagstid.Skifte!D12 -> 61 | Q903: =Sagstid.Skifte!E12 -> 62 | R903: ='HR-nøgletal_lønsum'!D12 -> 15.7 | S903: ='HR-nøgletal_lønsum'!E12 -> 13.79527616 | T903: ='HR-nøgletal_lønsum'!F12 -> 10.7 | U903: ='HR-nøgletal_lønsum'!G12 -> 12.74137108 | V903: =Årsværk_Pers.kat!I13 -> 82.22109 | W903: =Årsværk_Pers.kat!O13 -> 87.5102 | X903: =Årsværk_Pers.kat!D13 -> 26.74794 | Y903: =Årsværk_Pers.kat!J13 -> 28.08066 | Z903: =Årsværk_Pers.kat!E13 -> 42.59814 | AA903: =Årsværk_Pers.kat!K13 -> 46.69727 | AB903: ='HR-nøgletal_lønsum'!H12 -> 54.26175055 | AC903: ='HR-nøgletal_lønsum'!I12 -> 56.73738739
A904: Retten i Viborg | B904: ='Produkt.SAML.'!D13 -> 90.33676431 | C904: ='Produkt.SAML.'!E13 -> 100.1076415 | D904: =Produkt.JUR!D13 -> 98.76460671 | E904: =Produkt.JUR!E13 -> 105.1988948 | F904: =Produkt.KON!D13 -> 82.2338775 | G904: =Produkt.KON!E13 -> 95.98567086 | H904: ='Generel ledelse_Adm.'!I49 -> 0.1480793437 | I904: ='Generel ledelse_Adm.'!J450 -> 0 | J904: =Sagstid.Straf!F13 -> 307 | K904: =Sagstid.Straf!G13 -> 261 | L904: =Sagstid.Civil!D13 -> 716 | M904: =Sagstid.Civil!E13 -> 720 | N904: =Sagstid.Foged!D13 -> 103 | O904: =Sagstid.Foged!E13 -> 85 | P904: =Sagstid.Skifte!D13 -> 44 | Q904: =Sagstid.Skifte!E13 -> 35 | R904: ='HR-nøgletal_lønsum'!D13 -> 8.9 | S904: ='HR-nøgletal_lønsum'!E13 -> 10.28979121 | T904: ='HR-nøgletal_lønsum'!F13 -> 12.1 | U904: ='HR-nøgletal_lønsum'!G13 -> 11.92371995 | V904: =Årsværk_Pers.kat!I14 -> 59.9153 | W904: =Årsværk_Pers.kat!O14 -> 52.94203 | X904: =Årsværk_Pers.kat!D14 -> 15.00877 | Y904: =Årsværk_Pers.kat!J14 -> 13.7424 | Z904: =Årsværk_Pers.kat!E14 -> 35.31459 | AA904: =Årsværk_Pers.kat!K14 -> 29.54672 | AB904: ='HR-nøgletal_lønsum'!H13 -> 33.41836038 | AC904: ='HR-nøgletal_lønsum'!I13 -> 29.45832055
A905: Retten i Holstebro | B905: ='Produkt.SAML.'!D14 -> 110.3319721 | C905: ='Produkt.SAML.'!E14 -> 107.4674136 | D905: =Produkt.JUR!D14 -> 114.5180103 | E905: =Produkt.JUR!E14 -> 115.0191905 | F905: =Produkt.KON!D14 -> 106.2404198 | G905: =Produkt.KON!E14 -> 104.1829005 | H905: ='Generel ledelse_Adm.'!I56 -> 0.1451286552 | I905: ='Generel ledelse_Adm.'!J57 -> 0.1262961227 | J905: =Sagstid.Straf!F14 -> 151 | K905: =Sagstid.Straf!G14 -> 147 | L905: =Sagstid.Civil!D14 -> 529 | M905: =Sagstid.Civil!E14 -> 483 | N905: =Sagstid.Foged!D14 -> 50 | O905: =Sagstid.Foged!E14 -> 64 | P905: =Sagstid.Skifte!D14 -> 53 | Q905: =Sagstid.Skifte!E14 -> 46 | R905: ='HR-nøgletal_lønsum'!D14 -> 11.9 | S905: ='HR-nøgletal_lønsum'!E14 -> 10.6675049 | T905: ='HR-nøgletal_lønsum'!F14 -> 6.7 | U905: ='HR-nøgletal_lønsum'!G14 -> 20.01930854 | V905: =Årsværk_Pers.kat!I15 -> 34.79058 | W905: =Årsværk_Pers.kat!O15 -> 35.71349 | X905: =Årsværk_Pers.kat!D15 -> 9.17888 | Y905: =Årsværk_Pers.kat!J15 -> 8.81955 | Z905: =Årsværk_Pers.kat!E15 -> 19.39348 | AA905: =Årsværk_Pers.kat!K15 -> 19.90585 | AB905: ='HR-nøgletal_lønsum'!H14 -> 21.76236345 | AC905: ='HR-nøgletal_lønsum'!I14 -> 21.78017538
A906: Retten i Herning | B906: ='Produkt.SAML.'!D15 -> 96.62906985 | C906: ='Produkt.SAML.'!E15 -> 96.1424566 | D906: =Produkt.JUR!D15 -> 96.62136936 | E906: =Produkt.JUR!E15 -> 95.2739594 | F906: =Produkt.KON!D15 -> 99.49918968 | G906: =Produkt.KON!E15 -> 103.7768154 | H906: ='Generel ledelse_Adm.'!I63 -> 0.1018433052 | I906: ='Generel ledelse_Adm.'!J64 -> 0.1146336208 | J906: =Sagstid.Straf!F15 -> 176 | K906: =Sagstid.Straf!G15 -> 201 | L906: =Sagstid.Civil!D15 -> 695 | M906: =Sagstid.Civil!E15 -> 608 | N906: =Sagstid.Foged!D15 -> 62 | O906: =Sagstid.Foged!E15 -> 85 | P906: =Sagstid.Skifte!D15 -> 53 | Q906: =Sagstid.Skifte!E15 -> 47 | R906: ='HR-nøgletal_lønsum'!D15 -> 9.1 | S906: ='HR-nøgletal_lønsum'!E15 -> 9.759939992 | T906: ='HR-nøgletal_lønsum'!F15 -> 8.9 | U906: ='HR-nøgletal_lønsum'!G15 -> 4.13142986 | V906: =Årsværk_Pers.kat!I16 -> 42.15066 | W906: =Årsværk_Pers.kat!O16 -> 43.35975 | X906: =Årsværk_Pers.kat!D16 -> 12.89255 | Y906: =Årsværk_Pers.kat!J16 -> 12.98433 | Z906: =Årsværk_Pers.kat!E16 -> 22.91361 | AA906: =Årsværk_Pers.kat!K16 -> 22.91177 | AB906: ='HR-nøgletal_lønsum'!H15 -> 26.06030426 | AC906: ='HR-nøgletal_lønsum'!I15 -> 26.42756394
A907: Retten i Horsens | B907: ='Produkt.SAML.'!D16 -> 95.48061841 | C907: ='Produkt.SAML.'!E16 -> 89.06224281 | D907: =Produkt.JUR!D16 -> 99.58494792 | E907: =Produkt.JUR!E16 -> 86.64303627 | F907: =Produkt.KON!D16 -> 101.1448005 | G907: =Produkt.KON!E16 -> 103.7968568 | H907: ='Generel ledelse_Adm.'!I70 -> 0.1264411931 | I907: ='Generel ledelse_Adm.'!J71 -> 0.1170031536 | J907: =Sagstid.Straf!F16 -> 412 | K907: =Sagstid.Straf!G16 -> 412 | L907: =Sagstid.Civil!D16 -> 782 | M907: =Sagstid.Civil!E16 -> 892 | N907: =Sagstid.Foged!D16 -> 62 | O907: =Sagstid.Foged!E16 -> 77 | P907: =Sagstid.Skifte!D16 -> 63 | Q907: =Sagstid.Skifte!E16 -> 81 | R907: ='HR-nøgletal_lønsum'!D16 -> 11.4 | S907: ='HR-nøgletal_lønsum'!E16 -> 21.14031149 | T907: ='HR-nøgletal_lønsum'!F16 -> 9 | U907: ='HR-nøgletal_lønsum'!G16 -> 7.945290335 | V907: =Årsværk_Pers.kat!I17 -> 42.56723 | W907: =Årsværk_Pers.kat!O17 -> 44.07856 | X907: =Årsværk_Pers.kat!D17 -> 11.68295 | Y907: =Årsværk_Pers.kat!J17 -> 13.17467 | Z907: =Årsværk_Pers.kat!E17 -> 21.48335 | AA907: =Årsværk_Pers.kat!K17 -> 21.57101 | AB907: ='HR-nøgletal_lønsum'!H16 -> 24.94976584 | AC907: ='HR-nøgletal_lønsum'!I16 -> 26.6746039
A908: Retten i Kolding | B908: ='Produkt.SAML.'!D17 -> 106.4462631 | C908: ='Produkt.SAML.'!E17 -> 123.4308584 | D908: =Produkt.JUR!D17 -> 96.44699446 | E908: =Produkt.JUR!E17 -> 110.5366094 | F908: =Produkt.KON!D17 -> 111.6087861 | G908: =Produkt.KON!E17 -> 133.9678127 | H908: ='Generel ledelse_Adm.'!I77 -> 0.1197650914 | I908: ='Generel ledelse_Adm.'!J78 -> 0.1067159333 | J908: =Sagstid.Straf!F17 -> 245 | K908: =Sagstid.Straf!G17 -> 278 | L908: =Sagstid.Civil!D17 -> 694 | M908: =Sagstid.Civil!E17 -> 723 | N908: =Sagstid.Foged!D17 -> 69 | O908: =Sagstid.Foged!E17 -> 71 | P908: =Sagstid.Skifte!D17 -> 32 | Q908: =Sagstid.Skifte!E17 -> 28 | R908: ='HR-nøgletal_lønsum'!D17 -> 9.8 | S908: ='HR-nøgletal_lønsum'!E17 -> 12.61795006 | T908: ='HR-nøgletal_lønsum'!F17 -> 9.4 | U908: ='HR-nøgletal_lønsum'!G17 -> 7.663762193 | V908: =Årsværk_Pers.kat!I18 -> 69.48578 | W908: =Årsværk_Pers.kat!O18 -> 69.56847 | X908: =Årsværk_Pers.kat!D18 -> 23.30973 | Y908: =Årsværk_Pers.kat!J18 -> 22.88369 | Z908: =Årsværk_Pers.kat!E18 -> 38.01906 | AA908: =Årsværk_Pers.kat!K18 -> 36.3749 | AB908: ='HR-nøgletal_lønsum'!H17 -> 43.66723954 | AC908: ='HR-nøgletal_lønsum'!I17 -> 44.33803522
A909: Retten i Esbjerg | B909: ='Produkt.SAML.'!D18 -> 88.82128629 | C909: ='Produkt.SAML.'!E18 -> 94.84956648 | D909: =Produkt.JUR!D18 -> 88.57878771 | E909: =Produkt.JUR!E18 -> 94.32575085 | F909: =Produkt.KON!D18 -> 97.06509021 | G909: =Produkt.KON!E18 -> 102.7452615 | H909: ='Generel ledelse_Adm.'!I84 -> 0.1711464607 | I909: ='Generel ledelse_Adm.'!J85 -> 0.1672389109 | J909: =Sagstid.Straf!F18 -> 367 | K909: =Sagstid.Straf!G18 -> 383 | L909: =Sagstid.Civil!D18 -> 832 | M909: =Sagstid.Civil!E18 -> 799 | N909: =Sagstid.Foged!D18 -> 62 | O909: =Sagstid.Foged!E18 -> 76 | P909: =Sagstid.Skifte!D18 -> 28 | Q909: =Sagstid.Skifte!E18 -> 28 | R909: ='HR-nøgletal_lønsum'!D18 -> 12.9 | S909: ='HR-nøgletal_lønsum'!E18 -> 13.07479122 | T909: ='HR-nøgletal_lønsum'!F18 -> 11.7 | U909: ='HR-nøgletal_lønsum'!G18 -> 9.321208147 | V909: =Årsværk_Pers.kat!I19 -> 49.54617 | W909: =Årsværk_Pers.kat!O19 -> 50.31777 | X909: =Årsværk_Pers.kat!D19 -> 15.21424 | Y909: =Årsværk_Pers.kat!J19 -> 15.7032 | Z909: =Årsværk_Pers.kat!E19 -> 26.35467 | AA909: =Årsværk_Pers.kat!K19 -> 27.69192 | AB909: ='HR-nøgletal_lønsum'!H18 -> 28.91669474 | AC909: ='HR-nøgletal_lønsum'!I18 -> 30.43392547
A910: Retten i Sønderborg | B910: ='Produkt.SAML.'!D19 -> 97.73890597 | C910: ='Produkt.SAML.'!E19 -> 99.21812083 | D910: =Produkt.JUR!D19 -> 96.79811803 | E910: =Produkt.JUR!E19 -> 96.36212416 | F910: =Produkt.KON!D19 -> 96.69333076 | G910: =Produkt.KON!E19 -> 100.729707 | H910: ='Generel ledelse_Adm.'!I91 -> 0.1596957879 | I910: ='Generel ledelse_Adm.'!J92 -> 0.1353297848 | J910: =Sagstid.Straf!F19 -> 260 | K910: =Sagstid.Straf!G19 -> 345 | L910: =Sagstid.Civil!D19 -> 594 | M910: =Sagstid.Civil!E19 -> 569 | N910: =Sagstid.Foged!D19 -> 144 | O910: =Sagstid.Foged!E19 -> 94 | P910: =Sagstid.Skifte!D19 -> 69 | Q910: =Sagstid.Skifte!E19 -> 66 | R910: ='HR-nøgletal_lønsum'!D19 -> 9 | S910: ='HR-nøgletal_lønsum'!E19 -> 6.852596241 | T910: ='HR-nøgletal_lønsum'!F19 -> 14.4 | U910: ='HR-nøgletal_lønsum'!G19 -> 6.767370861 | V910: =Årsværk_Pers.kat!I20 -> 56.15036 | W910: =Årsværk_Pers.kat!O20 -> 56.41496 | X910: =Årsværk_Pers.kat!D20 -> 17.68612 | Y910: =Årsværk_Pers.kat!J20 -> 17.38638 | Z910: =Årsværk_Pers.kat!E20 -> 32.95665 | AA910: =Årsværk_Pers.kat!K20 -> 32.95484 | AB910: ='HR-nøgletal_lønsum'!H19 -> 37.07780481 | AC910: ='HR-nøgletal_lønsum'!I19 -> 37.6672895
A911: Retten i Odense | B911: ='Produkt.SAML.'!D20 -> 99.36795789 | C911: ='Produkt.SAML.'!E20 -> 104.3423657 | D911: =Produkt.JUR!D20 -> 101.4332418 | E911: =Produkt.JUR!E20 -> 104.3430191 | F911: =Produkt.KON!D20 -> 96.61834828 | G911: =Produkt.KON!E20 -> 105.7331567 | H911: ='Generel ledelse_Adm.'!I98 -> 0.09999673912 | I911: ='Generel ledelse_Adm.'!J99 -> 0.1259870177 | J911: =Sagstid.Straf!F20 -> 174 | K911: =Sagstid.Straf!G20 -> 145 | L911: =Sagstid.Civil!D20 -> 656 | M911: =Sagstid.Civil!E20 -> 601 | N911: =Sagstid.Foged!D20 -> 106 | O911: =Sagstid.Foged!E20 -> 77 | P911: =Sagstid.Skifte!D20 -> 57 | Q911: =Sagstid.Skifte!E20 -> 48 | R911: ='HR-nøgletal_lønsum'!D20 -> 11 | S911: ='HR-nøgletal_lønsum'!E20 -> 9.666696896 | T911: ='HR-nøgletal_lønsum'!F20 -> 12.5 | U911: ='HR-nøgletal_lønsum'!G20 -> 11.85327752 | V911: =Årsværk_Pers.kat!I21 -> 76.82366 | W911: =Årsværk_Pers.kat!O21 -> 71.21547 | X911: =Årsværk_Pers.kat!D21 -> 23.22764 | Y911: =Årsværk_Pers.kat!J21 -> 21.44722 | Z911: =Årsværk_Pers.kat!E21 -> 45.34414 | AA911: =Årsværk_Pers.kat!K21 -> 40.5458 | AB911: ='HR-nøgletal_lønsum'!H20 -> 46.62372729 | AC911: ='HR-nøgletal_lønsum'!I20 -> 43.29756777
A912: Retten i Svendborg | B912: ='Produkt.SAML.'!D21 -> 88.14970124 | C912: ='Produkt.SAML.'!E21 -> 96.24869297 | D912: =Produkt.JUR!D21 -> 88.56899589 | E912: =Produkt.JUR!E21 -> 96.30074526 | F912: =Produkt.KON!D21 -> 99.42128383 | G912: =Produkt.KON!E21 -> 106.0897306 | H912: ='Generel ledelse_Adm.'!I105 -> 0.2015229287 | I912: ='Generel ledelse_Adm.'!J106 -> 0.1682436736 | J912: =Sagstid.Straf!F21 -> 190 | K912: =Sagstid.Straf!G21 -> 245 | L912: =Sagstid.Civil!D21 -> 606 | M912: =Sagstid.Civil!E21 -> 770 | N912: =Sagstid.Foged!D21 -> 102 | O912: =Sagstid.Foged!E21 -> 100 | P912: =Sagstid.Skifte!D21 -> 43 | Q912: =Sagstid.Skifte!E21 -> 44 | R912: ='HR-nøgletal_lønsum'!D21 -> 11.7 | S912: ='HR-nøgletal_lønsum'!E21 -> 8.046373611 | T912: ='HR-nøgletal_lønsum'!F21 -> 6.7 | U912: ='HR-nøgletal_lønsum'!G21 -> 10.55990746 | V912: =Årsværk_Pers.kat!I22 -> 35.99142 | W912: =Årsværk_Pers.kat!O22 -> 34.55368 | X912: =Årsværk_Pers.kat!D22 -> 10.08241 | Y912: =Årsværk_Pers.kat!J22 -> 9.97281 | Z912: =Årsværk_Pers.kat!E22 -> 19.53017 | AA912: =Årsværk_Pers.kat!K22 -> 19.04185 | AB912: ='HR-nøgletal_lønsum'!H21 -> 21.84335835 | AC912: ='HR-nøgletal_lønsum'!I21 -> 20.85964125
A913: Retten i Nykøbing F. | B913: ='Produkt.SAML.'!D22 -> 100.1645724 | C913: ='Produkt.SAML.'!E22 -> 96.96159965 | D913: =Produkt.JUR!D22 -> 101.5967439 | E913: =Produkt.JUR!E22 -> 97.68200141 | F913: =Produkt.KON!D22 -> 98.50902042 | G913: =Produkt.KON!E22 -> 95.33839663 | H913: ='Generel ledelse_Adm.'!I112 -> 0.1715250806 | I913: ='Generel ledelse_Adm.'!J113 -> 0.1578605703 | J913: =Sagstid.Straf!F22 -> 106 | K913: =Sagstid.Straf!G22 -> 117 | L913: =Sagstid.Civil!D22 -> 501 | M913: =Sagstid.Civil!E22 -> 446 | N913: =Sagstid.Foged!D22 -> 53 | O913: =Sagstid.Foged!E22 -> 74 | P913: =Sagstid.Skifte!D22 -> 33 | Q913: =Sagstid.Skifte!E22 -> 31 | R913: ='HR-nøgletal_lønsum'!D22 -> 9 | S913: ='HR-nøgletal_lønsum'!E22 -> 9.25980226 | T913: ='HR-nøgletal_lønsum'!F22 -> 5.8 | U913: ='HR-nøgletal_lønsum'!G22 -> 9.814012007 | V913: =Årsværk_Pers.kat!I23 -> 47.02267 | W913: =Årsværk_Pers.kat!O23 -> 48.16362 | X913: =Årsværk_Pers.kat!D23 -> 13.79457 | Y913: =Årsværk_Pers.kat!J23 -> 14.14238 | Z913: =Årsværk_Pers.kat!E23 -> 27.95344 | AA913: =Årsværk_Pers.kat!K23 -> 28.7564 | AB913: ='HR-nøgletal_lønsum'!H22 -> 28.31278376 | AC913: ='HR-nøgletal_lønsum'!I22 -> 28.3297832
A914: Retten i Næstved | B914: ='Produkt.SAML.'!D23 -> 98.00625099 | C914: ='Produkt.SAML.'!E23 -> 96.9586504 | D914: =Produkt.JUR!D23 -> 106.2176039 | E914: =Produkt.JUR!E23 -> 105.0191861 | F914: =Produkt.KON!D23 -> 90.69343896 | G914: =Produkt.KON!E23 -> 92.16239419 | H914: ='Generel ledelse_Adm.'!I119 -> 0.1959952203 | I914: ='Generel ledelse_Adm.'!J120 -> 0.1842972517 | J914: =Sagstid.Straf!F23 -> 178 | K914: =Sagstid.Straf!G23 -> 185 | L914: =Sagstid.Civil!D23 -> 651 | M914: =Sagstid.Civil!E23 -> 617 | N914: =Sagstid.Foged!D23 -> 68 | O914: =Sagstid.Foged!E23 -> 57 | P914: =Sagstid.Skifte!D23 -> 47 | Q914: =Sagstid.Skifte!E23 -> 36 | R914: ='HR-nøgletal_lønsum'!D23 -> 11.4 | S914: ='HR-nøgletal_lønsum'!E23 -> 14.90413058 | T914: ='HR-nøgletal_lønsum'!F23 -> 6.6 | U914: ='HR-nøgletal_lønsum'!G23 -> 9.118967259 | V914: =Årsværk_Pers.kat!I24 -> 63.34694 | W914: =Årsværk_Pers.kat!O24 -> 62.87093 | X914: =Årsværk_Pers.kat!D24 -> 16.17279 | Y914: =Årsværk_Pers.kat!J24 -> 16.41913 | Z914: =Årsværk_Pers.kat!E24 -> 36.56963 | AA914: =Årsværk_Pers.kat!K24 -> 36.95231 | AB914: ='HR-nøgletal_lønsum'!H23 -> 35.95013405 | AC914: ='HR-nøgletal_lønsum'!I23 -> 35.71747119
A915: Retten i Holbæk | B915: ='Produkt.SAML.'!D24 -> 103.1396924 | C915: ='Produkt.SAML.'!E24 -> 95.12376852 | D915: =Produkt.JUR!D24 -> 106.0466548 | E915: =Produkt.JUR!E24 -> 97.13930252 | F915: =Produkt.KON!D24 -> 101.09145 | G915: =Produkt.KON!E24 -> 93.10276512 | H915: ='Generel ledelse_Adm.'!I126 -> 0.1570829352 | I915: ='Generel ledelse_Adm.'!J127 -> 0.1528853956 | J915: =Sagstid.Straf!F24 -> 286 | K915: =Sagstid.Straf!G24 -> 284 | L915: =Sagstid.Civil!D24 -> 714 | M915: =Sagstid.Civil!E24 -> 754 | N915: =Sagstid.Foged!D24 -> 71 | O915: =Sagstid.Foged!E24 -> 99 | P915: =Sagstid.Skifte!D24 -> 31 | Q915: =Sagstid.Skifte!E24 -> 49 | R915: ='HR-nøgletal_lønsum'!D24 -> 17.2 | S915: ='HR-nøgletal_lønsum'!E24 -> 11.18501884 | T915: ='HR-nøgletal_lønsum'!F24 -> 6.6 | U915: ='HR-nøgletal_lønsum'!G24 -> 10.09282915 | V915: =Årsværk_Pers.kat!I25 -> 41.53889 | W915: =Årsværk_Pers.kat!O25 -> 43.52234 | X915: =Årsværk_Pers.kat!D25 -> 12.42627 | Y915: =Årsværk_Pers.kat!J25 -> 12.75547 | Z915: =Årsværk_Pers.kat!E25 -> 22.91047 | AA915: =Årsværk_Pers.kat!K25 -> 24.66951 | AB915: ='HR-nøgletal_lønsum'!H24 -> 25.98719748 | AC915: ='HR-nøgletal_lønsum'!I24 -> 26.31485332
A916: Retten i Roskilde | B916: ='Produkt.SAML.'!D25 -> 108.8354598 | C916: ='Produkt.SAML.'!E25 -> 111.6982534 | D916: =Produkt.JUR!D25 -> 113.2847348 | E916: =Produkt.JUR!E25 -> 111.5591294 | F916: =Produkt.KON!D25 -> 96.85140501 | G916: =Produkt.KON!E25 -> 103.641887 | H916: ='Generel ledelse_Adm.'!I133 -> 0.1569738432 | I916: ='Generel ledelse_Adm.'!J134 -> 0.1541405816 | J916: =Sagstid.Straf!F25 -> 229 | K916: =Sagstid.Straf!G25 -> 208 | L916: =Sagstid.Civil!D25 -> 628 | M916: =Sagstid.Civil!E25 -> 642 | N916: =Sagstid.Foged!D25 -> 60 | O916: =Sagstid.Foged!E25 -> 70 | P916: =Sagstid.Skifte!D25 -> 38 | Q916: =Sagstid.Skifte!E25 -> 40 | R916: ='HR-nøgletal_lønsum'!D25 -> - | S916: ='HR-nøgletal_lønsum'!E25 -> 11.51964415 | T916: ='HR-nøgletal_lønsum'!F25 -> 9.4 | U916: ='HR-nøgletal_lønsum'!G25 -> 2.935579923 | V916: =Årsværk_Pers.kat!I26 -> 61.6528 | W916: =Årsværk_Pers.kat!O26 -> 61.88264 | X916: =Årsværk_Pers.kat!D26 -> 18.74051 | Y916: =Årsværk_Pers.kat!J26 -> 19.50219 | Z916: =Årsværk_Pers.kat!E26 -> 39.31742 | AA916: =Årsværk_Pers.kat!K26 -> 37.92369 | AB916: ='HR-nøgletal_lønsum'!H25 -> 41.84812497 | AC916: ='HR-nøgletal_lønsum'!I25 -> 42.28069
A917: Retten i Hillerød | B917: ='Produkt.SAML.'!D26 -> 96.40414715 | C917: ='Produkt.SAML.'!E26 -> 96.79930217 | D917: =Produkt.JUR!D26 -> 91.49979509 | E917: =Produkt.JUR!E26 -> 94.66183044 | F917: =Produkt.KON!D26 -> 115.5724431 | G917: =Produkt.KON!E26 -> 112.1491778 | H917: ='Generel ledelse_Adm.'!I140 -> 0.186622656 | I917: ='Generel ledelse_Adm.'!J141 -> 0.161147345 | J917: =Sagstid.Straf!F26 -> 239 | K917: =Sagstid.Straf!G26 -> 254 | L917: =Sagstid.Civil!D26 -> 615 | M917: =Sagstid.Civil!E26 -> 677 | N917: =Sagstid.Foged!D26 -> 101 | O917: =Sagstid.Foged!E26 -> 107 | P917: =Sagstid.Skifte!D26 -> 46 | Q917: =Sagstid.Skifte!E26 -> 54 | R917: ='HR-nøgletal_lønsum'!D26 -> - | S917: ='HR-nøgletal_lønsum'!E26 -> 15.70251051 | T917: ='HR-nøgletal_lønsum'!F26 -> 10.4 | U917: ='HR-nøgletal_lønsum'!G26 -> 12.61714052 | V917: =Årsværk_Pers.kat!I27 -> 43.85963 | W917: =Årsværk_Pers.kat!O27 -> 44.04035 | X917: =Årsværk_Pers.kat!D27 -> 13.6351 | Y917: =Årsværk_Pers.kat!J27 -> 12.88277 | Z917: =Årsværk_Pers.kat!E27 -> 20.30718 | AA917: =Årsværk_Pers.kat!K27 -> 20.90622 | AB917: ='HR-nøgletal_lønsum'!H26 -> 26.4952122 | AC917: ='HR-nøgletal_lønsum'!I26 -> 26.76592767
A918: Retten i Helsingør | B918: ='Produkt.SAML.'!D27 -> 95.33881414 | C918: ='Produkt.SAML.'!E27 -> 102.3497768 | D918: =Produkt.JUR!D27 -> 90.45552637 | E918: =Produkt.JUR!E27 -> 104.5473485 | F918: =Produkt.KON!D27 -> 104.1544758 | G918: =Produkt.KON!E27 -> 104.5488302 | H918: ='Generel ledelse_Adm.'!I147 -> 0.1587813607 | I918: ='Generel ledelse_Adm.'!J148 -> 0.13920115 | J918: =Sagstid.Straf!F27 -> 227 | K918: =Sagstid.Straf!G27 -> 203 | L918: =Sagstid.Civil!D27 -> 659 | M918: =Sagstid.Civil!E27 -> 546 | N918: =Sagstid.Foged!D27 -> 107 | O918: =Sagstid.Foged!E27 -> 96 | P918: =Sagstid.Skifte!D27 -> 38 | Q918: =Sagstid.Skifte!E27 -> 28 | R918: ='HR-nøgletal_lønsum'!D27 -> 11.1 | S918: ='HR-nøgletal_lønsum'!E27 -> 17.18970362 | T918: ='HR-nøgletal_lønsum'!F27 -> 12.2 | U918: ='HR-nøgletal_lønsum'!G27 -> 17.79689981 | V918: =Årsværk_Pers.kat!I28 -> 42.69757 | W918: =Årsværk_Pers.kat!O28 -> 40.07796 | X918: =Årsværk_Pers.kat!D28 -> 13.45201 | Y918: =Årsværk_Pers.kat!J28 -> 11.27396 | Z918: =Årsværk_Pers.kat!E28 -> 23.12831 | AA918: =Årsværk_Pers.kat!K28 -> 22.33957 | AB918: ='HR-nøgletal_lønsum'!H27 -> 25.78400889 | AC918: ='HR-nøgletal_lønsum'!I27 -> 24.93197614
A919: Retten i Lyngby | B919: ='Produkt.SAML.'!D28 -> 104.3863488 | C919: ='Produkt.SAML.'!E28 -> 102.6375617 | D919: =Produkt.JUR!D28 -> 103.9474881 | E919: =Produkt.JUR!E28 -> 101.0832334 | F919: =Produkt.KON!D28 -> 105.8183208 | G919: =Produkt.KON!E28 -> 106.9894914 | H919: ='Generel ledelse_Adm.'!I154 -> 0.1757279074 | I919: ='Generel ledelse_Adm.'!J155 -> 0.151647039 | J919: =Sagstid.Straf!F28 -> 204 | K919: =Sagstid.Straf!G28 -> 196 | L919: =Sagstid.Civil!D28 -> 556 | M919: =Sagstid.Civil!E28 -> 515 | N919: =Sagstid.Foged!D28 -> 58 | O919: =Sagstid.Foged!E28 -> 65 | P919: =Sagstid.Skifte!D28 -> 38 | Q919: =Sagstid.Skifte!E28 -> 39 | R919: ='HR-nøgletal_lønsum'!D28 -> - | S919: ='HR-nøgletal_lønsum'!E28 -> 14.62575098 | T919: ='HR-nøgletal_lønsum'!F28 -> 12.4 | U919: ='HR-nøgletal_lønsum'!G28 -> 6.378176724 | V919: =Årsværk_Pers.kat!I29 -> 46.34615 | W919: =Årsværk_Pers.kat!O29 -> 46.66254 | X919: =Årsværk_Pers.kat!D29 -> 14.07554 | Y919: =Årsværk_Pers.kat!J29 -> 13.79679 | Z919: =Årsværk_Pers.kat!E29 -> 25.67835 | AA919: =Årsværk_Pers.kat!K29 -> 26.14143 | AB919: ='HR-nøgletal_lønsum'!H28 -> 27.87577825 | AC919: ='HR-nøgletal_lønsum'!I28 -> 28.30274075
A920: Retten i Glostrup | B920: ='Produkt.SAML.'!D29 -> 91.55636753 | C920: ='Produkt.SAML.'!E29 -> 98.74916895 | D920: =Produkt.JUR!D29 -> 86.61281166 | E920: =Produkt.JUR!E29 -> 95.4780904 | F920: =Produkt.KON!D29 -> 97.48059395 | G920: =Produkt.KON!E29 -> 102.6604349 | H920: ='Generel ledelse_Adm.'!I161 -> 0.1440297948 | I920: ='Generel ledelse_Adm.'!J162 -> 0.1388556891 | J920: =Sagstid.Straf!F29 -> 370 | K920: =Sagstid.Straf!G29 -> 356 | L920: =Sagstid.Civil!D29 -> 739 | M920: =Sagstid.Civil!E29 -> 797 | N920: =Sagstid.Foged!D29 -> 92 | O920: =Sagstid.Foged!E29 -> 116 | P920: =Sagstid.Skifte!D29 -> 54 | Q920: =Sagstid.Skifte!E29 -> 59 | R920: ='HR-nøgletal_lønsum'!D29 -> 13.5 | S920: ='HR-nøgletal_lønsum'!E29 -> 18.21996841 | T920: ='HR-nøgletal_lønsum'!F29 -> 7.7 | U920: ='HR-nøgletal_lønsum'!G29 -> 8.076386909 | V920: =Årsværk_Pers.kat!I30 -> 103.46238 | W920: =Årsværk_Pers.kat!O30 -> 104.56349 | X920: =Årsværk_Pers.kat!D30 -> 34.67373 | Y920: =Årsværk_Pers.kat!J30 -> 33.55588 | Z920: =Årsværk_Pers.kat!E30 -> 56.56037 | AA920: =Årsværk_Pers.kat!K30 -> 57.15677 | AB920: ='HR-nøgletal_lønsum'!H29 -> 66.96801277 | AC920: ='HR-nøgletal_lønsum'!I29 -> 67.78468645
A921: Retten på Frederiksberg | B921: ='Produkt.SAML.'!D30 -> 92.05612018 | C921: ='Produkt.SAML.'!E30 -> 95.6096793 | D921: =Produkt.JUR!D30 -> 95.76670241 | E921: =Produkt.JUR!E30 -> 104.003973 | F921: =Produkt.KON!D30 -> 90.45935453 | G921: =Produkt.KON!E30 -> 93.74766787 | H921: ='Generel ledelse_Adm.'!I168 -> 0.1508619912 | I921: ='Generel ledelse_Adm.'!J169 -> 0.1527595086 | J921: =Sagstid.Straf!F30 -> 274 | K921: =Sagstid.Straf!G30 -> 251 | L921: =Sagstid.Civil!D30 -> 671 | M921: =Sagstid.Civil!E30 -> 701 | N921: =Sagstid.Foged!D30 -> 64 | O921: =Sagstid.Foged!E30 -> 70 | P921: =Sagstid.Skifte!D30 -> 77 | Q921: =Sagstid.Skifte!E30 -> 73 | R921: ='HR-nøgletal_lønsum'!D30 -> 17.9 | S921: ='HR-nøgletal_lønsum'!E30 -> 13.39510699 | T921: ='HR-nøgletal_lønsum'!F30 -> 17.3 | U921: ='HR-nøgletal_lønsum'!G30 -> 13.93254444 | V921: =Årsværk_Pers.kat!I31 -> 82.82351 | W921: =Årsværk_Pers.kat!O31 -> 87.27453 | X921: =Årsværk_Pers.kat!D31 -> 24.27912 | Y921: =Årsværk_Pers.kat!J31 -> 23.9493 | Z921: =Årsværk_Pers.kat!E31 -> 44.21937 | AA921: =Årsværk_Pers.kat!K31 -> 45.90864 | AB921: ='HR-nøgletal_lønsum'!H30 -> 52.33401751 | AC921: ='HR-nøgletal_lønsum'!I30 -> 52.6880441
A922: Københavns Byret | B922: ='Produkt.SAML.'!D31 -> 86.9740664 | C922: ='Produkt.SAML.'!E31 -> 104.7244182 | D922: =Produkt.JUR!D31 -> 90.30701954 | E922: =Produkt.JUR!E31 -> 115.2115942 | F922: =Produkt.KON!D31 -> 79.43854748 | G922: =Produkt.KON!E31 -> 92.28700572 | H922: ='Generel ledelse_Adm.'!I175 -> 0.1395859045 | I922: ='Generel ledelse_Adm.'!J176 -> 0.1371647459 | J922: =Sagstid.Straf!F31 -> 262 | K922: =Sagstid.Straf!G31 -> 228 | L922: =Sagstid.Civil!D31 -> 647 | M922: =Sagstid.Civil!E31 -> 680 | N922: =Sagstid.Foged!D31 -> 73 | O922: =Sagstid.Foged!E31 -> 68 | P922: =Sagstid.Skifte!D31 -> 42 | Q922: =Sagstid.Skifte!E31 -> 30 | R922: ='HR-nøgletal_lønsum'!D31 -> - | S922: ='HR-nøgletal_lønsum'!E31 -> 12.55430035 | T922: ='HR-nøgletal_lønsum'!F31 -> 13.9 | U922: ='HR-nøgletal_lønsum'!G31 -> 7.635601739 | V922: =Årsværk_Pers.kat!I32 -> 188.22153 | W922: =Årsværk_Pers.kat!O32 -> 185.54837 | X922: =Årsværk_Pers.kat!D32 -> 61.67602 | Y922: =Årsværk_Pers.kat!J32 -> 55.8816 | Z922: =Årsværk_Pers.kat!E32 -> 111.06696 | AA922: =Årsværk_Pers.kat!K32 -> 111.31703 | AB922: ='HR-nøgletal_lønsum'!H31 -> 131.7498701 | AC922: ='HR-nøgletal_lønsum'!I31 -> 126.9864905
A923: Retten på Bornholm | B923: ='Produkt.SAML.'!D32 -> 0 | C923: ='Produkt.SAML.'!E32 -> 0 | D923: =Produkt.JUR!D32 -> 0 | E923: =Produkt.JUR!E32 -> 0 | F923: =Produkt.KON!D32 -> 0 | G923: =Produkt.KON!E32 -> 0 | H923: ='Generel ledelse_Adm.'!I182 -> 0 | I923: ='Generel ledelse_Adm.'!J183 -> 0 | J923: =Sagstid.Straf!F32 -> 0 | K923: =Sagstid.Straf!G32 -> 0 | L923: =Sagstid.Civil!D32 -> 0 | M923: =Sagstid.Civil!E32 -> 0 | N923: =Sagstid.Foged!D32 -> 0 | O923: =Sagstid.Foged!E32 -> 0 | P923: =Sagstid.Skifte!D32 -> 0 | Q923: =Sagstid.Skifte!E32 -> 0 | R923: ='HR-nøgletal_lønsum'!D32 -> 0 | S923: ='HR-nøgletal_lønsum'!E32 -> 0 | T923: ='HR-nøgletal_lønsum'!F32 -> 0 | U923: ='HR-nøgletal_lønsum'!G32 -> 0 | V923: =Årsværk_Pers.kat!I33 -> 0 | W923: =Årsværk_Pers.kat!O33 -> 0 | X923: =Årsværk_Pers.kat!D33 -> 0 | Y923: =Årsværk_Pers.kat!J33 -> 0 | Z923: =Årsværk_Pers.kat!E33 -> 0 | AA923: =Årsværk_Pers.kat!K33 -> 0 | AB923: ='HR-nøgletal_lønsum'!H32 -> 0 | AC923: ='HR-nøgletal_lønsum'!I32 -> 0

Sheet Produkt.SAML.
B2: PRODUKTIVITETSINDEKS SAMLET FOR RETTEN
D4: Samlet | F4: Retssager | H4: Straffesager | J4: Civile sager | L4: Fogedsager | N4: Skiftesager
D5: =Overblik!$D$6 -> 2022 | E5: =Overblik!$E$6 -> 2023 | F5: =Overblik!$D$6 -> 2022 | G5: =Overblik!$E$6 -> 2023 | H5: =Overblik!$D$6 -> 2022 | I5: =Overblik!$E$6 -> 2023 | J5: =Overblik!$D$6 -> 2022 | K5: =Overblik!$E$6 -> 2023 | L5: =Overblik!$D$6 -> 2022 | M5: =Overblik!$E$6 -> 2023 | N5: =Overblik!$D$6 -> 2022 | O5: =Overblik!$E$6 -> 2023
B6: SAMLET BYRETTERNE | D6: 93.35002037 | E6: 98.53577594 | F6: 94.51940261 | G6: 99.13495035 | H6: 88.05114284 | I6: 99.12028589 | J6: 104.9344709 | K6: 99.15658493 | L6: 85.32895194 | M6: 99.2676295 | N6: 95.3904645 | O6: 99.11847642
B7: 5. BEDSTE RET | D7: =LARGE(D9:D32,5) -> 103.1396924 | E7: 104.7244182 | F7: 105.4141562 | G7: =LARGE(G9:G32,5) -> 107.5448541 | H7: 95.91090653 | I7: 99.71783361 | J7: 119.0626778 | K7: 121.5164209 | L7: 100.461285 | M7: 99.53208774 | N7: 110.3527341 | O7: 119.6117203
B8: EID | C8: Ret
B9: 901 | C9: Retten i Hjørring | D9: 92.53914513 | E9: 102.769414 | F9: 91.44986357 | G9: 98.23077848 | H9: 85.75902635 | I9: 85.4945592 | J9: 100.4809887 | K9: 117.5696241 | L9: 91.89607226 | M9: 99.53208774 | N9: 94.89244995 | O9: 115.843703
B10: 902 | C10: Retten i Aalborg | D10: 97.49098313 | E10: 105.9394915 | F10: 101.2809488 | G10: 107.5448541 | H10: 91.75939173 | I10: 98.33121416 | J10: 116.3894933 | K10: 121.8544445 | L10: 78.54039237 | M10: 90.5356124 | N10: 96.75462486 | O10: 109.3384728
B11: 903 | C11: Retten i Randers | D11: 93.33676804 | E11: 100.3296449 | F11: 95.2713939 | G11: 96.07435617 | H11: 82.34164048 | I11: 85.75910772 | J11: 117.5955776 | K11: 112.1106509 | L11: 78.09453223 | M11: 93.06232797 | N11: 97.37069543 | O11: 118.354425
B12: 904 | C12: Retten i Aarhus | D12: 96.44860828 | E12: 92.915966 | F12: 94.19512172 | G12: 88.8440944 | H12: 82.15150065 | I12: 75.31002363 | J12: 117.7390457 | K12: 118.0535186 | L12: 118.0980722 | M12: 125.3577941 | N12: 90.96201494 | O12: 88.79259961
B13: 905 | C13: Retten i Viborg | D13: 90.33676431 | E13: 100.1076415 | F13: 92.70435776 | G13: 97.63177486 | H13: 87.08042636 | I13: 93.43786433 | J13: 101.5899129 | K13: 104.2035286 | L13: 62.56618002 | M13: 89.49984619 | N13: 111.8320799 | O13: 123.9831295
B14: 906 | C14: Retten i Holstebro | D14: 110.3319721 | E14: 107.4674136 | F14: 121.6517799 | G14: 120.4663496 | H14: 122.2283321 | I14: 121.1703848 | J14: 118.456832 | K14: 114.6612245 | L14: 88.97961882 | M14: 84.191842 | N14: 90.64881636 | O14: 87.35184388
B15: 907 | C15: Retten i Herning | D15: 96.62906985 | E15: 96.1424566 | F15: 100.5887743 | G15: 100.5534824 | H15: 95.05882013 | I15: 95.02026475 | J15: 108.9654905 | K15: 108.9079424 | L15: 79.52102911 | M15: 85.41624581 | N15: 94.6979614 | O15: 90.26417861
B16: 908 | C16: Retten i Horsens | D16: 95.48061841 | E16: 89.06224281 | F16: 94.4294609 | G16: 89.87770458 | H16: 87.24678504 | I16: 84.84045265 | J16: 106.0895045 | K16: 97.74144917 | L16: 85.22723991 | M16: 85.81213376 | N16: 110.3527341 | O16: 88.6686351
B17: 909 | C17: Retten i Kolding | D17: 106.4462631 | E17: 123.4308584 | F17: 105.4141562 | G17: 122.8946083 | H17: 91.44522217 | I17: 104.0941638 | J17: 129.4571276 | K17: 152.18956 | L17: 112.2638857 | M17: 147.9471739 | N17: 107.7842203 | O17: 107.1256267
B18: 910 | C18: Retten i Esbjerg | D18: 88.82128629 | E18: 94.84956648 | F18: 91.8826565 | G18: 98.08891277 | H18: 79.79336187 | I18: 88.59786208 | J18: 115.3154326 | K18: 115.1911109 | L18: 86.2499288 | M18: 82.28068254 | N18: 80.29143193 | O18: 94.03052405
B19: 911 | C19: Retten i Sønderborg | D19: 97.73890597 | E19: 99.21812083 | F19: 94.58299217 | G19: 92.02240491 | H19: 95.88262217 | I19: 95.19624766 | J19: 93.15633117 | K19: 84.85758165 | L19: 97.95551601 | M19: 120.1883674 | N19: 123.7293391 | O19: 131.0290177
B20: 912 | C20: Retten i Odense | D20: 99.36795789 | E20: 104.3423657 | F20: 101.8666454 | G20: 106.8338017 | H20: 95.13769373 | I20: 98.19085411 | J20: 112.7059039 | K20: 121.5164209 | L20: 84.005231 | M20: 88.88369377 | N20: 99.14289068 | O20: 103.448436
B21: 913 | C21: Retten i Svendborg | D21: 88.14970124 | E21: 96.24869297 | F21: 87.03677427 | G21: 86.00719821 | H21: 89.99115846 | I21: 79.08885694 | J21: 84.97069412 | K21: 96.80655382 | L21: 79.17615667 | M21: 97.52019254 | N21: 94.28405349 | O21: 138.904064
B22: 914 | C22: Retten i Nykøbing F. | D22: 100.1645724 | E22: 96.96159965 | F22: 101.2212372 | G22: 98.58887631 | H22: 100.8417893 | I22: 101.0958698 | J22: 101.2269618 | K22: 94.15663565 | L22: 102.2945934 | M22: 94.39622828 | N22: 93.2128093 | O22: 93.34697361
B23: 915 | C23: Retten i Næstved | D23: 98.00625099 | E23: 96.9586504 | F23: 105.6999685 | G23: 99.64878976 | H23: 95.91090653 | I23: 90.01220093 | J23: 121.7566057 | K23: 115.5179069 | L23: 79.69530547 | M23: 88.48554704 | N23: 88.70291678 | O23: 97.33676809
B24: 916 | C24: Retten i Holbæk | D24: 103.1396924 | E24: 95.12376852 | F24: 110.9718737 | G24: 99.42756185 | H24: 105.6702484 | I24: 89.36601203 | J24: 119.0626778 | K24: 117.3863352 | L24: 79.68237298 | M24: 84.51672501 | N24: 100.1691755 | O24: 89.06397125
B25: 917 | C25: Retten i Roskilde | D25: 108.8354598 | E25: 111.6982534 | F25: 114.297908 | G25: 110.2205455 | H25: 95.87527518 | I25: 93.94500382 | J25: 146.0582833 | K25: 136.6806767 | L25: 81.10727985 | M25: 102.8789725 | N25: 110.8186722 | O25: 119.6117203
B26: 918 | C26: Retten i Hillerød | D26: 96.40414715 | E26: 96.79930217 | F26: 95.3996701 | G26: 93.00797257 | H26: 104.8184671 | I26: 97.82837338 | J26: 86.57355837 | K26: 89.35008047 | L26: 92.82709148 | M26: 98.99207637 | N26: 106.3978402 | O26: 113.2347805
B27: 919 | C27: Retten i Helsingør | D27: 95.33881414 | E27: 102.3497768 | F27: 95.13570169 | G27: 105.3891191 | H27: 92.45369813 | I27: 99.71783361 | J27: 100.9001711 | K27: 114.8073268 | L27: 82.17271265 | M27: 81.65917825 | N27: 103.9031497 | O27: 107.7097892
B28: 920 | C28: Retten i Lyngby | D28: 104.3863488 | E28: 102.6375617 | F28: 104.9148523 | G28: 105.582662 | H28: 87.95512982 | I28: 109.7378051 | J28: 124.3301473 | K28: 107.3328205 | L28: 127.2997689 | M28: 93.91986976 | N28: 73.70063495 | O28: 73.77906533
B29: 921 | C29: Retten i Glostrup | D29: 91.55636753 | E29: 98.74916895 | F29: 91.41851591 | G29: 97.69828939 | H29: 91.35245581 | I29: 92.47058747 | J29: 91.45944276 | K29: 106.1219736 | L29: 79.63315838 | M29: 86.87189738 | N29: 117.1664686 | O29: 133.2448209
B30: 922 | C30: Retten på Frederiksberg | D30: 92.05612018 | E30: 95.6096793 | F30: 92.61298137 | G30: 98.85954018 | H30: 92.52828348 | I30: 94.96778378 | J30: 91.41290834 | K30: 104.3589491 | L30: 100.461285 | M30: 97.20466012 | N30: 75.34146719 | O30: 70.82912353
B31: 923 | C31: Københavns Byret | D31: 86.9740664 | E31: 104.7244182 | F31: 91.59006335 | G31: 111.5884641 | H31: 85.89425659 | I31: 96.86985546 | J31: 100.620961 | K31: 138.5947836 | L31: 68.187809 | M31: 69.33736892 | N31: 63.30401855 | O31: 80.79941986
B35: 1) Indeks 100 svarer til gennemsnittet ved byretterne i 2019
B36: 2) "Retssager" svarer til den samlede produktivitet for straffesager og civile sager, "Fogedsager" til den samlede produktivitet for øvrige fogedsager og tvangsauktioner, "Skiftesager" til den samlede produktivitet for insolvensskifter og dødsboskifter.
B37: 3) Ved beregningen af den samlede produktivitet, samlet for retten, anvendes rettens samlede vægtede årsværksforbrug - dvs. også årsværksforbruget til generel ledelse og administration mv. Ved beregning af produktiviteten på de enkelte sagsområder er årsværkforbruget til generel ledelse og administration mv. nøgletalsfordelt, således at forskelle i andele i årsværksforbrug til generel ledelse og administration mv. ikke vanskeliggør en sammenligning af de enkelte retter.

Sheet Produkt.JUR
B2: PRODUKTIVITETSINDEKS JURISTER
D4: Samlet | F4: Retssager | H4: Straffesager | J4: Civile sager | L4: Fogedsager | N4: Skiftesager
D5: =Overblik!$D$6 -> 2022 | E5: =Overblik!$E$6 -> 2023 | F5: =Overblik!$D$6 -> 2022 | G5: =Overblik!$E$6 -> 2023 | H5: =Overblik!$D$6 -> 2022 | I5: =Overblik!$E$6 -> 2023 | J5: =Overblik!$D$6 -> 2022 | K5: =Overblik!$E$6 -> 2023 | L5: =Overblik!$D$6 -> 2022 | M5: =Overblik!$E$6 -> 2023 | N5: =Overblik!$D$6 -> 2022 | O5: =Overblik!$E$6 -> 2023
B6: SAMLET BYRETTERNE | D6: 96.50235115 | E6: 99.49804683 | F6: 98.98770839 | G6: 103.1139069 | H6: 92.6333453 | I6: 95.27096277 | J6: 108.3974811 | K6: 114.9680056 | L6: 79.32095707 | M6: 92.56484435 | N6: 88.08469987 | O6: 95.5430872
B7: 5. BEDSTE RET | D7: =LARGE(D9:D32,5) -> 103.9474881 | E7: =LARGE(E9:E32,5) -> 109.8767475 | F7: 111.095471 | G7: 107.5821309 | H7: 104.6681819 | I7: 102.5616077 | J7: 126.3228468 | K7: 127.2065505 | L7: 104.8430241 | M7: 113.6918073 | N7: 110.2263832 | O7: 118.5289829
B8: EID | C8: Ret
B9: 901 | C9: Retten i Hjørring | D9: 93.75064523 | E9: 106.8593636 | F9: 91.35789137 | G9: 100.8858045 | H9: 86.73815677 | I9: 87.33896076 | J9: 98.77066018 | K9: 120.6639566 | L9: 129.9403714 | M9: 146.0133636 | N9: 81.77023829 | O9: 107.0430497
B10: 902 | C10: Retten i Aalborg | D10: 98.66292971 | E10: 109.8767475 | F10: 98.00634931 | G10: 107.4262629 | H10: 87.793029 | I10: 102.5696952 | J10: 113.5005742 | K10: 115.9491316 | L10: 76.69588131 | M10: 103.2948314 | N10: 110.3906289 | O10: 108.1237602
B11: 903 | C11: Retten i Randers | D11: 100.1101562 | E11: 106.1064719 | F11: 106.6729109 | G11: 102.7509517 | H11: 96.31644827 | I11: 94.54667122 | J11: 122.4645512 | K11: 115.3409072 | L11: 68.16192833 | M11: 92.33705476 | N11: 83.51809291 | O11: 148.1285823
B12: 904 | C12: Retten i Aarhus | D12: 96.21304634 | E12: 93.23914245 | F12: 95.17010933 | G12: 91.49179227 | H12: 84.78297477 | I12: 77.13208616 | J12: 112.078209 | K12: 118.7517431 | L12: 104.8430241 | M12: 113.6918073 | N12: 79.28078285 | O12: 74.78622148
B13: 905 | C13: Retten i Viborg | D13: 98.76460671 | E13: 105.1988948 | F13: 101.5551909 | G13: 102.8259508 | H13: 99.10482465 | I13: 102.5616077 | J13: 105.2198893 | K13: 104.5429053 | L13: 70.541369 | M13: 119.1526774 | N13: 101.6645193 | O13: 100.6038228
B14: 906 | C14: Retten i Holstebro | D14: 114.5180103 | E14: 115.0191905 | F14: 134.4742916 | G14: 131.24864 | H14: 128.1307663 | I14: 125.7403301 | J14: 141.8041437 | K14: 135.2122199 | L14: 103.5237215 | M14: 78.45855557 | N14: 63.06455139 | O14: 78.07032464
B15: 907 | C15: Retten i Herning | D15: 96.62136936 | E15: 95.2739594 | F15: 93.40174834 | G15: 97.36256621 | H15: 89.43056811 | I15: 95.70954968 | J15: 97.91965708 | K15: 98.17116028 | L15: 86.16866076 | M15: 82.20906358 | N15: 69.05136848 | O15: 60.47398015
B16: 908 | C16: Retten i Horsens | D16: 99.58494792 | E16: 86.64303627 | F16: 97.85368328 | G16: 83.48847988 | H16: 93.32005449 | I16: 79.58334708 | J16: 104.6016947 | K16: 89.02378709 | L16: 70.74447857 | M16: 84.43455536 | N16: 169.1850459 | O16: 104.9285456
B17: 909 | C17: Retten i Kolding | D17: 96.44699446 | E17: 110.5366094 | F17: 98.4275192 | G17: 107.5821309 | H17: 87.02332543 | I17: 93.54099632 | J17: 116.3225988 | K17: 128.6450202 | L17: 92.03079169 | M17: 106.794573 | N17: 109.6739305 | O17: 98.76460004
B18: 910 | C18: Retten i Esbjerg | D18: 88.57878771 | E18: 94.32575085 | F18: 91.15012088 | G18: 98.92690943 | H18: 73.88565768 | I18: 84.84991176 | J18: 126.3228468 | K18: 124.1773884 | L18: 103.8271406 | M18: 96.30816128 | N18: 75.59150371 | O18: 86.93320447
B19: 911 | C19: Retten i Sønderborg | D19: 96.79811803 | E19: 96.36212416 | F19: 93.87676456 | G19: 90.49041679 | H19: 96.64795631 | I19: 94.18467471 | J19: 91.3947769 | K19: 82.99939414 | L19: 85.08125364 | M19: 128.0677468 | N19: 126.7214562 | O19: 140.8299839
B20: 912 | C20: Retten i Odense | D20: 101.4332418 | E20: 104.3430191 | F20: 98.48366282 | G20: 105.6959319 | H20: 93.85003938 | I20: 95.9469343 | J20: 104.6138323 | K20: 120.8460734 | L20: 67.28808221 | M20: 67.24686574 | N20: 102.6198222 | O20: 102.1100702
B21: 913 | C21: Retten i Svendborg | D21: 88.56899589 | E21: 96.30074526 | F21: 98.73252915 | G21: 88.6247894 | H21: 105.9075386 | I21: 79.19031037 | J21: 93.97260226 | K21: 102.8169894 | L21: 57.84739212 | M21: 103.8056304 | N21: 68.39009035 | O21: 172.8056768
B22: 914 | C22: Retten i Nykøbing F. | D22: 101.5967439 | E22: 97.68200141 | F22: 111.095471 | G22: 100.678626 | H22: 107.9440292 | I22: 99.63333896 | J22: 114.8581854 | K22: 101.070044 | L22: 122.3121287 | M22: 86.67328201 | N22: 95.74183687 | O22: 89.65446731
B23: 915 | C23: Retten i Næstved | D23: 106.2176039 | E23: 105.0191861 | F23: 117.5403001 | G23: 108.1525868 | H23: 104.439987 | I23: 95.95113132 | J23: 138.0302359 | K23: 127.2065505 | L23: 62.38105766 | M23: 93.48439991 | N23: 89.94229981 | O23: 95.30081185
B24: 916 | C24: Retten i Holbæk | D24: 106.0466548 | E24: 97.13930252 | F24: 111.2161648 | G24: 98.54527955 | H24: 104.6681819 | I24: 87.75003418 | J24: 120.4224179 | K24: 116.2410293 | L24: 61.58084945 | M24: 92.50810403 | N24: 106.874024 | O24: 85.75839098
B25: 917 | C25: Retten i Roskilde | D25: 113.2847348 | E25: 111.5591294 | F25: 122.2567131 | G25: 111.9310888 | H25: 98.84802137 | I25: 92.97381367 | J25: 161.9250445 | K25: 141.6581309 | L25: 59.70102127 | M25: 84.81311374 | N25: 106.5786743 | O25: 115.1178956
B26: 918 | C26: Retten i Hillerød | D26: 91.49979509 | E26: 94.66183044 | F26: 96.2311153 | G26: 95.86316114 | H26: 105.5457659 | I26: 100.4661753 | J26: 88.61035118 | K26: 93.47230282 | L26: 71.11448631 | M26: 74.79379347 | N26: 131.8540104 | O26: 121.3166735
B27: 919 | C27: Retten i Helsingør | D27: 90.45552637 | E27: 104.5473485 | F27: 84.5041617 | G27: 98.98721131 | H27: 86.00560135 | I27: 96.14943046 | J27: 86.96928689 | K27: 106.1915742 | L27: 97.36860274 | M27: 100.7047863 | N27: 110.2263832 | O27: 118.5289829
B28: 920 | C28: Retten i Lyngby | D28: 103.9474881 | E28: 101.0832334 | F28: 105.0661823 | G28: 107.2076155 | H28: 85.50025711 | I28: 109.9013794 | J28: 127.5297628 | K28: 111.8832323 | L28: 143.1000864 | M28: 74.57449365 | N28: 51.98315523 | O28: 48.53924853
B29: 921 | C29: Retten i Glostrup | D29: 86.61281166 | E29: 95.4780904 | F29: 88.55807203 | G29: 96.63763823 | H29: 89.47238959 | I29: 93.43248812 | J29: 87.4821216 | K29: 102.6135205 | L29: 78.74923895 | M29: 94.59972423 | N29: 62.40804003 | O29: 83.84356075
B30: 922 | C30: Retten på Frederiksberg | D30: 95.76670241 | E30: 104.003973 | F30: 92.51071813 | G30: 100.0831551 | H30: 88.01894035 | I30: 93.65137914 | J30: 97.86765189 | K30: 109.134494 | L30: 149.5914378 | M30: 153.9990935 | N30: 78.77851321 | O30: 79.40788208
B31: 923 | C31: Københavns Byret | D31: 90.30701954 | E31: 115.2115942 | F31: 97.70132924 | G31: 119.5243343 | H31: 91.77529763 | I31: 108.2619155 | J31: 105.4139478 | K31: 137.0142008 | L31: 57.62637895 | M31: 63.76989787 | N31: 37.60883266 | O31: 76.94813249
B35: 1) Indeks 100 svarer til gennemsnittet ved byretterne i 2019.
B36: 2) "Retssager" svarer til den samlede produktivitet for straffesager og civile sager, "Fogedsager" til den samlede produktivitet for øvrige fogedsager og tvangsauktioner, "Skiftesager" til den samlede produktivitet for insolvensskifter og dødsboskifter.
B37: 3) Ved beregningen af den samlede produktivitet for juristerne anvendes det samlede årsværksforbrug for gruppen - dvs. også årsværksforbruget til generel ledelse og administration mv. Ved beregning af produktiviteten på de enkelte sagsområder er kun medtaget det direkte årsværksforbrug - dvs. der er ikke foretaget en nøgletalsfordeling af årsværkforbruget til generel ledelse og administration mv.

Sheet Produkt.KON
B2: PRODUKTIVITETSINDEKS KONTORPERSONALE
D4: Samlet | F4: Retssager | H4: Straffesager | J4: Civile sager | L4: Fogedsager | N4: Skiftesager
D5: =Overblik!$D$6 -> 2022 | E5: =Overblik!$E$6 -> 2023 | F5: =Overblik!$D$6 -> 2022 | G5: =Overblik!$E$6 -> 2023 | H5: =Overblik!$D$6 -> 2022 | I5: =Overblik!$E$6 -> 2023 | J5: =Overblik!$D$6 -> 2022 | K5: =Overblik!$E$6 -> 2023 | L5: =Overblik!$D$6 -> 2022 | M5: =Overblik!$E$6 -> 2023 | N5: =Overblik!$D$6 -> 2022 | O5: =Overblik!$E$6 -> 2023
B6: SAMLET BYRETTERNE | D6: 94.99269721 | E6: 99.63749161 | F6: 95.27073704 | G6: 101.7168991 | H6: 90.01121769 | I6: 93.27243827 | J6: 103.8965045 | K6: 116.2083018 | L6: 87.10936664 | M6: 92.62881376 | N6: 100.8575305 | O6: 107.0082294
B7: 5. BEDSTE RET | D7: =LARGE(D9:D32,5) -> 104.1544758 | E7: 105.7331567 | F7: 105.0916353 | G7: 107.8341848 | H7: 104.568026 | I7: 115.0006187 | J7: 119.8025086 | K7: 125.6715146 | L7: 110.0720536 | M7: 108.9933624 | N7: 114.2396229 | O7: 136.7081019
B8: EID | C8: Ret
B9: 901 | C9: Retten i Hjørring | D9: 90.86513468 | E9: 102.0394123 | F9: 92.93150879 | G9: 96.78485035 | H9: 86.51568828 | I9: 86.93198806 | J9: 103.2739975 | K9: 111.4832264 | L9: 81.43844232 | M9: 90.72865315 | N9: 102.0106888 | O9: 120.1338811
B10: 902 | C10: Retten i Aalborg | D10: 92.65104342 | E10: 103.2234557 | F10: 94.79920217 | G10: 98.14082127 | H10: 90.97541776 | I10: 87.13778282 | J10: 100.0428837 | K10: 116.2072464 | L10: 80.80512004 | M10: 88.81623678 | N10: 82.99463304 | O10: 101.344687
B11: 903 | C11: Retten i Randers | D11: 90.29526298 | E11: 99.45662339 | F11: 79.7465389 | G11: 89.74361997 | H11: 67.61992929 | I11: 78.36845524 | J11: 105.3193279 | K11: 108.3712184 | L11: 86.96094314 | M11: 96.25828886 | N11: 105.1439012 | O11: 109.0188248
B12: 904 | C12: Retten i Aarhus | D12: 101.8695996 | E12: 96.1977882 | F12: 91.51870523 | G12: 80.74469532 | H12: 78.34448027 | I12: 70.18808889 | J12: 126.68668 | K12: 108.4602373 | L12: 129.7343988 | M12: 133.7933605 | N12: 101.8865961 | O12: 100.5654384
B13: 905 | C13: Retten i Viborg | D13: 82.2338775 | E13: 95.98567086 | F13: 80.30336728 | G13: 88.95022895 | H13: 74.04284845 | I13: 82.96707218 | J13: 93.18564845 | K13: 99.8301548 | L13: 59.72054832 | M13: 80.15376476 | N13: 120.1142214 | O13: 139.9505464
B14: 906 | C14: Retten i Holstebro | D14: 106.2404198 | E14: 104.1829005 | F14: 98.92624802 | G14: 106.7150382 | H14: 109.5000141 | I14: 119.3556602 | J14: 80.50649881 | K14: 82.74014833 | L14: 80.59894793 | M14: 84.54784638 | N14: 110.3164809 | O14: 92.65789663
B15: 907 | C15: Retten i Herning | D15: 99.49918968 | E15: 103.7768154 | F15: 98.87206234 | G15: 96.08729887 | H15: 90.66357682 | I15: 85.91747256 | J15: 118.5419865 | K15: 125.6715146 | L15: 69.19804388 | M15: 79.40072124 | N15: 114.2396229 | O15: 136.7081019
B16: 908 | C16: Retten i Horsens | D16: 101.1448005 | E16: 103.7968568 | F16: 99.08709198 | G16: 104.3374723 | H16: 88.76201151 | I16: 96.55856349 | J16: 119.8025086 | K16: 119.4275731 | L16: 102.3824725 | M16: 91.51138344 | N16: 96.89946596 | O16: 95.23815373
B17: 909 | C17: Retten i Kolding | D17: 111.6087861 | E17: 133.9678127 | F17: 115.0657576 | G17: 145.7504809 | H17: 95.16003126 | I17: 116.3289706 | J17: 156.3420253 | K17: 194.2189589 | L17: 116.0525411 | M17: 161.8892759 | N17: 104.9813176 | O17: 104.7665675
B18: 910 | C18: Retten i Esbjerg | D18: 97.06509021 | E18: 102.7452615 | F18: 101.8563935 | G18: 104.686368 | H18: 101.0612548 | I18: 103.5189614 | J18: 101.939184 | K18: 105.2078668 | L18: 85.96962952 | M18: 83.29965014 | N18: 90.75647309 | O18: 107.9063601
B19: 911 | C19: Retten i Sønderborg | D19: 96.69333076 | E19: 100.729707 | F19: 96.09358296 | G19: 91.21316239 | H19: 95.01382224 | I19: 93.55477941 | J19: 96.80486222 | K19: 84.61584313 | L19: 110.0720536 | M19: 119.0245995 | N19: 123.9110465 | O19: 137.9639082
B20: 912 | C20: Retten i Odense | D20: 96.61834828 | E20: 105.7331567 | F20: 94.62954847 | G20: 100.8809083 | H20: 86.0296941 | I20: 94.74133647 | J20: 114.4163343 | K20: 112.7368746 | L20: 82.95295393 | M20: 95.91023375 | N20: 89.14467609 | O20: 100.0293611
B21: 913 | C21: Retten i Svendborg | D21: 99.42128383 | E21: 106.0897306 | F21: 80.04307745 | G21: 87.34922351 | H21: 80.41434083 | I21: 84.61979158 | J21: 78.91593167 | K21: 90.81909143 | L21: 101.2049119 | M21: 95.11630867 | N21: 133.2184997 | O21: 146.498919
B22: 914 | C22: Retten i Nykøbing F. | D22: 98.50902042 | E22: 95.33839663 | F22: 100.8909109 | G22: 97.74640648 | H22: 109.5696633 | I22: 106.7377237 | J22: 87.17104426 | K22: 83.13529233 | L22: 97.68970718 | M22: 100.0957025 | N22: 103.9405499 | O22: 96.9166163
B23: 915 | C23: Retten i Næstved | D23: 90.69343896 | E23: 92.16239419 | F23: 98.23122873 | G23: 96.41676771 | H23: 92.81386214 | I23: 90.26916159 | J23: 106.7143201 | K23: 106.4577715 | L23: 92.88937487 | M23: 97.48475985 | N23: 93.90405974 | O23: 104.6427607
B24: 916 | C24: Retten i Holbæk | D24: 101.09145 | E24: 93.10276512 | F24: 113.1885443 | G24: 105.1634187 | H24: 111.1910159 | I24: 95.71334564 | J24: 115.3246029 | K24: 123.6551863 | L24: 88.18600127 | M24: 80.12102317 | N24: 96.94859749 | O24: 91.78268913
B25: 917 | C25: Retten i Roskilde | D25: 96.85140501 | E25: 103.641887 | F25: 105.0916353 | G25: 107.8341848 | H25: 93.21571659 | I25: 95.59287783 | J25: 124.9486034 | K25: 127.925718 | L25: 91.79005769 | M25: 108.9933624 | N25: 110.9944566 | O25: 120.3401742
B26: 918 | C26: Retten i Hillerød | D26: 115.5724431 | E26: 112.1491778 | F26: 129.0754344 | G26: 113.2064285 | H26: 155.3585554 | I26: 138.7127822 | J26: 101.9758468 | K26: 89.15538432 | L26: 114.7343301 | M26: 119.0491569 | N26: 106.7698442 | O26: 114.8638769
B27: 919 | C27: Retten i Helsingør | D27: 104.1544758 | E27: 104.5488302 | F27: 122.8683618 | G27: 128.3909952 | H27: 104.568026 | I27: 115.0006187 | J27: 152.1463967 | K27: 146.228473 | L27: 76.18152393 | M27: 72.27882342 | N27: 97.89136997 | O27: 100.9466976
B28: 920 | C28: Retten i Lyngby | D28: 105.8183208 | E28: 106.9894914 | F28: 104.8890637 | G28: 101.5771779 | H28: 92.28757793 | I28: 107.9762117 | J28: 117.1600114 | K28: 96.45400921 | L28: 117.6206516 | M28: 103.1278742 | N28: 85.29071396 | O28: 91.73681339
B29: 921 | C29: Retten i Glostrup | D29: 97.48059395 | E29: 102.6604349 | F29: 94.48740767 | G29: 100.5635032 | H29: 92.9181664 | I29: 91.67617845 | J29: 96.09489147 | K29: 114.7745264 | L29: 77.03681267 | M29: 83.00871466 | N29: 153.1186394 | O29: 159.4644
B30: 922 | C30: Retten på Frederiksberg | D30: 90.45935453 | E30: 93.74766787 | F30: 95.04254457 | G30: 108.2070009 | H30: 104.2763726 | I30: 116.4472741 | J30: 79.96426512 | K30: 94.17092349 | L30: 84.26506621 | M30: 82.01081384 | N30: 80.66159583 | O30: 78.66286303
B31: 923 | C31: Københavns Byret | D31: 79.43854748 | E31: 92.28700572 | F31: 83.16690149 | G31: 103.7911767 | H31: 79.2139002 | I31: 86.06516201 | J31: 90.15264983 | K31: 141.084803 | L31: 70.55710496 | M31: 67.91339735 | N31: 78.63793908 | O31: 82.3043728
B35: 1) Indeks 100 svarer til gennemsnittet ved byretterne i 2019.
B36: 2) "Retssager" svarer til den samlede produktivitet for straffesager og civile sager, "Fogedsager" til den samlede produktivitet for øvrige fogedsager og tvangsauktioner, "Skiftesager" til den samlede produktivitet for insolvensskifter og dødsboskifter.
B37: 3) Ved beregningen af den samlede produktivitet for kontorpersonale anvendes det samlede årsværksforbrug for gruppen - dvs. også årsværksforbruget til generel ledelse og administration mv. Ved beregning af produktiviteten på de enkelte sagsområder er kun medtaget det direkte årsværksforbrug - dvs. der er ikke foretaget en nøgletalsfordeling af årsværkforbruget til generel ledelse og administration mv.

Sheet Generel ledelse_Adm.
B2: ÅRSVÆRKSFORBRUG ANVENDT TIL GENEREL LEDELSE OG ADMINISTRATION MV.
E5: Årsværk til generel ledelse og administration | H5: %-del til generel ledelse og administration
E6: =Overblik!$D$6-1 -> 2021 | F6: =Overblik!$D$6 -> 2022 | G6: =Overblik!$E$6 -> 2023 | H6: =Overblik!$D$6-1 -> 2021 | I6: =Overblik!$D$6 -> 2022 | J6: =Overblik!$E$6 -> 2023
B8: SAMLET BYRETTERNE | D8: Jurister | E8: =SUM(E16,E23,E30,E37,E44,E51,E58,E65,E72,E79,E86,E93,E100,E107,E114,E121,E128,E135,E142,E149,E156,E163,E170,E177) -> 27.88309691 | F8: 30.46070621 | G8: 25.84779659 | H8: 0.068 | I8: 0.07037466347 | J8: =G8/SUM(G8,Årsværk_Sagsområder!$F7,Årsværk_Sagsområder!$H7,Årsværk_Sagsområder!$J7,Årsværk_Sagsområder!$L7,Årsværk_Sagsområder!$N7) -> 0.06126483706
D9: Kontor | E9: =SUM(E17,E24,E31,E38,E45,E52,E59,E66,E73,E80,E87,E94,E101,E108,E115,E122,E129,E136,E143,E150,E157,E164,E171) -> 101.4785545 | F9: 97.43368069 | G9: 98.03448333 | H9: 0.1232791532 | I9: 0.1194922286 | J9: =G9/SUM(G9,Årsværk_Sagsområder!$F8,Årsværk_Sagsområder!$H8,Årsværk_Sagsområder!$J8,Årsværk_Sagsområder!$L8,Årsværk_Sagsområder!$N8) -> 0.1220593671
D10: Elev | E10: 6.70431928 | F10: 6.614554228 | G10: 5.532584545 | H10: 0.09658710631 | I10: 0.1063829557 | J10: =G10/SUM(G10,Årsværk_Sagsområder!$F9,Årsværk_Sagsområder!$H9,Årsværk_Sagsområder!$J9,Årsværk_Sagsområder!$L9,Årsværk_Sagsområder!$N9) -> 0.08872025565
D11: Fleks | E11: 13.13938084 | F11: 10.01690349 | G11: 13.28408046 | H11: 0.346892912 | I11: 0.2443045589 | J11: =G11/SUM(G11,Årsværk_Sagsområder!$F10,Årsværk_Sagsområder!$H10,Årsværk_Sagsområder!$J10,Årsværk_Sagsområder!$L10,Årsværk_Sagsområder!$N10) -> 0.3207923287
D12: Øvrige | E12: 74.8057317 | F12: 68.6490351 | G12: 74.02221247 | H12: 0.786190053 | I12: 0.7347349283 | J12: =G12/SUM(G12,Årsværk_Sagsområder!$F11,Årsværk_Sagsområder!$H11,Årsværk_Sagsområder!$J11,Årsværk_Sagsområder!$L11,Årsværk_Sagsområder!$N11) -> 0.7093390157
D13: Samlet | E13: 224.0110832 | F13: 213.1748797 | G13: 216.7211574 | H13: 0.1561427278 | I13: 0.1480792941 | J13: =G13/SUM(Årsværk_Sagsområder!F7:F11,Årsværk_Sagsområder!H7:H11,Årsværk_Sagsområder!J7:J11,Årsværk_Sagsområder!L7:L11,Årsværk_Sagsområder!N7:N11) -> 0.1781549162
D14: - ekskl. fleks og elever | E14: 204.1673831 | F14: 196.543422 | G14: 197.9044924 | H14: 0.1537236151 | I14: 0.1473496342 | J14: =G14/SUM(Årsværk_Sagsområder!F7:F8,Årsværk_Sagsområder!F11,Årsværk_Sagsområder!H7:H8,Årsværk_Sagsområder!H11,Årsværk_Sagsområder!J7:J8,Årsværk_Sagsområder!J11,Årsværk_Sagsområder!L7:L8,Årsværk_Sagsområder!L11,Årsværk_Sagsområder!N7:N8,Årsværk_Sagsområder!N11) -> 0.1749010761
B15: EID | C15: Ret
B16: 901 | C16: Retten i Hjørring | D16: Jurister | E16: 0.979805352 | F16: 0.8152823554 | G16: 0.7062310244 | H16: 0.07501803869 | I16: 0.06467143261 | J16: =G16/SUM(Årsværk_Sagsområder!F13,Årsværk_Sagsområder!H13,Årsværk_Sagsområder!J13,Årsværk_Sagsområder!L13,Årsværk_Sagsområder!N13,G16) -> 0.06518773119
B17: 901 | C17: Retten i Hjørring | D17: Kontor | E17: 3.811101133 | F17: 3.567526418 | G17: 3.157681579 | H17: 0.1386940301 | I17: 0.1318640868 | J17: =G17/SUM(Årsværk_Sagsområder!F14,Årsværk_Sagsområder!H14,Årsværk_Sagsområder!J14,Årsværk_Sagsområder!L14,Årsværk_Sagsområder!N14,G17) -> 0.1271706039
B18: 901 | C18: Retten i Hjørring | D18: Elev | E18: 0.6821767098 | F18: 0.02782700998 | G18: 0.1524255866 | H18: 0.2942268452 | I18: 0.0180141578 | J18: =G18/SUM(Årsværk_Sagsområder!F15,Årsværk_Sagsområder!H15,Årsværk_Sagsområder!J15,Årsværk_Sagsområder!L15,Årsværk_Sagsområder!N15,G18) -> 0.07207232102
B19: 901 | C19: Retten i Hjørring | D19: Fleks | E19: 0 | F19: 0 | G19: 0.039635784 | H19: 0 | I19: 0 | J19: =G19/SUM(Årsværk_Sagsområder!F16,Årsværk_Sagsområder!H16,Årsværk_Sagsområder!J16,Årsværk_Sagsområder!L16,Årsværk_Sagsområder!N16,G19) -> 0.05747898546
B20: 901 | C20: Retten i Hjørring | D20: Øvrige | E20: 2.083776565 | F20: 2.07055897 | G20: 2.035579711 | H20: 0.7012729824 | I20: 0.8180179953 | J20: =G20/SUM(Årsværk_Sagsområder!F17,Årsværk_Sagsområder!H17,Årsværk_Sagsområder!J17,Årsværk_Sagsområder!L17,Årsværk_Sagsområder!N17,G20) -> 0.6680629067
B21: 901 | C21: Retten i Hjørring | D21: Samlet | E21: =SUM(E16:E20) -> 7.55685976 | F21: =SUM(F16:F20) -> 6.481194753 | G21: =SUM(G16:G20) -> 6.091553685 | H21: 0.161184571 | I21: 0.1454211175 | J21: =G21/N21 -> 0.1467294906 | N21: =SUM(Årsværk_Sagsområder!F13:F17,Årsværk_Sagsområder!H13:H17,Årsværk_Sagsområder!J13:J17,Årsværk_Sagsområder!L13:L17,Årsværk_Sagsområder!N13:N17)+G21 -> 41.51553761
D22: - ekskl. fleks og elever | E22: =E21-E19-E18 -> 6.874683051 | F22: =F21-F19-F18 -> 6.453367743 | G22: =G21-G19-G18 -> 5.899492314 | H22: 0.1579993544 | I22: 0.1532268379 | J22: =G22/N21 -> 0.1421032378
B23: 902 | C23: Retten i Aalborg | D23: Jurister | E23: 1.545129568 | F23: 1.298834898 | G23: 1.033659928 | H23: 0.07443498313 | I23: 0.05981513887 | J23: =G23/SUM(Årsværk_Sagsområder!F18,Årsværk_Sagsområder!H18,Årsværk_Sagsområder!J18,Årsværk_Sagsområder!L18,Årsværk_Sagsområder!N18,G23) -> 0.051086267
B24: 902 | C24: Retten i Aalborg | D24: Kontor | E24: 4.061157816 | F24: 3.670466064 | G24: 2.852426111 | H24: 0.09404655451 | I24: 0.08647999406 | J24: =G24/SUM(Årsværk_Sagsområder!F19,Årsværk_Sagsområder!H19,Årsværk_Sagsområder!J19,Årsværk_Sagsområder!L19,Årsværk_Sagsområder!N19,G24) -> 0.06981910309
B25: 902 | C25: Retten i Aalborg | D25: Elev | E25: 0.2950296413 | F25: 0.3763501538 | G25: 0.2446615011 | H25: 0.05873480838 | I25: 0.07652659749 | J25: =G25/SUM(Årsværk_Sagsområder!F20,Årsværk_Sagsområder!H20,Årsværk_Sagsområder!J20,Årsværk_Sagsområder!L20,Årsværk_Sagsområder!N20,G25) -> 0.04373875988
B26: 902 | C26: Retten i Aalborg | D26: Fleks | E26: 1.158934155 | F26: 0.7547634388 | G26: 1.076863245 | H26: 0.9122448912 | I26: 0.8556535487 | J26: =G26/SUM(Årsværk_Sagsområder!F21,Årsværk_Sagsområder!H21,Årsværk_Sagsområder!J21,Årsværk_Sagsområder!L21,Årsværk_Sagsområder!N21,G26) -> 0.9045242409 | N26: =SUM(Årsværk_Sagsområder!F18:F22,Årsværk_Sagsområder!H18:H22,Årsværk_Sagsområder!J18:J22,Årsværk_Sagsområder!L18:L22,Årsværk_Sagsområder!N18:N22)+G28 -> 72.78104876
B27: 902 | C27: Retten i Aalborg | D27: Øvrige | E27: 0.8945238677 | F27: 0.9597179419 | G27: 2.373194142 | H27: 0.2649491198 | I27: 0.3033616476 | J27: =G27/SUM(Årsværk_Sagsområder!F22,Årsværk_Sagsområder!H22,Årsværk_Sagsområder!J22,Årsværk_Sagsområder!L22,Årsværk_Sagsområder!N22,G27) -> 0.4834689044
B28: 902 | C28: Retten i Aalborg | D28: Samlet | E28: =SUM(E23:E27) -> 7.954775048 | F28: =SUM(F23:F27) -> 7.060132496 | G28: =SUM(G23:G27) -> 7.580804926 | H28: 0.1080661474 | I28: 0.09655449819 | J28: =G28/N26 -> 0.1041590504
D29: - ekskl. fleks og elever | E29: =E28-E26-E25 -> 6.500811252 | F29: =F28-F26-F25 -> 5.929018903 | G29: =G28-G26-G25 -> 6.259280181 | H29: 0.09657050017 | I29: 0.08807124737 | J29: =G29/N26 -> 0.0860015112
B30: 903 | C30: Retten i Randers | D30: Jurister | E30: 1.212800198 | F30: 0.8066277 | G30: 0.9328966636 | H30: 0.0938781951 | I30: 0.0626806358 | J30: =G30/SUM(Årsværk_Sagsområder!F23,Årsværk_Sagsområder!H23,Årsværk_Sagsområder!J23,Årsværk_Sagsområder!L23,Årsværk_Sagsområder!N23,G30) -> 0.0749807659
B31: 903 | C31: Retten i Randers | D31: Kontor | E31: 4.181713174 | F31: 3.04225371 | G31: 2.907184075 | H31: 0.1467749305 | I31: 0.1041486782 | J31: =G31/SUM(Årsværk_Sagsområder!F24,Årsværk_Sagsområder!H24,Årsværk_Sagsområder!J24,Årsværk_Sagsområder!L24,Årsværk_Sagsområder!N24,G31) -> 0.1038193984 | N31: =SUM(Årsværk_Sagsområder!F23:F27,Årsværk_Sagsområder!H23:H27,Årsværk_Sagsområder!J23:J27,Årsværk_Sagsområder!L23:L27,Årsværk_Sagsområder!N23:N27)+G35 -> 48.3411767
B32: 903 | C32: Retten i Randers | D32: Elev | E32: 0.08990295386 | F32: 0.1930754926 | G32: 0 | H32: 0.03852857143 | I32: 0.08274285714 | J32: =G32/SUM(Årsværk_Sagsområder!F25,Årsværk_Sagsområder!H25,Årsværk_Sagsområder!J25,Årsværk_Sagsområder!L25,Årsværk_Sagsområder!N25,G32) -> 0
B33: 903 | C33: Retten i Randers | D33: Fleks | E33: 1.512766265 | F33: 1.371406242 | G33: 1.495578154 | H33: 0.7599167454 | I33: 0.7489030495 | J33: =G33/SUM(Årsværk_Sagsområder!F26,Årsværk_Sagsområder!H26,Årsværk_Sagsområder!J26,Årsværk_Sagsområder!L26,Årsværk_Sagsområder!N26,G33) -> 0.7280551423
B34: 903 | C34: Retten i Randers | D34: Øvrige | E34: 2.143565846 | F34: 3.007968334 | G34: 3.395022743 | H34: 0.9608223537 | I34: 0.7736484373 | J34: =G34/SUM(Årsværk_Sagsområder!F27,Årsværk_Sagsområder!H27,Årsværk_Sagsområder!J27,Årsværk_Sagsområder!L27,Årsværk_Sagsområder!N27,G34) -> 0.8566576711
B35: 903 | C35: Retten i Randers | D35: Samlet | E35: =SUM(E30:E34) -> 9.140748437 | F35: =SUM(F30:F34) -> 8.421331478 | G35: =SUM(G30:G34) -> 8.730681635 | H35: 0.1905728066 | I35: 0.1679824169 | J35: =G35/N31 -> 0.1806054844
D36: - ekskl. fleks og elever | E36: =E35-E33-E32 -> 7.538079218 | F36: =F35-F33-F32 -> 6.856849744 | G36: =G35-G33-G32 -> 7.235103481 | H36: 0.1727313148 | I36: 0.1491671462 | J36: =G36/N31 -> 0.1496675086 | N36: =SUM(Årsværk_Sagsområder!F28:F32,Årsværk_Sagsområder!H28:H32,Årsværk_Sagsområder!J28:J32,Årsværk_Sagsområder!L28:L32,Årsværk_Sagsområder!N28:N32)+G42 -> 87.51049075
B37: 904 | C37: Retten i Aarhus | D37: Jurister | E37: 1.455997585 | F37: 1.308008361 | G37: 1.320403172 | H37: 0.05893135679 | I37: 0.04914278667 | J37: =G37/SUM(Årsværk_Sagsområder!F28,Årsværk_Sagsområder!H28,Årsværk_Sagsområder!J28,Årsværk_Sagsområder!L28,Årsværk_Sagsområder!N28,G37) -> 0.04702131783
B38: 904 | C38: Retten i Aarhus | D38: Kontor | E38: 5.017518869 | F38: 4.420166086 | G38: 4.538014095 | H38: 0.1105341056 | I38: 0.1054774078 | J38: =G38/SUM(Årsværk_Sagsområder!F29,Årsværk_Sagsområder!H29,Årsværk_Sagsområder!J29,Årsværk_Sagsområder!L29,Årsværk_Sagsområder!N29,G38) -> 0.09717942412
B39: 904 | C39: Retten i Aarhus | D39: Elev | E39: 0.2345726936 | F39: 0.4099565476 | G39: 0.01413899249 | H39: 0.0605503583 | I39: 0.1331693599 | J39: =G39/SUM(Årsværk_Sagsområder!F30,Årsværk_Sagsområder!H30,Årsværk_Sagsområder!J30,Årsværk_Sagsområder!L30,Årsværk_Sagsområder!N30,G39) -> 0.005186051861
B40: 904 | C40: Retten i Aarhus | D40: Fleks | E40: 1.010147905 | F40: 0.9169456367 | G40: 1.000046222 | H40: 0.3975880195 | I40: 0.3944802347 | J40: =G40/SUM(Årsværk_Sagsområder!F31,Årsværk_Sagsområder!H31,Årsværk_Sagsområder!J31,Årsværk_Sagsområder!L31,Årsværk_Sagsområder!N31,G40) -> 0.393612059
B41: 904 | C41: Retten i Aarhus | D41: Øvrige | E41: 6.190252621 | F41: 4.857266743 | G41: 4.760267232 | H41: 0.6734069106 | I41: 0.6500528957 | J41: =G41/SUM(Årsværk_Sagsområder!F32,Årsværk_Sagsområder!H32,Årsværk_Sagsområder!J32,Årsværk_Sagsområder!L32,Årsværk_Sagsområder!N32,G41) -> 0.6376584851 | N41: =SUM(Årsværk_Sagsområder!F33:F37,Årsværk_Sagsområder!H33:H37,Årsværk_Sagsområder!J33:J37,Årsværk_Sagsområder!L33:L37,Årsværk_Sagsområder!N33:N37)+G49 -> 52.94234316
B42: 904 | C42: Retten i Aarhus | D42: Samlet | E42: =SUM(E37:E41) -> 13.90848967 | F42: =SUM(F37:F41) -> 11.91234337 | G42: =SUM(G37:G41) -> 11.63286971 | H42: 0.162279109 | I42: 0.1458479646 | J42: =G42/N36 -> 0.1329311448
D43: - ekskl. fleks og elever | E43: =E42-E40-E39 -> 12.66376908 | F43: =F42-F40-F39 -> 10.58544119 | G43: =G42-G40-G39 -> 10.6186845 | H43: 0.1597095246 | I43: 0.1388326962 | J43: =G43/N36 -> 0.1213418461
B44: 905 | C44: Retten i Viborg | D44: Jurister | E44: 1.052306211 | F44: 1.112150143 | G44: 0.8694528753 | H44: 0.07842075926 | I44: 0.07410001904 | J44: =G44/SUM(Årsværk_Sagsområder!F33,Årsværk_Sagsområder!H33,Årsværk_Sagsområder!J33,Årsværk_Sagsområder!L33,Årsværk_Sagsområder!N33,G44) -> 0.06326782017
B45: 905 | C45: Retten i Viborg | D45: Kontor | E45: 3.682444159 | F45: 4.306073973 | G45: 3.500063575 | H45: 0.1233633103 | I45: 0.121934701 | J45: =G45/SUM(Årsværk_Sagsområder!F34,Årsværk_Sagsområder!H34,Årsværk_Sagsområder!J34,Årsværk_Sagsområder!L34,Årsværk_Sagsområder!N34,G45) -> 0.118458211
B46: 905 | C46: Retten i Viborg | D46: Elev | E46: 0.317063316 | F46: 0.1186528349 | G46: 0.09408869395 | H46: 0.07011944819 | I46: 0.02999101047 | J46: =G46/SUM(Årsværk_Sagsområder!F35,Årsværk_Sagsområder!H35,Årsværk_Sagsområder!J35,Årsværk_Sagsområder!L35,Årsværk_Sagsområder!N35,G46) -> 0.02162164088 | N46: =SUM(Årsværk_Sagsområder!F38:F42,Årsværk_Sagsområder!H38:H42,Årsværk_Sagsområder!J38:J42,Årsværk_Sagsområder!L38:L42,Årsværk_Sagsområder!N38:N42)+G56 -> 35.71346045
B47: 905 | C47: Retten i Viborg | D47: Fleks | E47: 0.678520355 | F47: 0.5646213138 | G47: 0.5358108411 | H47: 0.33925 | I47: 0.2530311566 | J47: =G47/SUM(Årsværk_Sagsområder!F36,Årsværk_Sagsområder!H36,Årsværk_Sagsområder!J36,Årsværk_Sagsområder!L36,Årsværk_Sagsområder!N36,G47) -> 0.2715620029
B48: 905 | C48: Retten i Viborg | D48: Øvrige | E48: 3.017961725 | F48: 2.770720036 | G48: 2.410913737 | H48: 0.7544885451 | I48: 0.8139050641 | J48: =G48/SUM(Årsværk_Sagsområder!F37,Årsværk_Sagsområder!H37,Årsværk_Sagsområder!J37,Årsværk_Sagsområder!L37,Årsværk_Sagsområder!N37,G48) -> 0.7243385172
B49: 905 | C49: Retten i Viborg | D49: Samlet | E49: =SUM(E44:E48) -> 8.748295766 | F49: =SUM(F44:F48) -> 8.872218301 | G49: =SUM(G44:G48) -> 7.410329722 | H49: 0.1626350858 | I49: 0.1480793437 | J49: =G49/N41 -> 0.1399698102
D50: - ekskl. fleks og elever | E50: =E49-E47-E46 -> 7.752712095 | F50: =F49-F47-F46 -> 8.188944152 | G50: =G49-G47-G46 -> 6.780430187 | H50: 0.1640121596 | I50: 0.1524159962 | J50: =G50/N41 -> 0.12807197
B51: 906 | C51: Retten i Holstebro | D51: Jurister | E51: 0.8970766909 | F51: 1.042536567 | G51: 0.872174778 | H51: 0.1015357745 | I51: 0.1135799321 | J51: =G51/SUM(Årsværk_Sagsområder!F38,Årsværk_Sagsområder!H38,Årsværk_Sagsområder!J38,Årsværk_Sagsområder!L38,Årsværk_Sagsområder!N38,G51) -> 0.09889104685 | N51: =SUM(Årsværk_Sagsområder!F43:F47,Årsværk_Sagsområder!H43:H47,Årsværk_Sagsområder!J43:J47,Årsværk_Sagsområder!L43:L47,Årsværk_Sagsområder!N43:N47)+G62 -> 41.40737436
B52: 906 | C52: Retten i Holstebro | D52: Kontor | E52: 1.118436946 | F52: 1.172113686 | G52: 1.626264025 | H52: 0.05598113132 | I52: 0.06092885091 | J52: =G52/SUM(Årsværk_Sagsområder!F39,Årsværk_Sagsområder!H39,Årsværk_Sagsområder!J39,Årsværk_Sagsområder!L39,Årsværk_Sagsområder!N39,G52) -> 0.08169779118
B53: 906 | C53: Retten i Holstebro | D53: Elev | E53: 0.03258914048 | F53: 0.3094134147 | G53: 0.124500393 | H53: 0.009829358701 | I53: 0.1201596161 | J53: =G53/SUM(Årsværk_Sagsområder!F40,Årsværk_Sagsområder!H40,Årsværk_Sagsområder!J40,Årsværk_Sagsområder!L40,Årsværk_Sagsområder!N40,G53) -> 0.06355887373
B54: 906 | C54: Retten i Holstebro | D54: Fleks | E54: 1.205124506 | F54: 1.166185455 | G54: 1.740717524 | H54: 0.7115966499 | I54: 0.5318008276 | J54: =G54/SUM(Årsværk_Sagsområder!F41,Årsværk_Sagsområder!H41,Årsværk_Sagsområder!J41,Årsværk_Sagsområder!L41,Årsværk_Sagsområder!N41,G54) -> 0.7433666893
B55: 906 | C55: Retten i Holstebro | D55: Øvrige | E55: 2.722522269 | F55: 1.711242721 | G55: 2.012032781 | H55: 0.9571012177 | I55: 0.8171925357 | J55: =G55/SUM(Årsværk_Sagsområder!F42,Årsværk_Sagsområder!H42,Årsværk_Sagsområder!J42,Årsværk_Sagsområder!L42,Årsværk_Sagsområder!N42,G55) -> 0.7486438606
B56: 906 | C56: Retten i Holstebro | D56: Samlet | E56: =SUM(E51:E55) -> 5.975749553 | F56: =SUM(F51:F55) -> 5.401491843 | G56: =SUM(G51:G55) -> 6.375689501 | H56: 0.1629713284 | I56: 0.1451286552 | J56: =G56/N46 -> 0.1785234312 | N56: =SUM(Årsværk_Sagsområder!F48:F52,Årsværk_Sagsområder!H48:H52,Årsværk_Sagsområder!J48:J52,Årsværk_Sagsområder!L48:L52,Årsværk_Sagsområder!N48:N52)+G70 -> 44.07840813
D57: - ekskl. fleks og elever | E57: =E56-E54-E53 -> 4.738035906 | F57: =F56-F54-F53 -> 3.925892974 | G57: =G56-G54-G53 -> 4.510471583 | H57: 0.1496610196 | I57: 0.1267876521 | J57: =G57/N46 -> 0.1262961227
B58: 907 | C58: Retten i Herning | D58: Jurister | E58: 0.3840506525 | F58: 0.06692932713 | G58: 0.4326492756 | H58: 0.03255027909 | I58: 0.00519131802 | J58: =G58/SUM(Årsværk_Sagsområder!F43,Årsværk_Sagsområder!H43,Årsværk_Sagsområder!J43,Årsværk_Sagsområder!L43,Årsværk_Sagsområder!N43,G58) -> 0.03332025434
B59: 907 | C59: Retten i Herning | D59: Kontor | E59: 1.820932966 | F59: 1.504049767 | G59: 1.480437953 | H59: 0.08202315768 | I59: 0.06564001776 | J59: =G59/SUM(Årsværk_Sagsområder!F44,Årsværk_Sagsområder!H44,Årsværk_Sagsområder!J44,Årsværk_Sagsområder!L44,Årsværk_Sagsområder!N44,G59) -> 0.06461374688
B60: 907 | C60: Retten i Herning | D60: Elev | E60: 0.06998005353 | F60: 0 | G60: 0.03971787541 | H60: 0.02140940126 | I60: 0 | J60: =G60/SUM(Årsværk_Sagsområder!F45,Årsværk_Sagsområder!H45,Årsværk_Sagsområder!J45,Årsværk_Sagsområder!L45,Årsværk_Sagsområder!N45,G60) -> 0.01276256659
B61: 907 | C61: Retten i Herning | D61: Fleks | E61: 0 | F61: 0 | G61: 0 | H61: - | I61: - | J61: =G61/SUM(Årsværk_Sagsområder!F46,Årsværk_Sagsområder!H46,Årsværk_Sagsområder!J46,Årsværk_Sagsområder!L46,Årsværk_Sagsområder!N46,G61) -> 0 | N61: =SUM(Årsværk_Sagsområder!F53:F57,Årsværk_Sagsområder!H53:H57,Årsværk_Sagsområder!J53:J57,Årsværk_Sagsområder!L53:L57,Årsværk_Sagsområder!N53:N57)+G77 -> 69.568599
B62: 907 | C62: Retten i Herning | D62: Øvrige | E62: 3.23803 | F62: 2.721783436 | G62: 2.793872146 | H62: 1 | I62: 0.8385735831 | J62: =G62/SUM(Årsværk_Sagsområder!F47,Årsværk_Sagsområder!H47,Årsværk_Sagsområder!J47,Årsværk_Sagsområder!L47,Årsværk_Sagsområder!N47,G62) -> 0.6937680672
B63: 907 | C63: Retten i Herning | D63: Samlet | E63: =SUM(E58:E62) -> 5.512993672 | F63: =SUM(F58:F62) -> 4.29276253 | G63: =SUM(G58:G62) -> 4.74667725 | H63: 0.1361044475 | I63: 0.1018433052 | J63: =G63/N51 -> 0.1146336208
D64: - ekskl. fleks og elever | E64: =E63-E61-E60 -> 5.443013618 | F64: =F63-F61-F60 -> 4.29276253 | G64: =G63-G61-G60 -> 4.706959374 | H64: 0.1461723803 | I64: 0.109924578 | J64: =G63/N51 -> 0.1146336208
B65: 908 | C65: Retten i Horsens | D65: Jurister | E65: 0.8168273814 | F65: 0.9476928099 | G65: 0.7772079493 | H65: 0.06840596182 | I65: 0.08147549446 | J65: =G65/SUM(Årsværk_Sagsområder!F48,Årsværk_Sagsområder!H48,Årsværk_Sagsområder!J48,Årsværk_Sagsområder!L48,Årsværk_Sagsområder!N48,G65) -> 0.05899346059
B66: 908 | C66: Retten i Horsens | D66: Kontor | E66: 2.643846305 | F66: 2.184604468 | G66: 1.857554111 | H66: 0.1238192838 | I66: 0.1027066044 | J66: =G66/SUM(Årsværk_Sagsområder!F49,Årsværk_Sagsområder!H49,Årsværk_Sagsområder!J49,Årsværk_Sagsområder!L49,Årsværk_Sagsområder!N49,G66) -> 0.08611291921 | N66: =SUM(Årsværk_Sagsområder!F58:F62,Årsværk_Sagsområder!H58:H62,Årsværk_Sagsområder!J58:J62,Årsværk_Sagsområder!L58:L62,Årsværk_Sagsområder!N58:N62)+G84 -> 50.31704162
B67: 908 | C67: Retten i Horsens | D67: Elev | E67: 0.5830559473 | F67: 0.1886037586 | G67: 0.3908520144 | H67: 0.1731004413 | I67: 0.0806711982 | J67: =G67/SUM(Årsværk_Sagsområder!F50,Årsværk_Sagsområder!H50,Årsværk_Sagsområder!J50,Årsværk_Sagsområder!L50,Årsværk_Sagsområder!N50,G67) -> 0.1768553153
B68: 908 | C68: Retten i Horsens | D68: Fleks | E68: 0.4574163813 | F68: 0.1666865859 | G68: 0.2364289438 | H68: 0.2018696241 | I68: 0.1066058298 | J68: =G68/SUM(Årsværk_Sagsområder!F51,Årsværk_Sagsområder!H51,Årsværk_Sagsområder!J51,Årsværk_Sagsområder!L51,Årsværk_Sagsområder!N51,G68) -> 0.1169560628
B69: 908 | C69: Retten i Horsens | D69: Øvrige | E69: 3.044566266 | F69: 1.779857309 | G69: 2.522550696 | H69: 0.6485182635 | I69: 0.3826851836 | J69: =G69/SUM(Årsværk_Sagsområder!F52,Årsværk_Sagsområder!H52,Årsværk_Sagsområder!J52,Årsværk_Sagsområder!L52,Årsværk_Sagsområder!N52,G69) -> 0.4944956843
B70: 908 | C70: Retten i Horsens | D70: Samlet | E70: =SUM(E65:E69) -> 7.545712281 | F70: =SUM(F65:F69) -> 5.267444931 | G70: =SUM(G65:G69) -> 5.784593715 | H70: 0.1729787191 | I70: 0.1264411931 | J70: =G70/N56 -> 0.1312341793
D71: - ekskl. fleks og elever | E71: =E70-E68-E67 -> 6.505239952 | F71: =F70-F68-F67 -> 4.912154587 | G71: =G70-G68-G67 -> 5.157312757 | H71: 0.1712446474 | I71: 0.1305809057 | J71: =G71/N56 -> 0.1170031536 | N71: =SUM(Årsværk_Sagsområder!F63:F67,Årsværk_Sagsområder!H63:H67,Årsværk_Sagsområder!J63:J67,Årsværk_Sagsområder!L63:L67,Årsværk_Sagsområder!N63:N67)+G91 -> 56.41494013
B72: 909 | C72: Retten i Kolding | D72: Jurister | E72: 0.7863987046 | F72: 2.099945617 | G72: 0.8764014276 | H72: 0.03541878616 | I72: 0.09030403401 | J72: =G72/SUM(Årsværk_Sagsområder!F53,Årsværk_Sagsområder!H53,Årsværk_Sagsområder!J53,Årsværk_Sagsområder!L53,Årsværk_Sagsområder!N53,G72) -> 0.03829828993
B73: 909 | C73: Retten i Kolding | D73: Kontor | E73: 3.960523647 | F73: 4.707553016 | G73: 5.055416905 | H73: 0.101521432 | I73: 0.1249862022 | J73: =G73/SUM(Årsværk_Sagsområder!F54,Årsværk_Sagsområder!H54,Årsværk_Sagsområder!J54,Årsværk_Sagsområder!L54,Årsværk_Sagsområder!N54,G73) -> 0.1389802019
B74: 909 | C74: Retten i Kolding | D74: Elev | E74: 0.03950186727 | F74: 0.1911103419 | G74: 0.2412080193 | H74: 0.01077272727 | I74: 0.04496470588 | J74: =G74/SUM(Årsværk_Sagsområder!F55,Årsværk_Sagsområder!H55,Årsværk_Sagsområder!J55,Årsværk_Sagsområder!L55,Årsværk_Sagsområder!N55,G74) -> 0.03808521613
B75: 909 | C75: Retten i Kolding | D75: Fleks | E75: 0.9599778557 | F75: 0 | G75: 0.003382101551 | H75: 0.3119515475 | I75: 0 | J75: =G75/SUM(Årsværk_Sagsområder!F56,Årsværk_Sagsområder!H56,Årsværk_Sagsområder!J56,Årsværk_Sagsområder!L56,Årsværk_Sagsområder!N56,G75) -> 0.001800608819
B76: 909 | C76: Retten i Kolding | D76: Øvrige | E76: 2.50427129 | F76: 1.266225212 | G76: 1.492259637 | H76: 0.7798552848 | I76: 0.835551045 | J76: =G76/SUM(Årsværk_Sagsområder!F57,Årsværk_Sagsområder!H57,Årsværk_Sagsområder!J57,Årsværk_Sagsområder!L57,Årsværk_Sagsområder!N57,G76) -> 0.711189098 | N76: =SUM(Årsværk_Sagsområder!F68:F72,Årsværk_Sagsområder!H68:H72,Årsværk_Sagsområder!J68:J72,Årsværk_Sagsområder!L68:L72,Årsværk_Sagsområder!N68:N72)+G98 -> 71.21530422
B77: 909 | C77: Retten i Kolding | D77: Samlet | E77: =SUM(E72:E76) -> 8.250673365 | F77: =SUM(F72:F76) -> 8.264834187 | G77: =SUM(G72:G76) -> 7.66866809 | H77: 0.1159291882 | I77: 0.1197650914 | J77: =G77/N61 -> 0.1102317454
D78: - ekskl. fleks og elever | E78: =E77-E75-E74 -> 7.251193642 | F78: =F77-F75-F74 -> 8.073723845 | G78: =G77-G75-G74 -> 7.424077969 | H78: 0.1125511366 | I78: 0.1293619305 | J78: =G78/N61 -> 0.1067159333
B79: 910 | C79: Retten i Esbjerg | D79: Jurister | E79: 0.773218967 | F79: 1.350454576 | G79: 1.640581874 | H79: 0.05260007285 | I79: 0.08876253934 | J79: =G79/SUM(Årsværk_Sagsområder!F58,Årsværk_Sagsområder!H58,Årsværk_Sagsområder!J58,Årsværk_Sagsområder!L58,Årsværk_Sagsområder!N58,G79) -> 0.1044745961
B80: 910 | C80: Retten i Esbjerg | D80: Kontor | E80: 1.996903157 | F80: 2.558491077 | G80: 2.409512947 | H80: 0.07523335555 | I80: 0.09707923026 | J80: =G80/SUM(Årsværk_Sagsområder!F59,Årsværk_Sagsområder!H59,Årsværk_Sagsområder!J59,Årsværk_Sagsområder!L59,Årsværk_Sagsområder!N59,G80) -> 0.08701358822
B81: 910 | C81: Retten i Esbjerg | D81: Elev | E81: 0.03850176 | F81: 0.1054147653 | G81: 0 | H81: 0.0165 | I81: 0.05341350926 | J81: =G81/SUM(Årsværk_Sagsområder!F60,Årsværk_Sagsområder!H60,Årsværk_Sagsområder!J60,Årsværk_Sagsområder!L60,Årsværk_Sagsområder!N60,G81) -> 0 | N81: =SUM(Årsværk_Sagsområder!F73:F77,Årsværk_Sagsområder!H73:H77,Årsværk_Sagsområder!J73:J77,Årsværk_Sagsområder!L73:L77,Årsværk_Sagsområder!N73:N77)+G105 -> 34.55385189
B82: 910 | C82: Retten i Esbjerg | D82: Fleks | E82: 0 | F82: 0 | G82: 0 | H82: 0 | I82: 0 | J82: =G82/SUM(Årsværk_Sagsområder!F61,Årsværk_Sagsområder!H61,Årsværk_Sagsområder!J61,Årsværk_Sagsområder!L61,Årsværk_Sagsområder!N61,G82) -> 0
B83: 910 | C83: Retten i Esbjerg | D83: Øvrige | E83: 4.958875218 | F83: 4.46529122 | G83: 4.364872419 | H83: 0.9539380451 | I83: 0.8562875443 | J83: =G83/SUM(Årsværk_Sagsområder!F62,Årsværk_Sagsområder!H62,Årsværk_Sagsområder!J62,Årsværk_Sagsområder!L62,Årsværk_Sagsområder!N62,G83) -> 0.8571093889
B84: 910 | C84: Retten i Esbjerg | D84: Samlet | E84: =SUM(E79:E83) -> 7.767499103 | F84: =SUM(F79:F83) -> 8.479651639 | G84: =SUM(G79:G83) -> 8.414967239 | H84: 0.1560536592 | I84: 0.1711464607 | J84: =G84/N66 -> 0.1672389109
D85: - ekskl. fleks og elever | E85: =E84-E82-E81 -> 7.728997343 | F85: =F84-F82-F81 -> 8.374236874 | G85: =G84-G82-G81 -> 8.414967239 | H85: 0.1664259101 | I85: 0.1789993351 | J85: =G85/N66 -> 0.1672389109
B86: 911 | C86: Retten i Sønderborg | D86: Jurister | E86: 1.262381673 | F86: 0.9538050243 | G86: 1.073478389 | H86: 0.08399375848 | I86: 0.05399640129 | J86: =G86/SUM(Årsværk_Sagsområder!F63,Årsværk_Sagsområder!H63,Årsværk_Sagsområder!J63,Årsværk_Sagsområder!L63,Årsværk_Sagsområder!N63,G86) -> 0.06174246222 | N86: =SUM(Årsværk_Sagsområder!F78:F82,Årsværk_Sagsområder!H78:H82,Årsværk_Sagsområder!J78:J82,Årsværk_Sagsområder!L78:L82,Årsværk_Sagsområder!N78:N82)+G112 -> 48.16331611
B87: 911 | C87: Retten i Sønderborg | D87: Kontor | E87: 4.319873109 | F87: 5.489585435 | G87: 4.532469969 | H87: 0.1311393493 | I87: 0.166569886 | J87: =G87/SUM(Årsværk_Sagsområder!F64,Årsværk_Sagsområder!H64,Årsværk_Sagsområder!J64,Årsværk_Sagsområder!L64,Årsværk_Sagsområder!N64,G87) -> 0.1375357666
B88: 911 | C88: Retten i Sønderborg | D88: Elev | E88: 0.08543696425 | F88: 0.03760164845 | G88: 0.01706734933 | H88: 0.064075 | I88: 0.03104485045 | J88: =G88/SUM(Årsværk_Sagsområder!F65,Årsværk_Sagsområder!H65,Årsværk_Sagsområder!J65,Årsværk_Sagsområder!L65,Årsværk_Sagsområder!N65,G88) -> 0.008533475558
B89: 911 | C89: Retten i Sønderborg | D89: Fleks | E89: 1.048025387 | F89: 0.2086624 | G89: 0.8784850692 | H89: 0.7354770571 | I89: 0.16 | J89: =G89/SUM(Årsværk_Sagsområder!F66,Årsværk_Sagsområder!H66,Årsværk_Sagsområder!J66,Årsværk_Sagsområder!L66,Årsværk_Sagsområder!N66,G89) -> 0.7708173077
B90: 911 | C90: Retten i Sønderborg | D90: Øvrige | E90: 2.038782078 | F90: 2.029706519 | G90: 2.028673349 | H90: 0.8933641571 | I90: 0.7702786929 | J90: =G90/SUM(Årsværk_Sagsområder!F67,Årsværk_Sagsområder!H67,Årsværk_Sagsområder!J67,Årsværk_Sagsområder!L67,Årsværk_Sagsområder!N67,G90) -> 0.6914407559
B91: 911 | C91: Retten i Sønderborg | D91: Samlet | E91: =SUM(E86:E90) -> 8.754499211 | F91: =SUM(F86:F90) -> 8.719361027 | G91: =SUM(G86:G90) -> 8.530174126 | H91: 0.1651447993 | I91: 0.1596957879 | J91: =G91/N71 -> 0.1512041687 | N91: =SUM(Årsværk_Sagsområder!F83:F87,Årsværk_Sagsområder!H83:H87,Årsværk_Sagsområder!J83:J87,Årsværk_Sagsområder!L83:L87,Årsværk_Sagsområder!N83:N87)+G119 -> 62.87110074
D92: - ekskl. fleks og elever | E92: =E91-E89-E88 -> 7.62103686 | F92: =F91-F89-F88 -> 8.473096978 | G92: =G91-G89-G88 -> 7.634621707 | H92: 0.1516542765 | I92: 0.1626889997 | J92: =G92/N71 -> 0.1353297848
B93: 912 | C93: Retten i Odense | D93: Jurister | E93: 0.7367667803 | F93: 0.4815569811 | G93: 0.9742887743 | H93: 0.03564661907 | I93: 0.01578775741 | J93: =G93/SUM(Årsværk_Sagsområder!F68,Årsværk_Sagsområder!H68,Årsværk_Sagsområder!J68,Årsværk_Sagsområder!L68,Årsværk_Sagsområder!N68,G93) -> 0.04542796015
B94: 912 | C94: Retten i Odense | D94: Kontor | E94: 3.513672982 | F94: 3.316371453 | G94: 3.108366114 | H94: 0.0774259445 | I94: 0.07313781788 | J94: =G94/SUM(Årsværk_Sagsområder!F69,Årsværk_Sagsområder!H69,Årsværk_Sagsområder!J69,Årsværk_Sagsområder!L69,Årsværk_Sagsområder!N69,G94) -> 0.07666286214
B95: 912 | C95: Retten i Odense | D95: Elev | E95: 0 | F95: 0.02653446703 | G95: 0.003100144309 | H95: 0 | I95: 0.008806514006 | J95: =G95/SUM(Årsværk_Sagsområder!F70,Årsværk_Sagsområder!H70,Årsværk_Sagsområder!J70,Årsværk_Sagsområder!L70,Årsværk_Sagsområder!N70,G95) -> 0.0008599068396
B96: 912 | C96: Retten i Odense | D96: Fleks | E96: 0 | F96: 0.001976701692 | G96: 0 | H96: 0 | I96: 0.004211303617 | J96: =G96/SUM(Årsværk_Sagsområder!F71,Årsværk_Sagsområder!H71,Årsværk_Sagsområder!J71,Årsværk_Sagsområder!L71,Årsværk_Sagsområder!N71,G96) -> 0 | N96: =SUM(Årsværk_Sagsområder!F88:F92,Årsværk_Sagsområder!H88:H92,Årsværk_Sagsområder!J88:J92,Årsværk_Sagsområder!L88:L92,Årsværk_Sagsområder!N88:N92)+G126 -> 43.5223174
B97: 912 | C97: Retten i Odense | D97: Øvrige | E97: 4.745342033 | F97: 4.766623657 | G97: 4.889548904 | H97: 0.9605897196 | I97: 0.8324902285 | J97: =G97/SUM(Årsværk_Sagsområder!F72,Årsværk_Sagsområder!H72,Årsværk_Sagsområder!J72,Årsværk_Sagsområder!L72,Årsværk_Sagsområder!N72,G97) -> 0.9986558576
B98: 912 | C98: Retten i Odense | D98: Samlet | E98: =SUM(E93:E97) -> 8.995781794 | F98: =SUM(F93:F97) -> 8.593063259 | G98: =SUM(G93:G97) -> 8.975303936 | H98: 0.1198751887 | I98: 0.09999673912 | J98: =G98/N76 -> 0.1260305497
D99: - ekskl. fleks og elever | E99: =E98-E96-E95 -> 8.995781794 | F99: =F98-F96-F95 -> 8.564552091 | G99: =G98-G96-G95 -> 8.972203792 | H99: 0.1267194639 | I99: 0.1043560944 | J99: =G99/N76 -> 0.1259870177
B100: 913 | C100: Retten i Svendborg | D100: Jurister | E100: 0.8290483073 | F100: 0.805372161 | G100: 0.6760949382 | H100: 0.07916068848 | I100: 0.0798789338 | J100: =G100/SUM(Årsværk_Sagsområder!F73,Årsværk_Sagsområder!H73,Årsværk_Sagsområder!J73,Årsværk_Sagsområder!L73,Årsværk_Sagsområder!N73,G100) -> 0.06779345411
B101: 913 | C101: Retten i Svendborg | D101: Kontor | E101: 2.561741401 | F101: 2.46952261 | G101: 2.162816514 | H101: 0.1235328464 | I101: 0.1264465496 | J101: =G101/SUM(Årsværk_Sagsområder!F74,Årsværk_Sagsområder!H74,Årsværk_Sagsområder!J74,Årsværk_Sagsområder!L74,Årsværk_Sagsområder!N74,G101) -> 0.1135821133 | N101: =SUM(Årsværk_Sagsområder!F93:F97,Årsværk_Sagsområder!H93:H97,Årsværk_Sagsområder!J93:J97,Årsværk_Sagsområder!L93:L97,Årsværk_Sagsområder!N93:N97)+G133 -> 61.88225217
B102: 913 | C102: Retten i Svendborg | D102: Elev | E102: 0.7194469163 | F102: 0.43208368 | G102: 0.07366848 | H102: 0.4195588425 | I102: 0.4438 | J102: =G102/SUM(Årsværk_Sagsområder!F75,Årsværk_Sagsområder!H75,Årsværk_Sagsområder!J75,Årsværk_Sagsområder!L75,Årsværk_Sagsområder!N75,G102) -> 0.0816
B103: 913 | C103: Retten i Svendborg | D103: Fleks | E103: 0.209606288 | F103: 0.006600198 | G103: 0 | H103: 0.2096 | I103: 0.0066 | J103: =G103/SUM(Årsværk_Sagsområder!F76,Årsværk_Sagsområder!H76,Årsværk_Sagsområder!J76,Årsværk_Sagsområder!L76,Årsværk_Sagsområder!N76,G103) -> 0
B104: 913 | C104: Retten i Svendborg | D104: Øvrige | E104: 3.743422805 | F104: 3.539517716 | G104: 2.974555528 | H104: 0.7958210414 | I104: 0.8034844459 | J104: =G104/SUM(Årsværk_Sagsområder!F77,Årsværk_Sagsområder!H77,Årsværk_Sagsområder!J77,Årsværk_Sagsområder!L77,Årsværk_Sagsområder!N77,G104) -> 0.7856119009
B105: 913 | C105: Retten i Svendborg | D105: Samlet | E105: =SUM(E100:E104) -> 8.063265719 | F105: =SUM(F100:F104) -> 7.253096365 | G105: =SUM(G100:G104) -> 5.887135461 | H105: 0.208736288 | I105: 0.2015229287 | J105: =G105/N81 -> 0.170375664
D106: - ekskl. fleks og elever | E106: =E105-E103-E102 -> 7.134212514 | F106: =F105-F103-F102 -> 6.814412487 | G106: =G105-G103-G102 -> 5.813466981 | H106: 0.1986462307 | I106: 0.2003190827 | J106: =G106/N81 -> 0.1682436736 | N106: =SUM(Årsværk_Sagsområder!F98:F102,Årsværk_Sagsområder!H98:H102,Årsværk_Sagsområder!J98:J102,Årsværk_Sagsområder!L98:L102,Årsværk_Sagsområder!N98:N102)+G140 -> 44.04089812
B107: 914 | C107: Retten i Nykøbing F. | D107: Jurister | E107: 1.073025539 | F107: 2.062757033 | G107: 1.142956112 | H107: 0.0820731144 | I107: 0.1495339857 | J107: =G107/SUM(Årsværk_Sagsområder!F78,Årsværk_Sagsområder!H78,Årsværk_Sagsområder!J78,Årsværk_Sagsområder!L78,Årsværk_Sagsområder!N78,G107) -> 0.08081946771
B108: 914 | C108: Retten i Nykøbing F. | D108: Kontor | E108: 4.502488272 | F108: 3.724564619 | G108: 3.928251901 | H108: 0.1443591965 | I108: 0.1338376741 | J108: =G108/SUM(Årsværk_Sagsområder!F79,Årsværk_Sagsområder!H79,Årsværk_Sagsområder!J79,Årsværk_Sagsområder!L79,Årsværk_Sagsområder!N79,G108) -> 0.1366042357
B109: 914 | C109: Retten i Nykøbing F. | D109: Elev | E109: 0.2676568009 | F109: 0.4814859253 | G109: 0.2551632812 | H109: 0.1446981235 | I109: 0.2407333333 | J109: =G109/SUM(Årsværk_Sagsområder!F80,Årsværk_Sagsområder!H80,Årsværk_Sagsområder!J80,Årsværk_Sagsområder!L80,Årsværk_Sagsområder!N80,G109) -> 0.1270783051
B110: 914 | C110: Retten i Nykøbing F. | D110: Fleks | E110: 0.40544 | F110: 0.004359569892 | G110: 0.4054562917 | H110: 1 | I110: 0.01075268817 | J110: =G110/SUM(Årsværk_Sagsområder!F81,Årsværk_Sagsområder!H81,Årsværk_Sagsområder!J81,Årsværk_Sagsområder!L81,Årsværk_Sagsområder!N81,G110) -> 0.7643881067
B111: 914 | C111: Retten i Nykøbing F. | D111: Øvrige | E111: 2.54852785 | F111: 1.775741342 | G111: 2.531880536 | H111: 0.9146868171 | I111: 0.618910664 | J111: =G111/SUM(Årsværk_Sagsområder!F82,Årsværk_Sagsområder!H82,Årsværk_Sagsområder!J82,Årsværk_Sagsområder!L82,Årsværk_Sagsområder!N82,G111) -> 0.9286431471 | N111: =SUM(Årsværk_Sagsområder!F103:F107,Årsværk_Sagsområder!H103:H107,Årsværk_Sagsområder!J103:J107,Årsværk_Sagsområder!L103:L107,Årsværk_Sagsområder!N103:N107)+G147 -> 40.07782541
B112: 914 | C112: Retten i Nykøbing F. | D112: Samlet | E112: =SUM(E107:E111) -> 8.797138462 | F112: =SUM(F107:F111) -> 8.04890849 | G112: =SUM(G107:G111) -> 8.263708122 | H112: 0.1784231001 | I112: 0.1715250806 | J112: =G112/N86 -> 0.1715768097
D113: - ekskl. fleks og elever | E113: =E112-E110-E109 -> 8.124041662 | F113: =F112-F110-F109 -> 7.563062995 | G113: =G112-G110-G109 -> 7.603088549 | H113: 0.1726692515 | I113: 0.1698835934 | J113: =G113/N86 -> 0.1578605703
B114: 915 | C114: Retten i Næstved | D114: Jurister | E114: 1.492723761 | F114: 1.247247147 | G114: 1.318862328 | H114: 0.08771883885 | I114: 0.07712009782 | J114: =G114/SUM(Årsværk_Sagsområder!F83,Årsværk_Sagsområder!H83,Årsværk_Sagsområder!J83,Årsværk_Sagsområder!L83,Årsværk_Sagsområder!N83,G114) -> 0.08032527168
B115: 915 | C115: Retten i Næstved | D115: Kontor | E115: 7.041212923 | F115: 6.284132864 | G115: 6.113540375 | H115: 0.1744713777 | I115: 0.1718402091 | J115: =G115/SUM(Årsværk_Sagsområder!F84,Årsværk_Sagsområder!H84,Årsværk_Sagsområder!J84,Årsværk_Sagsområder!L84,Årsværk_Sagsområder!N84,G115) -> 0.1654434098
B116: 915 | C116: Retten i Næstved | D116: Elev | E116: 0.4180029442 | F116: 0.7351403654 | G116: 0.3764528942 | H116: 0.1563954998 | I116: 0.2299713968 | J116: =G116/SUM(Årsværk_Sagsområder!F85,Årsværk_Sagsområder!H85,Årsværk_Sagsområder!J85,Årsværk_Sagsområder!L85,Årsværk_Sagsområder!N85,G116) -> 0.3217454433 | N116: =SUM(Årsværk_Sagsområder!F108:F112,Årsværk_Sagsområder!H108:H112,Årsværk_Sagsområder!J108:J112,Årsværk_Sagsområder!L108:L112,Årsværk_Sagsområder!N108:N112)+G154 -> 46.83714581
B117: 915 | C117: Retten i Næstved | D117: Fleks | E117: 0.6972713994 | F117: 0.6815823346 | G117: 0.6780481596 | H117: 0.2420938345 | I117: 0.198161474 | J117: =G117/SUM(Årsværk_Sagsområder!F86,Årsværk_Sagsområder!H86,Årsværk_Sagsområder!J86,Årsværk_Sagsområder!L86,Årsværk_Sagsområder!N86,G117) -> 0.1936478198
B118: 915 | C118: Retten i Næstved | D118: Øvrige | E118: 3.930617586 | F118: 3.467594752 | G118: 4.154568374 | H118: 0.8253109309 | I118: 0.8738171352 | J118: =G118/SUM(Årsværk_Sagsområder!F87,Årsværk_Sagsområder!H87,Årsværk_Sagsområder!J87,Årsværk_Sagsområder!L87,Årsværk_Sagsområder!N87,G118) -> 0.8604904527
B119: 915 | C119: Retten i Næstved | D119: Samlet | E119: =SUM(E114:E118) -> 13.57982861 | F119: =SUM(F114:F118) -> 12.41569746 | G119: =SUM(G114:G118) -> 12.64147213 | H119: 0.2006178252 | I119: 0.1959952203 | J119: =G119/N91 -> 0.2010696804
D120: - ekskl. fleks og elever | E120: =E119-E117-E116 -> 12.46455427 | F120: =F119-F117-F116 -> 10.99897476 | G120: =G119-G117-G116 -> 11.58697108 | H120: 0.2005974892 | I120: 0.193948674 | J120: =G120/N91 -> 0.1842972517
B121: 916 | C121: Retten i Holbæk | D121: Jurister | E121: 0.7259152039 | F121: 0.735426973 | G121: 0.9167108589 | H121: 0.06235002928 | I121: 0.05966284051 | J121: =G121/SUM(Årsværk_Sagsområder!F88,Årsværk_Sagsområder!H88,Årsværk_Sagsområder!J88,Årsværk_Sagsområder!L88,Årsværk_Sagsområder!N88,G121) -> 0.07186783658 | N121: =SUM(Årsværk_Sagsområder!F113:F117,Årsværk_Sagsområder!H113:H117,Årsværk_Sagsområder!J113:J117,Årsværk_Sagsområder!L113:L117,Årsværk_Sagsområder!N113:N117)+G161 -> 104.5630125
B122: 916 | C122: Retten i Holbæk | D122: Kontor | E122: 3.032788622 | F122: 2.920613494 | G122: 3.294411864 | H122: 0.1263265576 | I122: 0.1274794229 | J122: =G122/SUM(Årsværk_Sagsområder!F89,Årsværk_Sagsområder!H89,Årsværk_Sagsområder!J89,Årsværk_Sagsområder!L89,Årsværk_Sagsområder!N89,G122) -> 0.1335418186
B123: 916 | C123: Retten i Holbæk | D123: Elev | E123: 0.1472759234 | F123: 0.209906297 | G123: 0.13980699 | H123: 0.1262285714 | I123: 0.2099 | J123: =G123/SUM(Årsværk_Sagsområder!F90,Årsværk_Sagsområder!H90,Årsværk_Sagsområder!J90,Årsværk_Sagsområder!L90,Årsværk_Sagsområder!N90,G123) -> 0.1398093206
B124: 916 | C124: Retten i Holbæk | D124: Fleks | E124: 0 | F124: 0.207795802 | G124: 0.242284577 | H124: 0 | I124: 0.09152548581 | J124: =G124/SUM(Årsværk_Sagsområder!F91,Årsværk_Sagsområder!H91,Årsværk_Sagsområder!J91,Årsværk_Sagsområder!L91,Årsværk_Sagsområder!N91,G124) -> 0.1042344228
B125: 916 | C125: Retten i Holbæk | D125: Øvrige | E125: 2.563180647 | F125: 2.445348609 | G125: 2.44280399 | H125: 0.8155800924 | I125: 0.8340889462 | J125: =G125/SUM(Årsværk_Sagsområder!F92,Årsværk_Sagsområder!H92,Årsværk_Sagsområder!J92,Årsværk_Sagsområder!L92,Årsværk_Sagsområder!N92,G125) -> 0.8809595728
B126: 916 | C126: Retten i Holbæk | D126: Samlet | E126: =SUM(E121:E125) -> 6.469160396 | F126: =SUM(F121:F125) -> 6.519091175 | G126: =SUM(G121:G125) -> 7.036018279 | H126: 0.1541756371 | I126: 0.1570829352 | J126: =G126/N96 -> 0.1616646057 | N126: =SUM(Årsværk_Sagsområder!F118:F122,Årsværk_Sagsområder!H118:H122,Årsværk_Sagsområder!J118:J122,Årsværk_Sagsområder!L118:L122,Årsværk_Sagsområder!N118:N122)+G168 -> 87.27918802
D127: - ekskl. fleks og elever | E127: =E126-E124-E123 -> 6.321884473 | F127: =F126-F124-F123 -> 6.101389076 | G127: =G126-G124-G123 -> 6.653926712 | H127: 0.1629650718 | I127: 0.1595920579 | J127: =G127/N96 -> 0.1528853956
B128: 917 | C128: Retten i Roskilde | D128: Jurister | E128: 2.220113508 | F128: 1.378120886 | G128: 1.173160134 | H128: 0.1145947841 | I128: 0.07353700011 | J128: =G128/SUM(Årsværk_Sagsområder!F93,Årsværk_Sagsområder!H93,Årsværk_Sagsområder!J93,Årsværk_Sagsområder!L93,Årsværk_Sagsområder!N93,G128) -> 0.06015547615
B129: 917 | C129: Retten i Roskilde | D129: Kontor | E129: 7.578854417 | F129: 7.613124169 | G129: 7.233478689 | H129: 0.1785332949 | I129: 0.1797658551 | J129: =G129/SUM(Årsværk_Sagsområder!F94,Årsværk_Sagsområder!H94,Årsværk_Sagsområder!J94,Årsværk_Sagsområder!L94,Årsværk_Sagsområder!N94,G129) -> 0.1907394009
B130: 917 | C130: Retten i Roskilde | D130: Elev | E130: 0.001850071154 | F130: 0 | G130: 0 | H130: 0.0008538461538 | I130: 0 | J130: =G130/SUM(Årsværk_Sagsområder!F95,Årsværk_Sagsområder!H95,Årsværk_Sagsområder!J95,Årsværk_Sagsområder!L95,Årsværk_Sagsområder!N95,G130) -> 0
B131: 917 | C131: Retten i Roskilde | D131: Fleks | E131: 0 | F131: 0.56763 | G131: 0.62537 | H131: 0 | I131: 1 | J131: =G131/SUM(Årsværk_Sagsområder!F96,Årsværk_Sagsområder!H96,Årsværk_Sagsområder!J96,Årsværk_Sagsområder!L96,Årsværk_Sagsområder!N96,G131) -> 1 | N131: =SUM(Årsværk_Sagsområder!F123:F127,Årsværk_Sagsområder!H123:H127,Årsværk_Sagsområder!J123:J127,Årsværk_Sagsområder!L123:L127,Årsværk_Sagsområder!N123:N127)+G175 -> 185.6475932
B132: 917 | C132: Retten i Roskilde | D132: Øvrige | E132: 1.83343 | F132: 0.66419645 | G132: 1.131927518 | H132: 1 | I132: 0.395 | J132: =G132/SUM(Årsværk_Sagsområder!F97,Årsværk_Sagsområder!H97,Årsværk_Sagsområder!J97,Årsværk_Sagsområder!L97,Årsværk_Sagsområder!N97,G132) -> 0.7528967214
B133: 917 | C133: Retten i Roskilde | D133: Samlet | E133: =SUM(E128:E132) -> 11.634248 | F133: =SUM(F128:F132) -> 10.2230715 | G133: =SUM(G128:G132) -> 10.16393634 | H133: 0.1752355326 | I133: 0.1569738432 | J133: =G133/N101 -> 0.164246387
D134: - ekskl. fleks og elever | E134: =E133-E131-E130 -> 11.63239793 | F134: =F133-F131-F130 -> 9.655441505 | G134: =G133-G131-G130 -> 9.538566341 | H134: 0.182733614 | I134: 0.1524997048 | J134: =G134/N101 -> 0.1541405816
B135: 918 | C135: Retten i Hillerød | D135: Jurister | E135: 0.6390081129 | F135: 1.664961819 | G135: 1.154911584 | H135: 0.05434250762 | I135: 0.1221085154 | J135: =G135/SUM(Årsværk_Sagsområder!F98,Årsværk_Sagsområder!H98,Årsværk_Sagsområder!J98,Årsværk_Sagsområder!L98,Årsværk_Sagsområder!N98,G135) -> 0.08964756632
B136: 918 | C136: Retten i Hillerød | D136: Kontor | E136: 3.13325397 | F136: 2.968131273 | G136: 3.032805683 | H136: 0.1475672439 | I136: 0.1461616666 | J136: =G136/SUM(Årsværk_Sagsområder!F99,Årsværk_Sagsområder!H99,Årsværk_Sagsområder!J99,Årsværk_Sagsområder!L99,Årsværk_Sagsområder!N99,G136) -> 0.1450669205 | N136: =SUM(Årsværk_Sagsområder!F128:F132,Årsværk_Sagsområder!H128:H132,Årsværk_Sagsområder!J128:J132,Årsværk_Sagsområder!L128:L132,Årsværk_Sagsområder!N128:N132)+G182 -> 0
B137: 918 | C137: Retten i Hillerød | D137: Elev | E137: 0.1583365023 | F137: 0.52622813 | G137: 0.2227099732 | H137: 0.05484104001 | I137: 0.1697389637 | J137: =G137/SUM(Årsværk_Sagsområder!F100,Årsværk_Sagsområder!H100,Årsværk_Sagsområder!J100,Årsværk_Sagsområder!L100,Årsværk_Sagsområder!N100,G137) -> 0.07488927611
B138: 918 | C138: Retten i Hillerød | D138: Fleks | E138: 0.3825950112 | F138: 0.01219130453 | G138: 0 | H138: 0.1628195519 | I138: 0.006150576917 | J138: =G138/SUM(Årsværk_Sagsområder!F101,Årsværk_Sagsområder!H101,Årsværk_Sagsområder!J101,Årsværk_Sagsområder!L101,Årsværk_Sagsområder!N101,G138) -> 0
B139: 918 | C139: Retten i Hillerød | D139: Øvrige | E139: 2.301302438 | F139: 3.013688115 | G139: 2.909356538 | H139: 0.5612836945 | I139: 0.6233080347 | J139: =G139/SUM(Årsværk_Sagsområder!F102,Årsværk_Sagsområder!H102,Årsværk_Sagsområder!J102,Årsværk_Sagsområder!L102,Årsværk_Sagsområder!N102,G139) -> 0.5885858352
B140: 918 | C140: Retten i Hillerød | D140: Samlet | E140: =SUM(E135:E139) -> 6.614496034 | F140: =SUM(F135:F139) -> 8.185200642 | G140: =SUM(G135:G139) -> 7.319783778 | H140: 0.1562650778 | I140: 0.186622656 | J140: =G140/N106 -> 0.1662042349
D141: - ekskl. fleks og elever | E141: =E140-E138-E137 -> 6.073564521 | F141: =F140-F138-F137 -> 7.646781207 | G141: =G140-G138-G137 -> 7.097073805 | H141: 0.1637446156 | I141: 0.1971975131 | J141: =G141/N106 -> 0.161147345
B142: 919 | C142: Retten i Helsingør | D142: Jurister | E142: 0.9554570806 | F142: 0.7382266287 | G142: 0.517882988 | H142: 0.07276767832 | I142: 0.05487853701 | J142: =G142/SUM(Årsværk_Sagsområder!F103,Årsværk_Sagsområder!H103,Årsværk_Sagsområder!J103,Årsværk_Sagsområder!L103,Årsværk_Sagsområder!N103,G142) -> 0.04593682902
B143: 919 | C143: Retten i Helsingør | D143: Kontor | E143: 2.382778781 | F143: 2.341416227 | G143: 2.58593943 | H143: 0.1096379853 | I143: 0.101235941 | J143: =G143/SUM(Årsværk_Sagsområder!F104,Årsværk_Sagsområder!H104,Årsværk_Sagsområder!J104,Årsværk_Sagsområder!L104,Årsværk_Sagsområder!N104,G143) -> 0.1157563344
B144: 919 | C144: Retten i Helsingør | D144: Elev | E144: 0.02655628404 | F144: 0 | G144: 0.1011738262 | H144: 0.02106504747 | I144: 0 | J144: =G144/SUM(Årsværk_Sagsområder!F105,Årsværk_Sagsområder!H105,Årsværk_Sagsområder!J105,Årsværk_Sagsområder!L105,Årsværk_Sagsområder!N105,G144) -> 0.09338461538
B145: 919 | C145: Retten i Helsingør | D145: Fleks | E145: 1.768921865 | F145: 1.199536289 | G145: 1.1679944 | H145: 0.5843483733 | I145: 0.5236579013 | J145: =G145/SUM(Årsværk_Sagsområder!F106,Årsværk_Sagsområder!H106,Årsværk_Sagsområder!J106,Årsværk_Sagsområder!L106,Årsværk_Sagsområder!N106,G145) -> 0.5516961511
B146: 919 | C146: Retten i Helsingør | D146: Øvrige | E146: 2.556434892 | F146: 2.640973452 | G146: 2.475056967 | H146: 0.8985869319 | I146: 0.8533087295 | J146: =G146/SUM(Årsværk_Sagsområder!F107,Årsværk_Sagsområder!H107,Årsværk_Sagsområder!J107,Årsværk_Sagsområder!L107,Årsværk_Sagsområder!N107,G146) -> 0.7582887369
B147: 919 | C147: Retten i Helsingør | D147: Samlet | E147: =SUM(E142:E146) -> 7.690148903 | F147: =SUM(F142:F146) -> 6.920152596 | G147: =SUM(G142:G146) -> 6.848047612 | H147: 0.1831153946 | I147: 0.1587813607 | J147: =G147/N111 -> 0.1708687421
D148: - ekskl. fleks og elever | E148: =E147-E145-E144 -> 5.894670754 | F148: =F147-F145-F144 -> 5.720616308 | G148: =G147-G145-G144 -> 5.578879385 | H148: 0.1563227327 | I148: 0.1441858362 | J148: =G148/N111 -> 0.13920115
B149: 920 | C149: Retten i Lyngby | D149: Jurister | E149: 0.9702258356 | F149: 0.7207178749 | G149: 0.7698703287 | H149: 0.06788009677 | I149: 0.05120356838 | J149: =G149/SUM(Årsværk_Sagsområder!F108,Årsværk_Sagsområder!H108,Årsværk_Sagsområder!J108,Årsværk_Sagsområder!L108,Årsværk_Sagsområder!N108,G149) -> 0.05578330688
B150: 920 | C150: Retten i Lyngby | D150: Kontor | E150: 3.685093399 | F150: 3.393649023 | G150: 3.335920856 | H150: 0.1420695911 | I150: 0.1285664764 | J150: =G150/SUM(Årsværk_Sagsområder!F109,Årsværk_Sagsområder!H109,Årsværk_Sagsområder!J109,Årsværk_Sagsområder!L109,Årsværk_Sagsområder!N109,G150) -> 0.1267846734
B151: 920 | C151: Retten i Lyngby | D151: Elev | E151: 1.527560769 | F151: 1.051230675 | G151: 1.529005968 | H151: 0.4184914549 | I151: 0.3918890704 | J151: =G151/SUM(Årsværk_Sagsområder!F110,Årsværk_Sagsområder!H110,Årsværk_Sagsområder!J110,Årsværk_Sagsområder!L110,Årsværk_Sagsområder!N110,G151) -> 0.7791139671
B152: 920 | C152: Retten i Lyngby | D152: Fleks | E152: 0.008608245513 | F152: 0 | G152: 0.4215237828 | H152: 0.01027384054 | I152: 0 | J152: =G152/SUM(Årsværk_Sagsområder!F111,Årsværk_Sagsområder!H111,Årsværk_Sagsområder!J111,Årsværk_Sagsområder!L111,Årsværk_Sagsområder!N111,G152) -> 0.3079310849
B153: 920 | C153: Retten i Lyngby | D153: Øvrige | E153: 2.999616907 | F153: 2.571060078 | G153: 2.996923294 | H153: 0.9542830216 | I153: 0.9997 | J153: =G153/SUM(Årsværk_Sagsområder!F112,Årsværk_Sagsområder!H112,Årsværk_Sagsområder!J112,Årsværk_Sagsområder!L112,Årsværk_Sagsområder!N112,G153) -> 0.8832743273
B154: 920 | C154: Retten i Lyngby | D154: Samlet | E154: =SUM(E149:E153) -> 9.191105157 | F154: =SUM(F149:F153) -> 7.736657652 | G154: =SUM(G149:G153) -> 9.05324423 | H154: 0.1920284786 | I154: 0.1757279074 | J154: =G154/N116 -> 0.193291971
D155: - ekskl. fleks og elever | E155: =E154-E152-E151 -> 7.654936142 | F155: =F154-F152-F151 -> 6.685426977 | G155: =G154-G152-G151 -> 7.102714479 | H155: 0.1764818639 | I155: 0.1656263579 | J155: =G155/N116 -> 0.151647039
B156: 921 | C156: Retten i Glostrup | D156: Jurister | E156: 1.786884369 | F156: 2.219571477 | G156: 2.380958255 | H156: 0.05426367504 | I156: 0.06401305763 | J156: =G156/SUM(Årsværk_Sagsområder!F113,Årsværk_Sagsområder!H113,Årsværk_Sagsområder!J113,Årsværk_Sagsområder!L113,Årsværk_Sagsområder!N113,G156) -> 0.07095522289
B157: 921 | C157: Retten i Glostrup | D157: Kontor | E157: 6.273299216 | F157: 6.319575225 | G157: 7.089112651 | H157: 0.1096108993 | I157: 0.1117315043 | J157: =G157/SUM(Årsværk_Sagsområder!F114,Årsværk_Sagsområder!H114,Årsværk_Sagsområder!J114,Årsværk_Sagsområder!L114,Årsværk_Sagsområder!N114,G157) -> 0.1240298565
B158: 921 | C158: Retten i Glostrup | D158: Elev | E158: 0.5892152689 | F158: 1.042747464 | G158: 0.491313775 | H158: 0.1764788614 | I158: 0.2895684203 | J158: =G158/SUM(Årsværk_Sagsområder!F115,Årsværk_Sagsområder!H115,Årsværk_Sagsområder!J115,Årsværk_Sagsområder!L115,Årsværk_Sagsområder!N115,G158) -> 0.1371791822
B159: 921 | C159: Retten i Glostrup | D159: Fleks | E159: 1.000065503 | F159: 0.744854421 | G159: 1.19945219 | H159: 0.3014524544 | I159: 0.08380465525 | J159: =G159/SUM(Årsværk_Sagsområder!F116,Årsværk_Sagsområder!H116,Årsværk_Sagsområder!J116,Årsværk_Sagsområder!L116,Årsværk_Sagsområder!N116,G159) -> 0.3175926577
B160: 921 | C160: Retten i Glostrup | D160: Øvrige | E160: 5.692279255 | F160: 5.122582192 | G160: 5.049098246 | H160: 0.8151402518 | I160: 0.816441439 | J160: =G160/SUM(Årsværk_Sagsområder!F117,Årsværk_Sagsområder!H117,Årsværk_Sagsområder!J117,Årsværk_Sagsområder!L117,Årsværk_Sagsområder!N117,G160) -> 0.7776843173
B161: 921 | C161: Retten i Glostrup | D161: Samlet | E161: =SUM(E156:E160) -> 15.34174361 | F161: =SUM(F156:F160) -> 15.44933078 | G161: =SUM(G156:G160) -> 16.20993512 | H161: 0.1477988481 | I161: 0.1440297948 | J161: =G161/N121 -> 0.1550255174
D162: - ekskl. fleks og elever | E162: =E161-E159-E158 -> 13.75246284 | F162: =F161-F159-F158 -> 13.66172889 | G162: =G161-G159-G158 -> 14.51916915 | H162: 0.141565925 | I162: 0.1401082542 | J162: =G162/N121 -> 0.1388556891
B163: 922 | C163: Retten på Frederiksberg | D163: Jurister | E163: 1.027406519 | F163: 1.146934366 | G163: 0.9252561748 | H163: 0.04289016778 | I163: 0.04723953611 | J163: =G163/SUM(Årsværk_Sagsområder!F118,Årsværk_Sagsområder!H118,Årsværk_Sagsområder!J118,Årsværk_Sagsområder!L118,Årsværk_Sagsområder!N118,G163) -> 0.03862630114
B164: 922 | C164: Retten på Frederiksberg | D164: Kontor | E164: 2.973816358 | F164: 5.455220467 | G164: 6.663965171 | H164: 0.07032072529 | I164: 0.1233672137 | J164: =G164/SUM(Årsværk_Sagsområder!F119,Årsværk_Sagsområder!H119,Årsværk_Sagsområder!J119,Årsværk_Sagsområder!L119,Årsværk_Sagsområder!N119,G164) -> 0.1451577183
B165: 922 | C165: Retten på Frederiksberg | D165: Elev | E165: 0.002549823452 | F165: 0.01139515729 | G165: 0.754492781 | H165: 0.0007780897495 | I165: 0.003695107509 | J165: =G165/SUM(Årsværk_Sagsområder!F120,Årsværk_Sagsområder!H120,Årsværk_Sagsområder!J120,Årsværk_Sagsområder!L120,Årsværk_Sagsområder!N120,G165) -> 0.2389059435
B166: 922 | C166: Retten på Frederiksberg | D166: Fleks | E166: 0.5683789217 | F166: 1.039231872 | G166: 1.13154777 | H166: 0.189894499 | I166: 0.2217415894 | J166: =G166/SUM(Årsværk_Sagsområder!F121,Årsværk_Sagsområder!H121,Årsværk_Sagsområder!J121,Årsværk_Sagsområder!L121,Årsværk_Sagsområder!N121,G166) -> 0.2099544852
B167: 922 | C167: Retten på Frederiksberg | D167: Øvrige | E167: 4.391476554 | F167: 4.842137774 | G167: 5.743504528 | H167: 0.8831384421 | I167: 0.7387512643 | J167: =G167/SUM(Årsværk_Sagsområder!F122,Årsværk_Sagsområder!H122,Årsværk_Sagsområder!J122,Årsværk_Sagsområder!L122,Årsværk_Sagsområder!N122,G167) -> 0.6475866778
B168: 922 | C168: Retten på Frederiksberg | D168: Samlet | E168: =SUM(E163:E167) -> 8.963628177 | F168: =SUM(F163:F167) -> 12.49491964 | G168: =SUM(G163:G167) -> 15.21876642 | H168: 0.1156799736 | I168: 0.1508619912 | J168: =G168/N126 -> 0.1743687902
D169: - ekskl. fleks og elever | E169: =E168-E166-E165 -> 8.392699431 | F169: =F168-F166-F165 -> 11.44429261 | G169: =G168-G166-G165 -> 13.33272587 | H169: 0.1178480624 | I169: 0.1524828542 | J169: =G169/N126 -> 0.1527595086
B170: 923 | C170: Københavns Byret | D170: Jurister | E170: 4.26052891 | F170: 5.457545485 | G170: 3.361706761 | H170: 0.07078937988 | I170: 0.08685855931 | J170: =G170/SUM(Årsværk_Sagsområder!F123,Årsværk_Sagsområder!H123,Årsværk_Sagsområder!J123,Årsværk_Sagsområder!L123,Årsværk_Sagsområder!N123,G170) -> 0.06012465715
B171: 923 | C171: Københavns Byret | D171: Kontor | E171: 18.18510286 | F171: 14.00447557 | G171: 15.56884873 | H171: 0.1553781633 | I171: 0.1254947097 | J171: =G171/SUM(Årsværk_Sagsområder!F124,Årsværk_Sagsområder!H124,Årsværk_Sagsområder!J124,Årsværk_Sagsområder!L124,Årsværk_Sagsområder!N124,G171) -> 0.1398604296
B172: 923 | C172: Københavns Byret | D172: Elev | E172: 0.3780569286 | F172: 0.139796099 | G172: 0.2670360064 | H172: 0.0616376397 | I172: 0.02608832189 | J172: =G172/SUM(Årsværk_Sagsområder!F125,Årsværk_Sagsområder!H125,Årsværk_Sagsområder!J125,Årsværk_Sagsområder!L125,Årsværk_Sagsområder!N125,G172) -> 0.04876577938
B173: 923 | C173: Københavns Byret | D173: Fleks | E173: 0.06758079857 | F173: 0.4018739221 | G173: 0.4054554087 | H173: 0.2424423267 | I173: 0.6196689777 | J173: =G173/SUM(Årsværk_Sagsområder!F126,Årsværk_Sagsområder!H126,Årsværk_Sagsområder!J126,Årsværk_Sagsområder!L126,Årsværk_Sagsområder!N126,G173) -> 0.5658324087
B174: 923 | C174: Københavns Byret | D174: Øvrige | E174: 4.662972988 | F174: 6.159232521 | G174: 6.533749455 | H174: 0.5952688412 | I174: 0.6795154228 | J174: =G174/SUM(Årsværk_Sagsområder!F127,Årsværk_Sagsområder!H127,Årsværk_Sagsområder!J127,Årsværk_Sagsområder!L127,Årsværk_Sagsområder!N127,G174) -> 0.5344221864
B175: 923 | C175: Københavns Byret | D175: Samlet | E175: =SUM(E170:E174) -> 27.55424248 | F175: =SUM(F170:F174) -> 26.16292359 | G175: =SUM(G170:G174) -> 26.13679637 | H175: 0.1439094017 | I175: 0.1395859045 | J175: =G175/N131 -> 0.1407871544
D176: - ekskl. fleks og elever | E176: =E175-E173-E172 -> 27.10860475 | F176: =F175-F173-F172 -> 25.62125357 | G176: =G175-G173-G172 -> 25.46430495 | H176: 0.1464878012 | I176: 0.1412149548 | J176: =G176/N131 -> 0.1371647459
B178: 1) I opgørelsen er årsværksforbrug under kategorierne "ledelse og administration", "hjælpefunktioner" og "transporttid" henført under generel ledelse og administration mv.

Sheet Aktivitet
B2: AKTIVITET VED RETTEN MÅLT SOM VÆGTEDE AFSLUTTEDE SAGER
D4: Samlet | F4: Straffesager | H4: Civile sager | J4: Øvrige Fogedsager | L4: Tvangsauktions-sager | N4: Insolvens-skiftesager | P4: Dødsboskiftesager | R4: Notarialforretninger
D5: =Overblik!$D$6 -> 2022 | E5: =Overblik!$E$6 -> 2023 | F5: =Overblik!$D$6 -> 2022 | G5: =Overblik!$E$6 -> 2023 | H5: =Overblik!$D$6 -> 2022 | I5: =Overblik!$E$6 -> 2023 | J5: =Overblik!$D$6 -> 2022 | K5: =Overblik!$E$6 -> 2023 | L5: =Overblik!$D$6 -> 2022 | M5: =Overblik!$E$6 -> 2023 | N5: =Overblik!$D$6 -> 2022 | O5: =Overblik!$E$6 -> 2023 | P5: =Overblik!$D$6 -> 2022 | Q5: =Overblik!$E$6 -> 2023 | R5: =Overblik!$D$6 -> 2022 | S5: =Overblik!$E$6 -> 2023
B7: SAMLET BYRETTERNE | D7: =SUM(D9:D32) -> 781705 | E7: 814678 | F7: 210101 | G7: 213300 | H7: 52335 | I7: 56620 | J7: 264383.46 | K7: 272907.56 | L7: 7999.73 | M7: 8970.85 | N7: 14822.93 | O7: 14177.16 | P7: 58240.69 | Q7: 61019.3 | R7: 148270 | S7: 183544
B8: EID | C8: Ret
B9: 901 | C9: Retten i Hjørring | D9: 22999 | E9: 23278 | F9: 5186 | G9: 4429 | H9: 1457 | I9: 1553 | J9: 9061.68 | K9: 10173.05 | L9: 406.15 | M9: 474.34 | N9: 668.11 | O9: 650.89 | P9: 2343.73 | Q9: 2609.79 | R9: 4291 | S9: 7413
B10: 902 | C10: Retten i Aalborg | D10: 39835 | E10: 41923 | F10: 9558 | G10: 9736 | H10: 2835 | I10: 3060 | J10: 14222.56 | K10: 15254.33 | L10: 407.54 | M10: 484.84 | N10: 1086.65 | O10: 934.54 | P10: 3079.15 | Q10: 3530.85 | R10: 7467 | S10: 8869
B11: 903 | C11: Retten i Randers | D11: 25120 | E11: 26102 | F11: 5513 | G11: 5358 | H11: 1583 | I11: 1721 | J11: 9873.45 | K11: 11370.22 | L11: 425.01 | M11: 415.01 | N11: 874.17 | O11: 783.83 | P11: 2504.75 | Q11: 2603.99 | R11: 5437 | S11: 7185
B12: 904 | C12: Retten i Aarhus | D12: 46214 | E12: 47355 | F12: 12901 | G12: 13170 | H12: 2976 | I12: 2999 | J12: 14537.26 | K12: 15678.53 | L12: 242.06 | M12: 318.86 | N12: 1371.82 | O12: 1370.57 | P12: 2932.75 | Q12: 2942 | R12: 8765 | S12: 9873
B13: 905 | C13: Retten i Viborg | D13: 28346 | E13: 27672 | F13: 7375 | G13: 6879 | H13: 1736 | I13: 1745 | J13: 9281.59 | K13: 10251.11 | L13: 290.89 | M13: 365.07 | N13: 771.46 | O13: 687.54 | P13: 2589.45 | Q13: 2342.17 | R13: 6431 | S13: 7809
B14: 906 | C14: Retten i Holstebro | D14: 20105 | E14: 19782 | F14: 5663 | G14: 5728 | H14: 1091 | I14: 932 | J14: 5989.13 | K14: 6765.93 | L14: 341.39 | M14: 362.27 | N14: 452.87 | O14: 407.18 | P14: 1945.84 | Q14: 1820.11 | R14: 5091 | S14: 7250
B15: 907 | C15: Retten i Herning | D15: 23134 | E15: 23464 | F15: 6747 | G15: 6716 | H15: 1350 | I15: 1318 | J15: 6400.99 | K15: 7114.25 | L15: 276.63 | M15: 274.5 | N15: 528.87 | O15: 540.34 | P15: 1895.73 | Q15: 2039.54 | R15: 5333 | S15: 5872
B16: 908 | C16: Retten i Horsens | D16: 21791 | E16: 21851 | F16: 5520 | G16: 5695 | H16: 1392 | I16: 1340 | J16: 6767.04 | K16: 7845.97 | L16: 225.65 | M16: 272 | N16: 753.75 | O16: 555.37 | P16: 1766.8 | Q16: 1669.25 | R16: 5732 | S16: 6756
B17: 909 | C17: Retten i Kolding | D17: 42308 | E17: 48018 | F17: 10912 | G17: 11300 | H17: 3114 | I17: 3984 | J17: 14466.35 | K17: 15815.48 | L17: 494.96 | M17: 561.21 | N17: 803.72 | O17: 832.2 | P17: 2737.67 | Q17: 3074.45 | R17: 7154 | S17: 10607
B18: 910 | C18: Retten i Esbjerg | D18: 25425 | E18: 28089 | F18: 6699 | G18: 7614 | H18: 1593 | I18: 1676 | J18: 9111.64 | K18: 9536.56 | L18: 256.34 | M18: 296.86 | N18: 587.57 | O18: 620.04 | P18: 2124.55 | Q18: 2467.52 | R18: 4647 | S18: 6354
B19: 911 | C19: Retten i Sønderborg | D19: 32032 | E19: 32216 | F19: 8610 | G19: 9319 | H19: 2071 | I19: 1688 | J19: 11651.54 | K19: 11714.95 | L19: 353.9 | M19: 394.39 | N19: 625.99 | O19: 571.22 | P19: 2408.82 | Q19: 2866.29 | R19: 5146 | S19: 6999
B20: 912 | C20: Retten i Odense | D20: 44069 | E20: 42385 | F20: 11990 | G20: 11278 | H20: 2619 | I20: 2496 | J20: 16693.86 | K20: 14804.38 | L20: 539.63 | M20: 581.86 | N20: 1052.37 | O20: 1080.63 | P20: 3316.26 | Q20: 3686.54 | R20: 7630 | S20: 8696
B21: 913 | C21: Retten i Svendborg | D21: 17900 | E21: 18955 | F21: 3895 | G21: 4009 | H21: 1071 | I21: 1237 | J21: 7454.87 | K21: 7343.68 | L21: 246.43 | M21: 316.85 | N21: 484.35 | O21: 464.52 | P21: 2181.64 | Q21: 2268.48 | R21: 3784 | S21: 4494
B22: 914 | C22: Retten i Nykøbing F. | D22: 26837 | E22: 26574 | F22: 7064 | G22: 6979 | H22: 1559 | I22: 1471 | J22: 10493.99 | K22: 10828.06 | L22: 745.92 | M22: 671.79 | N22: 474.06 | O22: 540.02 | P22: 2386.37 | Q22: 2412.22 | R22: 2939 | S22: 3317
B23: 915 | C23: Retten i Næstved | D23: 32658 | E23: 33101 | F23: 7956 | G23: 7849 | H23: 2141 | I23: 2129 | J23: 13929.1 | K23: 13361.64 | L23: 427.56 | M23: 498.25 | N23: 753.73 | O23: 893.57 | P23: 2485.55 | Q23: 2794.61 | R23: 5991 | S23: 7231
B24: 916 | C24: Retten i Holbæk | D24: 24066 | E24: 23143 | F24: 6363 | G24: 6079 | H24: 1489 | I24: 1409 | J24: 8909.27 | K24: 8821.37 | L24: 352.88 | M24: 397.82 | N24: 568.14 | O24: 495.6 | P24: 1933.31 | Q24: 1851.56 | R24: 3230 | S24: 4434
B25: 917 | C25: Retten i Roskilde | D25: 39080 | E25: 40180 | F25: 9235 | G25: 9255 | H25: 2883 | I25: 3020 | J25: 12420.34 | K25: 13714.59 | L25: 357.96 | M25: 408.81 | N25: 1205.94 | O25: 1154.79 | P25: 3146.48 | Q25: 3028.88 | R25: 6752 | S25: 9020
B26: 918 | C26: Retten i Hillerød | D26: 23443 | E26: 23125 | F26: 5923 | G26: 5593 | H26: 1527 | I26: 1565 | J26: 8130.19 | K26: 7381.77 | L26: 277.11 | M26: 260.47 | N26: 702.71 | O26: 663.35 | P26: 1795.87 | Q26: 2099.09 | R26: 5144 | S26: 5551
B27: 919 | C27: Retten i Helsingør | D27: 23365 | E27: 22642 | F27: 4702 | G27: 4535 | H27: 1696 | I27: 1728 | J27: 9150.26 | K27: 8440.96 | L27: 282.6 | M27: 300.65 | N27: 864.06 | O27: 689.65 | P27: 2276.88 | Q27: 2233.91 | R27: 3030 | S27: 3764
B28: 920 | C28: Retten i Lyngby | D28: 27343 | E28: 26966 | F28: 4710 | G28: 5378 | H28: 2848 | I28: 2410 | J28: 6809.91 | K28: 7192.8 | L28: 131.84 | M28: 171.82 | N28: 48.27 | O28: 68.12 | P28: 2531.68 | Q28: 2462.38 | R28: 19010 | S28: 22277
B29: 921 | C29: Retten i Glostrup | D29: 55894 | E29: 59560 | F29: 16011 | G29: 15404 | H29: 3721 | I29: 4559 | J29: 23064.6 | K29: 24974.92 | L29: 312.28 | M29: 329.07 | N29: 63.74 | O29: 67.35 | P29: 4085.1 | Q29: 4214.26 | R29: 4634 | S29: 6273
B30: 922 | C30: Retten på Frederiksberg | D30: 42119 | E30: 45188 | F30: 13229 | G30: 13883 | H30: 2662 | I30: 3003 | J30: 14940.99 | K30: 14908.94 | L30: 295.21 | M30: 460.28 | N30: 27.66 | O30: 43.3 | P30: 2754.09 | Q30: 3047.63 | R30: 4038 | S30: 4067
B31: 923 | C31: Københavns Byret | D31: 97622 | E31: 113109 | F31: 34339 | G31: 37114 | H31: 6921 | I31: 9577 | J31: 21022.85 | K31: 19614.07 | L31: 309.79 | M31: 353.83 | N31: 52.92 | O31: 62.54 | P31: 3018.22 | Q31: 2953.78 | R31: 16594 | S31: 19433
B34: 1) Vægtningen på tværs af sagstyper betyder, at antallet af vægtede sager inden for de enkelte sagområder ikke summer op til det samlede antal vægtede sager.

Sheet Målopf.Straf
B2: MÅLOPFYLDELSE STRAFFESAGER (80 pct. hurtigste sager)
D4: Nævninge- og domsmandssager (hfh.) | F4: Tilståelsessager | H4: Sager uden domsmænd - bødesager | J4: Sager uden domsmænd - øvrige | L4: Fast-track sager om ungdomskriminalitet
D5: =Overblik!$D$6 -> 2022 | E5: =Overblik!$E$6 -> 2023 | F5: =Overblik!$D$6 -> 2022 | G5: =Overblik!$E$6 -> 2023 | H5: =Overblik!$D$6 -> 2022 | I5: =Overblik!$E$6 -> 2023 | J5: =Overblik!$D$6 -> 2022 | K5: =Overblik!$E$6 -> 2023 | L5: =Overblik!$D$6 -> 2022 | M5: =Overblik!$E$6 -> 2023
D6: 80 pct. | F6: 80 pct. | H6: 80 pct. | J6: 80 pct.
B8: MÅL | D8: < 88 dage | F8: < 43 dage | H8: < 10 dage | J8: < 93 dage | L8: <37 dage
B9: SAMLET BYRETTERNE | D9: 152 | E9: 153 | F9: 62 | G9: 56 | H9: 4 | I9: 3 | J9: 169 | K9: 171 | L9: =AVERAGE(L12:L35) -> 0.4126086957 | M9: 0.33
B10: 5. BEDSTE RET | D10: =SMALL(D12:D35,5) -> 122 | E10: 132 | F10: 41 | G10: 42 | H10: 2 | I10: 2 | J10: 103 | K10: 118 | L10: =LARGE(L12:L35,5) -> 0.57 | M10: =LARGE(M12:M35,5) -> 0.51
B11: EID | C11: Ret
B12: 901 | C12: Retten i Hjørring | D12: 117 | E12: 160 | F12: 55 | G12: 84 | H12: 5 | I12: 5 | J12: 173 | K12: 175 | L12: 0.49 | M12: 0.32
B13: 902 | C13: Retten i Aalborg | D13: 134 | E13: 175 | F13: 66 | G13: 58 | H13: 3 | I13: 3 | J13: 163 | K13: 164 | L13: 0.12 | M13: 0.21
B14: 903 | C14: Retten i Randers | D14: 130 | E14: 147 | F14: 115 | G14: 93 | H14: 7 | I14: 6 | J14: 178 | K14: 143 | L14: 0.5 | M14: 0.12
B15: 904 | C15: Retten i Aarhus | D15: 266 | E15: 341 | F15: 144 | G15: 49 | H15: 11 | I15: 7 | J15: 463 | K15: 437 | L15: 0.35 | M15: 0.22
B16: 905 | C16: Retten i Viborg | D16: 221 | E16: 161 | F16: 68 | G16: 65 | H16: 4 | I16: 4 | J16: 121 | K16: 136 | L16: 0.45 | M16: 0.29
B17: 906 | C17: Retten i Holstebro | D17: 101 | E17: 100 | F17: 26 | G17: 27 | H17: 4 | I17: 3 | J17: 70 | K17: 67 | L17: 0.65 | M17: 0.36
B18: 907 | C18: Retten i Herning | D18: 122 | E18: 151 | F18: 89 | G18: 83 | H18: 1 | I18: 2 | J18: 136 | K18: 122 | L18: 0.51 | M18: 0.26
B19: 908 | C19: Retten i Horsens | D19: 266 | E19: 263 | F19: 176 | G19: 119 | H19: 8 | I19: 5 | J19: 218 | K19: 255 | L19: 0.18 | M19: 0.46
B20: 909 | C20: Retten i Kolding | D20: 147 | E20: 183 | F20: 67 | G20: 56 | H20: 3 | I20: 2 | J20: 268 | K20: 137 | L20: 0.58 | M20: 0.63
B21: 910 | C21: Retten i Esbjerg | D21: 228 | E21: 242 | F21: 36 | G21: 34 | H21: 3 | I21: 3 | J21: 147 | K21: 118 | L21: 0.52 | M21: 0.51
B22: 911 | C22: Retten i Sønderborg | D22: 164 | E22: 244 | F22: 63 | G22: 68 | H22: 10 | I22: 3 | J22: 141 | K22: 170 | L22: 0.26 | M22: 0.14
B23: 912 | C23: Retten i Odense | D23: 110 | E23: 91 | F23: 43 | G23: 59 | H23: 2 | I23: 2 | J23: 81 | K23: 77 | L23: 0.34 | M23: 0.27
B24: 913 | C24: Retten i Svendborg | D24: 126 | E24: 178 | F24: 78 | G24: 72 | H24: 16 | I24: 6 | J24: 163 | K24: 226 | L24: 0.57 | M24: 0.18
B25: 914 | C25: Retten i Nykøbing F. | D25: 69 | E25: 71 | F25: 36 | G25: 32 | H25: 2 | I25: 2 | J25: 54 | K25: 68 | L25: 0.49 | M25: 0.53
B26: 915 | C26: Retten i Næstved | D26: 124 | E26: 126 | F26: 41 | G26: 68 | H26: 2 | I26: 2 | J26: 103 | K26: 208 | L26: 0.76 | M26: 0.68
B27: 916 | C27: Retten i Holbæk | D27: 184 | E27: 206 | F27: 80 | G27: 109 | H27: 6 | I27: 8 | J27: 243 | K27: 306 | L27: 0.3 | M27: 0.07
B28: 917 | C28: Retten i Roskilde | D28: 151 | E28: 155 | F28: 31 | G28: 41 | H28: 1 | I28: 1 | J28: 185 | K28: 170 | L28: 0.33 | M28: 0.32
B29: 918 | C29: Retten i Hillerød | D29: 165 | E29: 177 | F29: 70 | G29: 86 | H29: 7 | I29: 6 | J29: 182 | K29: 198 | L29: 0.46 | M29: 0.46
B30: 919 | C30: Retten i Helsingør | D30: 150 | E30: 146 | F30: 63 | G30: 42 | H30: 3 | I30: 4 | J30: 89 | K30: 95 | L30: 0.6 | M30: 0.02
B31: 920 | C31: Retten i Lyngby | D31: 142 | E31: 132 | F31: 51 | G31: 61 | H31: 2 | I31: 3 | J31: 113 | K31: 125 | L31: 0.16 | M31: 0.33
B32: 921 | C32: Retten i Glostrup | D32: 265 | E32: 211 | F32: 74 | G32: 75 | H32: 15 | I32: 10 | J32: 290 | K32: 309 | L32: 0.05 | M32: 0.14
B33: 922 | C33: Retten på Frederiksberg | D33: 195 | E33: 156 | F33: 64 | G33: 56 | H33: 6 | I33: 7 | J33: 232 | K33: 281 | L33: 0.29 | M33: 0.11
B34: 923 | C34: Københavns Byret | D34: 156 | E34: 141 | F34: 46 | G34: 48 | H34: 1 | I34: 1 | J34: 248 | K34: 256 | L34: 0.53 | M34: 0.52
B35: 1) Målene for de enkelte sagstyper er opstillet i samarbejde med byretterne. De aktuelle mål trådte i kraft i 2021.

Sheet Målopf.Civil
B2: MÅLOPFYLDELSE CIVILE SAGER (80 pct. hurtigste sager)
D4: Alle alm. sager, boligsager og småsager | F4: Hfh. almindelige sager og boligsager | H4: Hfh. småsager | J4: Familieret - §6- og 7-sager | L4: Familieret - prøvelsessager efter forenklet proces | N4: Tvangsfuldbyrdelses- sager - forældreansvarsloven | P4: Konkurskarantæne- sager
D5: =Overblik!$D$6 -> 2022 | E5: =Overblik!$E$6 -> 2023 | F5: =Overblik!$D$6 -> 2022 | G5: =Overblik!$E$6 -> 2023 | H5: =Overblik!$D$6 -> 2022 | I5: =Overblik!$E$6 -> 2023 | J5: =Overblik!$D$6 -> 2022 | K5: =Overblik!$E$6 -> 2023 | L5: =Overblik!$D$6 -> 2022 | M5: =Overblik!$E$6 -> 2023 | N5: =Overblik!$D$6 -> 2022 | O5: =Overblik!$E$6 -> 2023 | P5: =Overblik!$D$6 -> 2022 | Q5: =Overblik!$E$6 -> 2023
D6: 80 pct. | F6: 80 pct. | H6: 80 pct. | J6: 80 pct. | L6: 80 pct. | N6: 80 pct. | P6: 80 pct.
B8: MÅL | D8: < 122 dage | F8: < 426 dage | H8: < 213 dage | J8: < 120 dage | L8: < 70 dage | N8: < 30 dage | P8: < 120 dage
B9: SAMLET BYRETTERNE | D9: 128 | E9: 122 | F9: 497 | G9: 506 | H9: 413 | I9: 399 | J9: 137 | K9: 131 | L9: 47 | M9: 43 | N9: 14 | O9: 13 | P9: 96 | Q9: 94
B10: 5. BEDSTE RET | D10: 95 | E10: =SMALL(E12:E35,5) -> 74 | F10: 429 | G10: 425 | H10: 213 | I10: 182 | J10: 121 | K10: 107 | L10: 31 | M10: 34 | N10: 11 | O10: 10 | P10: 64 | Q10: 66
B11: EID | C11: Ret
B12: 901 | C12: Retten i Hjørring | D12: 88 | E12: 71 | F12: 401 | G12: 483 | H12: 218 | I12: 258 | J12: 130 | K12: 120 | L12: 53 | M12: 45 | N12: 20 | O12: 29 | P12: 106 | Q12: 114
B13: 902 | C13: Retten i Aalborg | D13: 89 | E13: 74 | F13: 507 | G13: 502 | H13: 190 | I13: 189 | J13: 123 | K13: 136 | L13: 66 | M13: 61 | N13: 14 | O13: 16 | P13: 94 | Q13: 110
B14: 903 | C14: Retten i Randers | D14: 98 | E14: 98 | F14: 545 | G14: 550 | H14: 393 | I14: 278 | J14: 121 | K14: 139 | L14: 30 | M14: 30 | N14: 12 | O14: 14 | P14: 136 | Q14: 102
B15: 904 | C15: Retten i Aarhus | D15: 115 | E15: 104 | F15: 693 | G15: 755 | H15: 291 | I15: 217 | J15: 153 | K15: 139 | L15: 16 | M15: 13 | N15: 13 | O15: 14 | P15: 84 | Q15: 85
B16: 905 | C16: Retten i Viborg | D16: 146 | E16: 132 | F16: 567 | G16: 558 | H16: 202 | I16: 182 | J16: 141 | K16: 104 | L16: 50 | M16: 53 | N16: 12 | O16: 13 | P16: 90 | Q16: 111
B17: 906 | C17: Retten i Holstebro | D17: 88 | E17: 70 | F17: 379 | G17: 328 | H17: 129 | I17: 113 | J17: 130 | K17: 141 | L17: 45 | M17: 45 | N17: 7 | O17: 8 | P17: 93 | Q17: 58
B18: 907 | C18: Retten i Herning | D18: 99 | E18: 88 | F18: 482 | G18: 450 | H18: 227 | I18: 204 | J18: 127 | K18: 121 | L18: 29 | M18: 34 | N18: 9 | O18: 10 | P18: 99 | Q18: 80
B19: 908 | C19: Retten i Horsens | D19: 139 | E19: 126 | F19: 622 | G19: 679 | H19: 300 | I19: 349 | J19: 168 | K19: 164 | L19: 92 | M19: 57 | N19: 13 | O19: 16 | P19: 137 | Q19: 124
B20: 909 | C20: Retten i Kolding | D20: 121 | E20: 121 | F20: 535 | G20: 527 | H20: 318 | I20: 270 | J20: 130 | K20: 125 | L20: 52 | M20: 59 | N20: 17 | O20: 14 | P20: 158 | Q20: 123
B21: 910 | C21: Retten i Esbjerg | D21: 147 | E21: 127 | F21: 612 | G21: 614 | H21: 354 | I21: 280 | J21: 117 | K21: 118 | L21: 41 | M21: 37 | N21: 16 | O21: 14 | P21: 95 | Q21: 86
B22: 911 | C22: Retten i Sønderborg | D22: 102 | E22: 94 | F22: 429 | G22: 434 | H22: 293 | I22: 285 | J22: 142 | K22: 125 | L22: 60 | M22: 41 | N22: 22 | O22: 19 | P22: 137 | Q22: 66
B23: 912 | C23: Retten i Odense | D23: 97 | E23: 94 | F23: 504 | G23: 425 | H23: 213 | I23: 172 | J23: 108 | K23: 107 | L23: 31 | M23: 26 | N23: 7 | O23: 8 | P23: 92 | Q23: 91
B24: 913 | C24: Retten i Svendborg | D24: 94 | E24: 119 | F24: 441 | G24: 622 | H24: 332 | I24: 259 | J24: 125 | K24: 131 | L24: 29 | M24: 29 | N24: 12 | O24: 10 | P24: 83 | Q24: 103
B25: 914 | C25: Retten i Nykøbing F. | D25: 66 | E25: 63 | F25: 334 | G25: 318 | H25: 150 | I25: 166 | J25: 101 | K25: 98 | L25: 42 | M25: 43 | N25: 10 | O25: 11 | P25: 64 | Q25: 66
B26: 915 | C26: Retten i Næstved | D26: 76 | E26: 67 | F26: 452 | G26: 497 | H26: 228 | I26: 227 | J26: 151 | K26: 153 | L26: 45 | M26: 46 | N26: 11 | O26: 8 | P26: 100 | Q26: 99
B27: 916 | C27: Retten i Holbæk | D27: 114 | E27: 113 | F27: 583 | G27: 605 | H27: 306 | I27: 374 | J27: 138 | K27: 119 | L27: 62 | M27: 69 | N27: 13 | O27: 12 | P27: 106 | Q27: 184
B28: 917 | C28: Retten i Roskilde | D28: 118 | E28: 91 | F28: 517 | G28: 512 | H28: 341 | I28: 137 | J28: 159 | K28: 191 | L28: 44 | M28: 35 | N28: 12 | O28: 12 | P28: 65 | Q28: 61
B29: 918 | C29: Retten i Hillerød | D29: 116 | E29: 102 | F29: 483 | G29: 485 | H29: 278 | I29: 356 | J29: 187 | K29: 170 | L29: 52 | M29: 61 | N29: 17 | O29: 15 | P29: 133 | Q29: 115
B30: 919 | C30: Retten i Helsingør | D30: 118 | E30: 95 | F30: 499 | G30: 413 | H30: 249 | I30: 210 | J30: 143 | K30: 93 | L30: 40 | M30: 36 | N30: 21 | O30: 16 | P30: 109 | Q30: 103
B31: 920 | C31: Retten i Lyngby | D31: 110 | E31: 105 | F31: 404 | G31: 379 | H31: 230 | I31: 205 | J31: 125 | K31: 138 | L31: 58 | M31: 57 | N31: 27 | O31: 11 | P31: 8 | Q31: -
B32: 921 | C32: Retten i Glostrup | D32: 132 | E32: 116 | F32: 586 | G32: 611 | H32: 296 | I32: 261 | J32: 194 | K32: 172 | L32: 57 | M32: 57 | N32: 24 | O32: 30 | P32: 6 | Q32: 17
B33: 922 | C33: Retten på Frederiksberg | D33: 126 | E33: 124 | F33: 495 | G33: 539 | H33: 231 | I33: 287 | J33: 107 | K33: 85 | L33: 82 | M33: 43 | N33: 18 | O33: 12 | P33: 10 | Q33: 36
B34: 923 | C34: Københavns Byret | D34: 204 | E34: 176 | F34: 479 | G34: 501 | H34: 606 | I34: 677 | J34: 143 | K34: 151 | L34: 51 | M34: 43 | N34: 11 | O34: 12 | P34: 8 | Q34: -
B37: 1) Målene for de enkelte sagstyper er opstillet i samarbejde med byretterne. De aktuelle mål trådte i kraft i 2021.

Sheet Målopf.Foged
B2: MÅLOPFYLDELSE FOGEDSAGER (PROCENT)
D4: Alm. fogedsager og betalingspåkrav | F4: Særlige fogedsager | H4: Tvangsauktion solgt på eller efter 1. auktion
D5: =Overblik!$D$6 -> 2022 | E5: =Overblik!$E$6 -> 2023 | F5: =Overblik!$D$6 -> 2022 | G5: =Overblik!$E$6 -> 2023 | H5: =Overblik!$D$6 -> 2022 | I5: =Overblik!$E$6 -> 2023
D6: < 3 MDR. | F6: < 2 MDR. | H6: < 5 MDR.
B8: MÅL | D8: 70 pct. | F8: 70 pct. | H8: 80 pct.
B9: SAMLET BYRETTERNE | D9: 0.77 | E9: 0.76 | F9: 0.8 | G9: 0.81 | H9: 0.83 | I9: 0.83
B10: 5. BEDSTE RET | D10: =LARGE(D12:D35,5) -> 0.86 | E10: 0.85 | F10: 0.88 | G10: 0.87 | H10: 0.94 | I10: 0.9
B11: EID | C11: Ret
B12: 901 | C12: Retten i Hjørring | D12: 0.72 | E12: 0.71 | F12: 0.8 | G12: 0.74 | H12: 0.76 | I12: 0.77
B13: 902 | C13: Retten i Aalborg | D13: 0.75 | E13: 0.8 | F13: 0.77 | G13: 0.75 | H13: 0.83 | I13: 0.72
B14: 903 | C14: Retten i Randers | D14: 0.78 | E14: 0.79 | F14: 0.73 | G14: 0.72 | H14: 0.72 | I14: 0.93
B15: 904 | C15: Retten i Aarhus | D15: 0.79 | E15: 0.8 | F15: 0.92 | G15: 0.94 | H15: 0.25 | I15: 0.5
B16: 905 | C16: Retten i Viborg | D16: 0.74 | E16: 0.64 | F16: 0.81 | G16: 0.78 | H16: 0.85 | I16: 0.89
B17: 906 | C17: Retten i Holstebro | D17: 0.88 | E17: 0.88 | F17: 0.89 | G17: 0.89 | H17: 0.94 | I17: 0.95
B18: 907 | C18: Retten i Herning | D18: 0.88 | E18: 0.84 | F18: 0.86 | G18: 0.84 | H18: 0.85 | I18: 0.89
B19: 908 | C19: Retten i Horsens | D19: 0.84 | E19: 0.82 | F19: 0.88 | G19: 0.79 | H19: 0.89 | I19: 0.83
B20: 909 | C20: Retten i Kolding | D20: 0.81 | E20: 0.85 | F20: 0.86 | G20: 0.89 | H20: 0.77 | I20: 0.76
B21: 910 | C21: Retten i Esbjerg | D21: 0.85 | E21: 0.83 | F21: 0.76 | G21: 0.85 | H21: 0.78 | I21: 0.84
B22: 911 | C22: Retten i Sønderborg | D22: 0.72 | E22: 0.84 | F22: 0.76 | G22: 0.76 | H22: 0.73 | I22: 0.69
B23: 912 | C23: Retten i Odense | D23: 0.68 | E23: 0.74 | F23: 0.74 | G23: 0.74 | H23: 0.83 | I23: 0.86
B24: 913 | C24: Retten i Svendborg | D24: 0.6 | E24: 0.6 | F24: 0.73 | G24: 0.73 | H24: 0.78 | I24: 0.92
B25: 914 | C25: Retten i Nykøbing F. | D25: 0.91 | E25: 0.86 | F25: 0.92 | G25: 0.84 | H25: 0.95 | I25: 0.93
B26: 915 | C26: Retten i Næstved | D26: 0.86 | E26: 0.89 | F26: 0.88 | G26: 0.89 | H26: 0.88 | I26: 0.9
B27: 916 | C27: Retten i Holbæk | D27: 0.85 | E27: 0.77 | F27: 0.74 | G27: 0.62 | H27: 0.92 | I27: 0.9
B28: 917 | C28: Retten i Roskilde | D28: 0.87 | E28: 0.88 | F28: 0.87 | G28: 0.87 | H28: 0.95 | I28: 0.86
B29: 918 | C29: Retten i Hillerød | D29: 0.69 | E29: 0.5 | F29: 0.71 | G29: 0.67 | H29: 1 | I29: 0.81
B30: 919 | C30: Retten i Helsingør | D30: 0.66 | E30: 0.8 | F30: 0.74 | G30: 0.81 | H30: 0.73 | I30: 0.78
B31: 920 | C31: Retten i Lyngby | D31: 0.85 | E31: 0.85 | F31: 0.89 | G31: 0.83 | H31: 1 | I31: 0
B32: 921 | C32: Retten i Glostrup | D32: 0.6 | E32: 0.41 | F32: 0.7 | G32: 0.71 | H32: 0.5 | I32: 0.5
B33: 922 | C33: Retten på Frederiksberg | D33: 0.84 | E33: 0.83 | F33: 0.77 | G33: 0.86 | H33: 0.67 | I33: 0.25
B34: 923 | C34: Københavns Byret | D34: 0.76 | E34: 0.82 | F34: 0.82 | G34: 0.82 | H34: 0.67 | I34: 0
B37: 1) Målene for de enkelte sagstyper er opstillet i samarbejde med byretterne. De aktuelle mål trådte i kraft i 2019.

Sheet Målopf.Skifte
B2: MÅLOPFYLDELSE SKIFTESAGER (PROCENT)
D4: Udlevering af bo | F4: Tvangsopløsningssager (eksklusive likvidation) | H4: Gældssanering (kun indledte sager)
D5: =Overblik!$D$6 -> 2022 | E5: =Overblik!$E$6 -> 2023 | F5: =Overblik!$D$6 -> 2022 | G5: =Overblik!$E$6 -> 2023 | H5: =Overblik!$D$6 -> 2022 | I5: =Overblik!$E$6 -> 2023
D6: <2 MDR. | F6: <3 MDR. | H6: <9 MDR.
B8: MÅL | D8: 80 pct. | F8: 75 pct. | H8: 75 pct.
B9: SAMLET BYRETTERNE | D9: 0.78 | E9: 0.78 | F9: 0.85 | G9: 0.85 | H9: 0.78 | I9: 0.83
B10: 5. BEDSTE RET | D10: 0.88 | E10: =LARGE(E12:E35,5) -> 0.9 | F10: 0.9 | G10: =LARGE(G12:G35,5) -> 0.93 | H10: 0.85 | I10: =LARGE(I12:I35,5) -> 0.93
B11: EID | C11: Ret
B12: 901 | C12: Retten i Hjørring | D12: 0.74 | E12: 0.72 | F12: 0.87 | G12: 0.8 | H12: 0.77 | I12: 0.8
B13: 902 | C13: Retten i Aalborg | D13: 0.45 | E13: 0.51 | F13: 0.82 | G13: 0.58 | H13: 0.73 | I13: 0.58
B14: 903 | C14: Retten i Randers | D14: 0.89 | E14: 0.94 | F14: 0.89 | G14: 0.91 | H14: 0.78 | I14: 0.91
B15: 904 | C15: Retten i Aarhus | D15: 0.71 | E15: 0.76 | F15: 0.85 | G15: 0.91 | H15: 0.84 | I15: 0.91
B16: 905 | C16: Retten i Viborg | D16: 0.78 | E16: 0.9 | F16: 0.98 | G16: 0.88 | H16: 0.7 | I16: 0.88
B17: 906 | C17: Retten i Holstebro | D17: 0.82 | E17: 0.83 | F17: 0.85 | G17: 0.96 | H17: 0.95 | I17: 0.96
B18: 907 | C18: Retten i Herning | D18: 0.76 | E18: 0.82 | F18: 0.9 | G18: 0.78 | H18: 0.72 | I18: 0.78
B19: 908 | C19: Retten i Horsens | D19: 0.73 | E19: 0.48 | F19: 0.94 | G19: 0.93 | H19: 0.69 | I19: 0.93
B20: 909 | C20: Retten i Kolding | D20: 0.84 | E20: 0.82 | F20: 0.66 | G20: 0.93 | H20: 0.85 | I20: 0.93
B21: 910 | C21: Retten i Esbjerg | D21: 0.92 | E21: 0.92 | F21: 0.77 | G21: 0.78 | H21: 0.79 | I21: 0.78
B22: 911 | C22: Retten i Sønderborg | D22: 0.69 | E22: 0.65 | F22: 0.83 | G22: 0.79 | H22: 0.8 | I22: 0.79
B23: 912 | C23: Retten i Odense | D23: 0.76 | E23: 0.8 | F23: 0.91 | G23: 0.93 | H23: 0.84 | I23: 0.93
B24: 913 | C24: Retten i Svendborg | D24: 0.81 | E24: 0.86 | F24: 0.78 | G24: 0.73 | H24: 0.69 | I24: 0.73
B25: 914 | C25: Retten i Nykøbing F. | D25: 0.91 | E25: 0.92 | F25: 0.85 | G25: 0.83 | H25: 0.87 | I25: 0.83
B26: 915 | C26: Retten i Næstved | D26: 0.81 | E26: 0.83 | F26: 0.83 | G26: 0.95 | H26: 0.94 | I26: 0.95
B27: 916 | C27: Retten i Holbæk | D27: 0.88 | E27: 0.79 | F27: 0.86 | G27: 0.9 | H27: 0.83 | I27: 0.9
B28: 917 | C28: Retten i Roskilde | D28: 0.88 | E28: 0.89 | F28: 0.87 | G28: 0.87 | H28: 0.79 | I28: 0.87
B29: 918 | C29: Retten i Hillerød | D29: 0.85 | E29: 0.79 | F29: 0.91 | G29: 0.61 | H29: 0.69 | I29: 0.61
B30: 919 | C30: Retten i Helsingør | D30: 0.82 | E30: 0.88 | F30: 0.84 | G30: 0.82 | H30: 0.71 | I30: 0.82
B31: 920 | C31: Retten i Lyngby | D31: 0.87 | E31: 0.91 | F31: - | G31: - | H31: - | I31: -
B32: 921 | C32: Retten i Glostrup | D32: 0.76 | E32: 0.73 | F32: - | G32: - | H32: - | I32: -
B33: 922 | C33: Retten på Frederiksberg | D33: 0.49 | E33: 0.58 | F33: - | G33: - | H33: - | I33: -
B34: 923 | C34: Københavns Byret | D34: 0.82 | E34: 0.9 | F34: - | G34: - | H34: - | I34: -
B37: 1) Målene for de enkelte sagstyper er opstillet i samarbejde med byretterne. De aktuelle mål trådte i kraft i 2019.

Sheet Sagstid.Straf
B2: GENNEMSNITLIG SAGSBEHANDLINGSTID STRAFFESAGER (DAGE)
D4: Nævningesager | F4: Domsmandssager | H4: Sager uden domsmænd | J4: Tilståelsessager
D5: =Overblik!$D$6 -> 2022 | E5: =Overblik!$E$6 -> 2023 | F5: =Overblik!$D$6 -> 2022 | G5: =Overblik!$E$6 -> 2023 | H5: =Overblik!$D$6 -> 2022 | I5: =Overblik!$E$6 -> 2023 | J5: =Overblik!$D$6 -> 2022 | K5: =Overblik!$E$6 -> 2023
B6: SAMLET BYRETTERNE | D6: 242 | E6: 195 | F6: 255 | G6: 261 | H6: 42 | I6: 45 | J6: 124 | K6: 113
B7: 5. BEDSTE RET | D7: =SMALL(D9:D32,5) -> 136 | E7: =SMALL(E9:E32,5) -> 132 | F7: =SMALL(F9:F32,5) -> 178 | G7: 196 | H7: 21 | I7: 16 | J7: 71 | K7: 62
B8: EID | C8: Ret
B9: 901 | C9: Retten i Hjørring | D9: 131 | E9: 313 | F9: 182 | G9: 226 | H9: 44 | I9: 46 | J9: 92 | K9: 129
B10: 902 | C10: Retten i Aalborg | D10: 209 | E10: 239 | F10: 206 | G10: 243 | H10: 35 | I10: 33 | J10: 110 | K10: 105
B11: 903 | C11: Retten i Randers | D11: 257 | E11: 92 | F11: 222 | G11: 240 | H11: 49 | I11: 42 | J11: 176 | K11: 163
B12: 904 | C12: Retten i Aarhus | D12: 262 | E12: 254 | F12: 437 | G12: 520 | H12: 88 | I12: 94 | J12: 248 | K12: 115
B13: 905 | C13: Retten i Viborg | D13: 229 | E13: 160 | F13: 307 | G13: 261 | H13: 33 | I13: 32 | J13: 124 | K13: 108
B14: 906 | C14: Retten i Holstebro | D14: 143 | E14: 242 | F14: 151 | G14: 147 | H14: 21 | I14: 21 | J14: 66 | K14: 42
B15: 907 | C15: Retten i Herning | D15: 162 | E15: 156 | F15: 176 | G15: 201 | H15: 33 | I15: 4 | J15: 136 | K15: 126
B16: 908 | C16: Retten i Horsens | D16: 171 | E16: 148 | F16: 412 | G16: 412 | H16: 81 | I16: 109 | J16: 248 | K16: 218
B17: 909 | C17: Retten i Kolding | D17: 117 | E17: 142 | F17: 245 | G17: 278 | H17: 52 | I17: 39 | J17: 146 | K17: 135
B18: 910 | C18: Retten i Esbjerg | D18: 186 | E18: 142 | F18: 367 | G18: 383 | H18: 50 | I18: 45 | J18: 64 | K18: 56
B19: 911 | C19: Retten i Sønderborg | D19: 188 | E19: 132 | F19: 260 | G19: 345 | H19: 64 | I19: 68 | J19: 105 | K19: 106
B20: 912 | C20: Retten i Odense | D20: 287 | E20: 164 | F20: 174 | G20: 145 | H20: 20 | I20: 16 | J20: 71 | K20: 88
B21: 913 | C21: Retten i Svendborg | D21: 136 | E21: - | F21: 190 | G21: 245 | H21: 48 | I21: 52 | J21: 116 | K21: 120
B22: 914 | C22: Retten i Nykøbing F. | D22: 136 | E22: 163 | F22: 106 | G22: 117 | H22: 13 | I22: 16 | J22: 54 | K22: 51
B23: 915 | C23: Retten i Næstved | D23: 232 | E23: 174 | F23: 178 | G23: 185 | H23: 16 | I23: 22 | J23: 79 | K23: 117
B24: 916 | C24: Retten i Holbæk | D24: 279 | E24: 245 | F24: 286 | G24: 284 | H24: 41 | I24: 72 | J24: 134 | K24: 185
B25: 917 | C25: Retten i Roskilde | D25: 233 | E25: 218 | F25: 229 | G25: 208 | H25: 45 | I25: 41 | J25: 53 | K25: 62
B26: 918 | C26: Retten i Hillerød | D26: 221 | E26: 90 | F26: 239 | G26: 254 | H26: 33 | I26: 29 | J26: 129 | K26: 141
B27: 919 | C27: Retten i Helsingør | D27: 113 | E27: 41 | F27: 227 | G27: 203 | H27: 24 | I27: 16 | J27: 112 | K27: 62
B28: 920 | C28: Retten i Lyngby | D28: 212 | E28: 114 | F28: 204 | G28: 196 | H28: 17 | I28: 2 | J28: 96 | K28: 98
B29: 921 | C29: Retten i Glostrup | D29: 304 | E29: 259 | F29: 370 | G29: 356 | H29: 64 | I29: 7 | J29: 143 | K29: 154
B30: 922 | C30: Retten på Frederiksberg | D30: 266 | E30: 263 | F30: 274 | G30: 251 | H30: 38 | I30: 51 | J30: 124 | K30: 125
B31: 923 | C31: Københavns Byret | D31: 304 | E31: 212 | F31: 262 | G31: 228 | H31: 42 | I31: 45 | J31: 105 | K31: 104

Sheet Sagstid.Civil
B2: GENNEMSNITLIG SAGSBEHANDLINGSTID CIVILE SAGER (DAGE)
D4: Hovedforhandlede almindelige sager | F4: Hovedforhandlede boligretssager | H4: Hovedforhandlede småsager | J4: Hovedforhandlede §§ 6 og 7-sager
D5: =Overblik!$D$6 -> 2022 | E5: =Overblik!$E$6 -> 2023 | F5: =Overblik!$D$6 -> 2022 | G5: =Overblik!$E$6 -> 2023 | H5: =Overblik!$D$6 -> 2022 | I5: =Overblik!$E$6 -> 2023 | J5: =Overblik!$D$6 -> 2022 | K5: =Overblik!$E$6 -> 2023
B6: SAMLET BYRETTERNE | D6: 668 | E6: 683 | F6: 566 | G6: 616 | H6: 529 | I6: 529 | J6: 224 | K6: 227
B7: 5. BEDSTE RET | D7: =SMALL(D9:D32,5) -> 594 | E7: =SMALL(E9:E33,5) -> 569 | F7: 401 | G7: =SMALL(G9:G32,5) -> 470 | H7: =SMALL(H9:H32,5) -> 252 | I7: =SMALL(I9:I32,5) -> 236 | J7: =SMALL(J9:J32,5) -> 199 | K7: =SMALL(K9:K32,5) -> 194
B8: EID | C8: Ret
B9: 901 | C9: Retten i Hjørring | D9: 554 | E9: 630 | F9: 305 | G9: 447 | H9: 264 | I9: 374 | J9: 223 | K9: 194
B10: 902 | C10: Retten i Aalborg | D10: 669 | E10: 690 | F10: 528 | G10: 520 | H10: 252 | I10: 236 | J10: 233 | K10: 220
B11: 903 | C11: Retten i Randers | D11: 704 | E11: 779 | F11: 771 | G11: 872 | H11: 562 | I11: 362 | J11: 200 | K11: 213
B12: 904 | C12: Retten i Aarhus | D12: 913 | E12: 957 | F12: 940 | G12: 753 | H12: 391 | I12: 276 | J12: 234 | K12: 239
B13: 905 | C13: Retten i Viborg | D13: 716 | E13: 720 | F13: 538 | G13: 653 | H13: 251 | I13: 297 | J13: 199 | K13: 164
B14: 906 | C14: Retten i Holstebro | D14: 529 | E14: 483 | F14: 572 | G14: 272 | H14: 172 | I14: 131 | J14: 212 | K14: 247
B15: 907 | C15: Retten i Herning | D15: 695 | E15: 608 | F15: 594 | G15: 539 | H15: 256 | I15: 267 | J15: 213 | K15: 219
B16: 908 | C16: Retten i Horsens | D16: 782 | E16: 892 | F16: 709 | G16: 759 | H16: 392 | I16: 454 | J16: 233 | K16: 237
B17: 909 | C17: Retten i Kolding | D17: 694 | E17: 723 | F17: 617 | G17: 539 | H17: 369 | I17: 298 | J17: 213 | K17: 205
B18: 910 | C18: Retten i Esbjerg | D18: 832 | E18: 799 | F18: 507 | G18: 945 | H18: 413 | I18: 327 | J18: 193 | K18: 194
B19: 911 | C19: Retten i Sønderborg | D19: 594 | E19: 569 | F19: 540 | G19: 497 | H19: 329 | I19: 342 | J19: 206 | K19: 203
B20: 912 | C20: Retten i Odense | D20: 656 | E20: 601 | F20: 403 | G20: 563 | H20: 250 | I20: 197 | J20: 175 | K20: 167
B21: 913 | C21: Retten i Svendborg | D21: 606 | E21: 770 | F21: 572 | G21: 470 | H21: 397 | I21: 344 | J21: 229 | K21: 212
B22: 914 | C22: Retten i Nykøbing F. | D22: 501 | E22: 446 | F22: 332 | G22: 325 | H22: 180 | I22: 195 | J22: 165 | K22: 173
B23: 915 | C23: Retten i Næstved | D23: 651 | E23: 617 | F23: 441 | G23: 613 | H23: 268 | I23: 271 | J23: 240 | K23: 262
B24: 916 | C24: Retten i Holbæk | D24: 714 | E24: 754 | F24: 408 | G24: 606 | H24: 346 | I24: 414 | J24: 209 | K24: 222
B25: 917 | C25: Retten i Roskilde | D25: 628 | E25: 642 | F25: 509 | G25: 639 | H25: 412 | I25: 193 | J25: 286 | K25: 308
B26: 918 | C26: Retten i Hillerød | D26: 615 | E26: 677 | F26: 637 | G26: 536 | H26: 338 | I26: 395 | J26: 299 | K26: 282
B27: 919 | C27: Retten i Helsingør | D27: 659 | E27: 546 | F27: 489 | G27: 570 | H27: 332 | I27: 292 | J27: 227 | K27: 204
B28: 920 | C28: Retten i Lyngby | D28: 556 | E28: 515 | F28: 371 | G28: 401 | H28: 279 | I28: 274 | J28: 203 | K28: 217
B29: 921 | C29: Retten i Glostrup | D29: 739 | E29: 797 | F29: 716 | G29: 598 | H29: 377 | I29: 352 | J29: 284 | K29: 286
B30: 922 | C30: Retten på Frederiksberg | D30: 671 | E30: 701 | F30: 545 | G30: 949 | H30: 310 | I30: 354 | J30: 181 | K30: 161
B31: 923 | C31: Københavns Byret | D31: 647 | E31: 680 | F31: 549 | G31: 530 | H31: 703 | I31: 787 | J31: 246 | K31: 267
E33: 13302

Sheet Sagstid.Foged
B2: GENNEMSNITLIG SAGSBEHANDLINGSTID FOGEDSAGER (DAGE)
D4: Alm. fogedsager | F4: Særlige fogedsager | H4: Betalingspåkrav | J4: Tvangsauktioner
D5: =Overblik!$D$6 -> 2022 | E5: =Overblik!$E$6 -> 2023 | F5: =Overblik!$D$6 -> 2022 | G5: =Overblik!$E$6 -> 2023 | H5: =Overblik!$D$6 -> 2022 | I5: =Overblik!$E$6 -> 2023 | J5: =Overblik!$D$6 -> 2022 | K5: =Overblik!$E$6 -> 2023
B6: SAMLET BYRETTERNE | D6: 82 | E6: 82 | F6: 56 | G6: 46 | H6: 64 | I6: 65 | J6: 70 | K6: 63
B7: 5. BEDSTE RET | D7: =SMALL(D9:D32,5) -> 62 | E7: 70 | F7: 37 | G7: 38 | H7: 51 | I7: 54 | J7: 56.42 | K7: 51.49
B8: EID | C8: Ret
B9: 901 | C9: Retten i Hjørring | D9: 84 | E9: 88 | F9: 55 | G9: 48 | H9: 51 | I9: 60 | J9: 80.16 | K9: 79.94
B10: 902 | C10: Retten i Aalborg | D10: 77 | E10: 83 | F10: 50 | G10: 51 | H10: 54 | I10: 56 | J10: 95.77 | K10: 80.52
B11: 903 | C11: Retten i Randers | D11: 89 | E11: 89 | F11: 51 | G11: 63 | H11: 98 | I11: 77 | J11: 73.71 | K11: 64.29
B12: 904 | C12: Retten i Aarhus | D12: 93 | E12: 83 | F12: 35 | G12: 37 | H12: 89 | I12: 92 | J12: 80.13 | K12: 74.38
B13: 905 | C13: Retten i Viborg | D13: 103 | E13: 85 | F13: 52 | G13: 42 | H13: 76 | I13: 65 | J13: 69.72 | K13: 72.52
B14: 906 | C14: Retten i Holstebro | D14: 50 | E14: 64 | F14: 35 | G14: 37 | H14: 53 | I14: 54 | J14: 50.19 | K14: 56.07
B15: 907 | C15: Retten i Herning | D15: 62 | E15: 85 | F15: 40 | G15: 40 | H15: 51 | I15: 58 | J15: 59.27 | K15: 51.49
B16: 908 | C16: Retten i Horsens | D16: 62 | E16: 77 | F16: 37 | G16: 45 | H16: 56 | I16: 65 | J16: 59.59 | K16: 56.41
B17: 909 | C17: Retten i Kolding | D17: 69 | E17: 71 | F17: 45 | G17: 46 | H17: 67 | I17: 63 | J17: 89.75 | K17: 68.87
B18: 910 | C18: Retten i Esbjerg | D18: 62 | E18: 76 | F18: 48 | G18: 40 | H18: 65 | I18: 82 | J18: 74.22 | K18: 68.88
B19: 911 | C19: Retten i Sønderborg | D19: 144 | E19: 94 | F19: 47 | G19: 53 | H19: 77 | I19: 66 | J19: 116.84 | K19: 74.83
B20: 912 | C20: Retten i Odense | D20: 106 | E20: 77 | F20: 52 | G20: 47 | H20: 67 | I20: 70 | J20: 56.45 | K20: 63.52
B21: 913 | C21: Retten i Svendborg | D21: 102 | E21: 100 | F21: 56 | G21: 47 | H21: 74 | I21: 81 | J21: 97.67 | K21: 72.06
B22: 914 | C22: Retten i Nykøbing F. | D22: 53 | E22: 74 | F22: 37 | G22: 42 | H22: 51 | I22: 43 | J22: 46.85 | K22: 50.63
B23: 915 | C23: Retten i Næstved | D23: 68 | E23: 57 | F23: 36 | G23: 35 | H23: 58 | I23: 58 | J23: 62.02 | K23: 59.41
B24: 916 | C24: Retten i Holbæk | D24: 71 | E24: 99 | F24: 51 | G24: 57 | H24: 46 | I24: 59 | J24: 57.13 | K24: 56.11
B25: 917 | C25: Retten i Roskilde | D25: 60 | E25: 70 | F25: 47 | G25: 38 | H25: 35 | I25: 43 | J25: 56.42 | K25: 66.89
B26: 918 | C26: Retten i Hillerød | D26: 101 | E26: 107 | F26: 67 | G26: 58 | H26: 53 | I26: 73 | J26: 50.59 | K26: 46.75
B27: 919 | C27: Retten i Helsingør | D27: 107 | E27: 96 | F27: 57 | G27: 61 | H27: 62 | I27: 50 | J27: 59.15 | K27: 51.87
B28: 920 | C28: Retten i Lyngby | D28: 58 | E28: 65 | F28: 34 | G28: 38 | H28: 36 | I28: 41 | J28: 34.16 | K28: 41.27
B29: 921 | C29: Retten i Glostrup | D29: 92 | E29: 116 | F29: 48 | G29: 47 | H29: 80 | I29: 81 | J29: 59.28 | K29: 75.87
B30: 922 | C30: Retten på Frederiksberg | D30: 64 | E30: 70 | F30: 46 | G30: 47 | H30: 50 | I30: 57 | J30: 66.87 | K30: 39.28
B31: 923 | C31: Københavns Byret | D31: 73 | E31: 68 | F31: 49 | G31: 47 | H31: 72 | I31: 70 | J31: 114.57 | K31: 72.95

Sheet Sagstid.Skifte
B2: GENNEMSNITLIG SAGSBEHANDLINGSTID SKIFTESAGER (DAGE)
D4: Boudlæg | F4: Uskiftet bo | H4: Privat skifte | J4: Forenklet privat skifte
D5: =Overblik!$D$6 -> 2022 | E5: =Overblik!$E$6 -> 2023 | F5: =Overblik!$D$6 -> 2022 | G5: =Overblik!$E$6 -> 2023 | H5: =Overblik!$D$6 -> 2022 | I5: =Overblik!$E$6 -> 2023 | J5: =Overblik!$D$6 -> 2022 | K5: =Overblik!$E$6 -> 2023
B6: SAMLET BYRETTERNE | D6: 49 | E6: 47 | F6: 96 | G6: 104 | H6: 342 | I6: 329 | J6: 78 | K6: 86
B7: 5. BEDSTE RET | D7: =SMALL(D9:D32,5) -> 35 | E7: 30 | F7: 86 | G7: 83 | H7: 310 | I7: 308 | J7: 65 | K7: 63
B8: EID | C8: Ret
B9: 901 | C9: Retten i Hjørring | D9: 60 | E9: 60 | F9: 93 | G9: 105 | H9: 310 | I9: 328 | J9: 81 | K9: 87
B10: 902 | C10: Retten i Aalborg | D10: 67 | E10: 57 | F10: 105 | G10: 99 | H10: 366 | I10: 358 | J10: 107 | K10: 100
B11: 903 | C11: Retten i Randers | D11: 35 | E11: 29 | F11: 73 | G11: 70 | H11: 316 | I11: 297 | J11: 63 | K11: 48
B12: 904 | C12: Retten i Aarhus | D12: 61 | E12: 62 | F12: 111 | G12: 102 | H12: 404 | I12: 369 | J12: 80 | K12: 89
B13: 905 | C13: Retten i Viborg | D13: 44 | E13: 35 | F13: 87 | G13: 80 | H13: 335 | I13: 314 | J13: 65 | K13: 62
B14: 906 | C14: Retten i Holstebro | D14: 53 | E14: 46 | F14: 89 | G14: 79 | H14: 348 | I14: 337 | J14: 68 | K14: 63
B15: 907 | C15: Retten i Herning | D15: 53 | E15: 47 | F15: 94 | G15: 83 | H15: 342 | I15: 308 | J15: 83 | K15: 63
B16: 908 | C16: Retten i Horsens | D16: 63 | E16: 81 | F16: 123 | G16: 176 | H16: 364 | I16: 373 | J16: 81 | K16: 99
B17: 909 | C17: Retten i Kolding | D17: 32 | E17: 28 | F17: 93 | G17: 85 | H17: 350 | I17: 328 | J17: 82 | K17: 66
B18: 910 | C18: Retten i Esbjerg | D18: 28 | E18: 28 | F18: 88 | G18: 88 | H18: 304 | I18: 312 | J18: 47 | K18: 47
B19: 911 | C19: Retten i Sønderborg | D19: 69 | E19: 66 | F19: 108 | G19: 146 | H19: 339 | I19: 341 | J19: 86 | K19: 110
B20: 912 | C20: Retten i Odense | D20: 57 | E20: 48 | F20: 86 | G20: 85 | H20: 329 | I20: 309 | J20: 74 | K20: 67
B21: 913 | C21: Retten i Svendborg | D21: 43 | E21: 44 | F21: 86 | G21: 84 | H21: 342 | I21: 333 | J21: 78 | K21: 73
B22: 914 | C22: Retten i Nykøbing F. | D22: 33 | E22: 31 | F22: 51 | G22: 56 | H22: 291 | I22: 291 | J22: 56 | K22: 54
B23: 915 | C23: Retten i Næstved | D23: 47 | E23: 36 | F23: 103 | G23: 88 | H23: 323 | I23: 321 | J23: 73 | K23: 76
B24: 916 | C24: Retten i Holbæk | D24: 31 | E24: 49 | F24: 75 | G24: 85 | H24: 318 | I24: 322 | J24: 63 | K24: 107
B25: 917 | C25: Retten i Roskilde | D25: 38 | E25: 40 | F25: 100 | G25: 113 | H25: 308 | I25: 309 | J25: 67 | K25: 82
B26: 918 | C26: Retten i Hillerød | D26: 46 | E26: 54 | F26: 103 | G26: 155 | H26: 334 | I26: 353 | J26: 94 | K26: 145
B27: 919 | C27: Retten i Helsingør | D27: 38 | E27: 28 | F27: 111 | G27: 117 | H27: 327 | I27: 305 | J27: 79 | K27: 87
B28: 920 | C28: Retten i Lyngby | D28: 38 | E28: 39 | F28: 121 | G28: 125 | H28: 340 | I28: 324 | J28: 73 | K28: 67
B29: 921 | C29: Retten i Glostrup | D29: 54 | E29: 59 | F29: 121 | G29: 128 | H29: 321 | I29: 328 | J29: 90 | K29: 97
B30: 922 | C30: Retten på Frederiksberg | D30: 77 | E30: 73 | F30: 112 | G30: 197 | H30: 505 | I30: 416 | J30: 122 | K30: 190
B31: 923 | C31: Københavns Byret | D31: 42 | E31: 30 | F31: 96 | G31: 84 | H31: 308 | I31: 290 | J31: 85 | K31: 75

Sheet HR-nøgletal_lønsum
B2: UDVALGTE HR-NØGLETAL
D4: Gnst. antal sygedage pr. årsværk | F4: Personaleomsætning (%) | H4: Lønsumsforbrug (mio.) 2023-pl
D5: =Overblik!$D$6 -> 2022 | E5: =Overblik!$E$6 -> 2023 | F5: =Overblik!$D$6 -> 2022 | G5: =Overblik!$E$6 -> 2023 | H5: =Overblik!$D$6 -> 2022 | I5: =Overblik!$E$6 -> 2023
B6: SAMLET BYRETTERNE | D6: 12.1 | E6: 12.7 | F6: 10.3 | G6: 9.8 | H6: 38.00590534 | I6: 36.99203646
B7: 5. BEDSTE RET | D7: =SMALL(D9:D32,5) -> 9.1 | E7: =SMALL(E9:E32,5) -> 9.759939992
B8: EID | C8: Ret
B9: 901 | C9: Retten i Hjørring | D9: - | E9: - | F9: 10.6 | G9: 14.421774 | H9: 26.02203098 | I9: 24.89226561
B10: 902 | C10: Retten i Aalborg | D10: 8.6 | E10: 14.02714123 | F10: 5.8 | G10: 14.12216745 | H10: 43.59657191 | I10: 43.66916866
B11: 903 | C11: Retten i Randers | D11: 14.6 | E11: 11.03265335 | F11: 2.9 | G11: 5.890981541 | H11: 30.06977239 | I11: 29.36774854
B12: 904 | C12: Retten i Aarhus | D12: 15.7 | E12: 13.79527616 | F12: 10.7 | G12: 12.74137108 | H12: 54.26175055 | I12: 56.73738739
B13: 905 | C13: Retten i Viborg | D13: 8.9 | E13: 10.28979121 | F13: 12.1 | G13: 11.92371995 | H13: 33.41836038 | I13: 29.45832055
B14: 906 | C14: Retten i Holstebro | D14: 11.9 | E14: 10.6675049 | F14: 6.7 | G14: 20.01930854 | H14: 21.76236345 | I14: 21.78017538
B15: 907 | C15: Retten i Herning | D15: 9.1 | E15: 9.759939992 | F15: 8.9 | G15: 4.13142986 | H15: 26.06030426 | I15: 26.42756394
B16: 908 | C16: Retten i Horsens | D16: 11.4 | E16: 21.14031149 | F16: 9 | G16: 7.945290335 | H16: 24.94976584 | I16: 26.6746039
B17: 909 | C17: Retten i Kolding | D17: 9.8 | E17: 12.61795006 | F17: 9.4 | G17: 7.663762193 | H17: 43.66723954 | I17: 44.33803522
B18: 910 | C18: Retten i Esbjerg | D18: 12.9 | E18: 13.07479122 | F18: 11.7 | G18: 9.321208147 | H18: 28.91669474 | I18: 30.43392547
B19: 911 | C19: Retten i Sønderborg | D19: 9 | E19: 6.852596241 | F19: 14.4 | G19: 6.767370861 | H19: 37.07780481 | I19: 37.6672895
B20: 912 | C20: Retten i Odense | D20: 11 | E20: 9.666696896 | F20: 12.5 | G20: 11.85327752 | H20: 46.62372729 | I20: 43.29756777
B21: 913 | C21: Retten i Svendborg | D21: 11.7 | E21: 8.046373611 | F21: 6.7 | G21: 10.55990746 | H21: 21.84335835 | I21: 20.85964125
B22: 914 | C22: Retten i Nykøbing F. | D22: 9 | E22: 9.25980226 | F22: 5.8 | G22: 9.814012007 | H22: 28.31278376 | I22: 28.3297832
B23: 915 | C23: Retten i Næstved | D23: 11.4 | E23: 14.90413058 | F23: 6.6 | G23: 9.118967259 | H23: 35.95013405 | I23: 35.71747119
B24: 916 | C24: Retten i Holbæk | D24: 17.2 | E24: 11.18501884 | F24: 6.6 | G24: 10.09282915 | H24: 25.98719748 | I24: 26.31485332
B25: 917 | C25: Retten i Roskilde | D25: - | E25: 11.51964415 | F25: 9.4 | G25: 2.935579923 | H25: 41.84812497 | I25: 42.28069
B26: 918 | C26: Retten i Hillerød | D26: - | E26: 15.70251051 | F26: 10.4 | G26: 12.61714052 | H26: 26.4952122 | I26: 26.76592767
B27: 919 | C27: Retten i Helsingør | D27: 11.1 | E27: 17.18970362 | F27: 12.2 | G27: 17.79689981 | H27: 25.78400889 | I27: 24.93197614
B28: 920 | C28: Retten i Lyngby | D28: - | E28: 14.62575098 | F28: 12.4 | G28: 6.378176724 | H28: 27.87577825 | I28: 28.30274075
B29: 921 | C29: Retten i Glostrup | D29: 13.5 | E29: 18.21996841 | F29: 7.7 | G29: 8.076386909 | H29: 66.96801277 | I29: 67.78468645
B30: 922 | C30: Retten på Frederiksberg | D30: 17.9 | E30: 13.39510699 | F30: 17.3 | G30: 13.93254444 | H30: 52.33401751 | I30: 52.6880441
B31: 923 | C31: Københavns Byret | D31: - | E31: 12.55430035 | F31: 13.9 | G31: 7.635601739 | H31: 131.7498701 | I31: 126.9864905
B33: 1) Gennemsnitlig antal sygedage pr. ansat er ekskl. ansatte under socialt kapitel. Deltidssygdom er inkluderet, men barns sygdom, omsorgsdage og særlige feriedage indgår ikke.
B34: 2) "-" betyder, at der ikke er data for rettens gennemsnitlige antal sygedage i ISOLA. Retten kan kontakte Økonomistyrelsen for mere information om årsagen til de manglende fraværsdata i ISOLA.
B35: 3) Det gennemsnitlige antal sygedage pr. ansat "samlet" er for alle byretter.
B36: 4) Personaleomsætning dækker ikke et kalenderår, men i stedet et rullende år, der sammenholder medarbejderstaben i 4. kvartals midterste måned med medarbejderstaben i samme måned året før.
B37: 5) Lønsumsforbruget inkluderer egentlig løn, over- og merarbejde, stævningsmænd, refusioner og pensionsbidrag og er i faste priser (2022). Lønsummen for 2022 er opregnet til 2023-PL, så der kan foretages en sammenligning mellem de to år. Samlet vises det gns. lønsumsforbrug pr. byret.

Sheet Årsværk_Pers.kat
B2: ÅRSVÆRKSFORBRUG
D4: Jur | E4: Kon | F4: Elev | G4: Fleks | H4: Øvr. | I4: I ALT | J4: Jur | K4: Kon | L4: Elev | M4: Fleks | N4: Øvr. | O4: I ALT | P4: Jur | Q4: Kon | R4: Elev | S4: Fleks | T4: Øvr. | U4: I ALT | V4: Jur | W4: Kon | X4: Elev | Y4: Fleks | Z4: Øvr. | AA4: I ALT
D5: =Overblik!$D$6 -> 2022 | J5: =Overblik!$E$6 -> 2023 | P5: =Overblik!$D$6 -> 2022 | V5: =Overblik!$E$6 -> 2023
D6: - absolutte tal - | J6: - absolutte tal - | P6: - indeks - | V6: - indeks 100 = 2022 -
B8: SAMLET BYRETTERNE | D8: =SUM(D10:D33) -> 435.14642 | E8: 809.78345 | F8: 61.73734 | G8: 37.27327 | H8: 94.00183 | I8: 1437.94231 | J8: 421.86344 | K8: 803.00041 | L8: 62.3574 | M8: 41.3438 | N8: 104.35318 | O8: 1432.91823 | P8: 100 | Q8: 100 | R8: 100 | S8: 100 | T8: 100 | U8: 100 | V8: =J8*100/D8 -> 96.94746885 | W8: =K8*100/E8 -> 99.16236372 | X8: =L8*100/F8 -> 101.0043517 | Y8: =M8*100/G8 -> 110.9207751 | Z8: 111.0118601 | AA8: =O8*100/I8 -> 99.65060629
B9: EID | C9: Ret
B10: 901 | C10: Retten i Hjørring | D10: 12.60653 | E10: 26.51046 | F10: 1.54473 | G10: 0.88216 | H10: 2.53119 | I10: 44.07507 | J10: 10.83359 | K10: 24.83007 | L10: 2.11486 | M10: 0.68957 | N10: 3.04691 | O10: 41.515 | P10: 100 | Q10: 100 | R10: 100 | S10: 100 | T10: 100 | U10: 100 | V10: =J10*100/D10 -> 85.93633617 | W10: =K10*100/E10 -> 93.66140761 | X10: 136.9080681 | Y10: 78.16835948 | Z10: 120.3746064 | AA10: 94.19156907
B11: 902 | C11: Retten i Aalborg | D11: 21.71415 | E11: 42.44295 | F11: 4.9179 | G11: 0.88209 | H11: 3.16361 | I11: 73.1207 | J11: 20.23366 | K11: 40.85452 | L11: 5.5937 | M11: 1.19053 | N11: 4.90868 | O11: 72.78109 | P11: 100 | Q11: 100 | R11: 100 | S11: 100 | T11: 100 | U11: 100 | V11: =J11*100/D11 -> 93.18191133 | W11: =K11*100/E11 -> 96.25749388 | X11: =L11*100/F11 -> 113.7416377 | Y11: =M11*100/G11 -> 134.9669535 | Z11: =N11*100/H11 -> 155.1607183 | AA11: =O11*100/I11 -> 99.53554876
B12: 903 | C12: Retten i Randers | D12: 12.86885 | E12: 29.21068 | F12: 2.33344 | G12: 1.83122 | H12: 3.88803 | I12: 50.13222 | J12: 12.44181 | K12: 28.00232 | L12: 1.87973 | M12: 2.05421 | N12: 3.96292 | O12: 48.34099 | P12: 100 | Q12: 100 | R12: 100 | S12: 100 | T12: 100 | U12: 100 | V12: 96.68159937 | W12: 95.86329384 | X12: =L12*100/F12 -> 80.55617457 | Y12: 112.1771278 | Z12: 101.9261683 | AA12: 96.42698847
B13: 904 | C13: Retten i Aarhus | D13: 26.74794 | E13: 42.59814 | F13: 3.07846 | G13: 2.32444 | H13: 7.47211 | I13: 82.22109 | J13: 28.08066 | K13: 46.69727 | L13: 2.72635 | M13: 2.54069 | N13: 7.46523 | O13: 87.5102 | P13: 100 | Q13: 100 | R13: 100 | S13: 100 | T13: 100 | U13: 100 | V13: 104.9825145 | W13: 109.622791 | X13: 88.56213821 | Y13: 109.3033161 | Z13: 99.90792427 | AA13: 106.4327899
B14: 905 | C14: Retten i Viborg | D14: 15.00877 | E14: 35.31459 | F14: 3.95628 | G14: 2.23143 | H14: 3.40423 | I14: 59.9153 | J14: 13.7424 | K14: 29.54672 | L14: 4.3514 | M14: 1.97307 | N14: 3.32844 | O14: 52.94203 | P14: 100 | Q14: 100 | R14: 100 | S14: 100 | T14: 100 | U14: 100 | V14: 91.56246648 | W14: 83.66717552 | X14: 109.9871597 | Y14: 88.42177438 | Z14: 97.77365219 | AA14: 88.36145359
B15: 906 | C15: Retten i Holstebro | D15: 9.17888 | E15: 19.39348 | F15: 2.57502 | G15: 1.61763 | H15: 2.02557 | I15: 34.79058 | J15: 8.81955 | K15: 19.90585 | L15: 1.95882 | M15: 2.3417 | N15: 2.68757 | O15: 35.71349 | P15: 100 | Q15: 100 | R15: 100 | S15: 100 | T15: 100 | U15: 100 | V15: 96.08525223 | W15: 102.6419704 | X15: 76.07008878 | Y15: 144.7611629 | Z15: 132.6821586 | AA15: 102.6527583
B16: 907 | C16: Retten i Herning | D16: 12.89255 | E16: 22.91361 | F16: 3.09877 | G16: - | H16: 3.24573 | I16: 42.15066 | J16: 12.98433 | K16: 22.91177 | L16: 3.11209 | M16: 0.32436 | N16: 4.0272 | O16: 43.35975 | P16: 100 | Q16: 100 | R16: 100 | S16: 100 | T16: 100 | U16: 100 | V16: 100.711884 | W16: 99.99196984 | X16: 100.429848 | Y16: - | Z16: 124.0768641 | AA16: 102.868496
B17: 908 | C17: Retten i Horsens | D17: 11.68295 | E17: 21.48335 | F17: 2.40356 | G17: 2.3464 | H17: 4.65097 | I17: 42.56723 | J17: 13.17467 | K17: 21.57101 | L17: 2.21011 | M17: 2.02154 | N17: 5.10123 | O17: 44.07856 | P17: 100 | Q17: 100 | R17: 100 | S17: 100 | T17: 100 | U17: 100 | V17: 112.7683505 | W17: 100.4080369 | X17: 91.95152191 | Y17: =M17*100/G17 -> 86.15496079 | Z17: 109.6809913 | AA17: 103.5504542
B18: 909 | C18: Retten i Kolding | D18: 23.30973 | E18: 38.01906 | F18: 4.25023 | G18: 2.38197 | H18: 1.52479 | I18: 69.48578 | J18: 22.88369 | K18: 36.3749 | L18: 6.33331 | M18: 1.87831 | N18: 2.09826 | O18: 69.56847 | P18: 100 | Q18: 100 | R18: 100 | S18: 100 | T18: 100 | U18: 100 | V18: 98.1722654 | W18: 95.67543227 | X18: 149.0109947 | Y18: 78.85531724 | Z18: 137.6097692 | AA18: 100.1190028
B19: 910 | C19: Retten i Esbjerg | D19: 15.21424 | E19: 26.35467 | F19: 1.97356 | G19: 0.78899 | H19: 5.21471 | I19: 49.54617 | J19: 15.7032 | K19: 27.69192 | L19: 0.83007 | M19: 1.00003 | N19: 5.09255 | O19: 50.31777 | P19: 100 | Q19: 100 | R19: 100 | S19: 100 | T19: 100 | U19: 100 | V19: 103.2138313 | W19: 105.0740533 | X19: 42.05952695 | Y19: 126.748121 | Z19: 97.6573961 | AA19: 101.5573353
B20: 911 | C20: Retten i Sønderborg | D20: 17.68612 | E20: 32.95665 | F20: 1.25006 | G20: 1.30414 | H20: 2.95339 | I20: 56.15036 | J20: 17.38638 | K20: 32.95484 | L20: 2.00008 | M20: 1.13968 | N20: 2.93398 | O20: 56.41496 | P20: 100 | Q20: 100 | R20: 100 | S20: 100 | T20: 100 | U20: 100 | V20: 98.30522466 | W20: 99.99450794 | X20: 159.9987201 | Y20: 87.38939071 | Z20: 99.34278913 | AA20: 100.4712347
B21: 912 | C21: Retten i Odense | D21: 23.22764 | E21: 45.34414 | F21: 3.01305 | G21: 0.46938 | H21: 4.76945 | I21: 76.82366 | J21: 21.44722 | K21: 40.5458 | L21: 3.60517 | M21: 0.72115 | N21: 4.89613 | O21: 71.21547 | P21: 100 | Q21: 100 | R21: 100 | S21: 100 | T21: 100 | U21: 100 | V21: 92.33490789 | W21: 89.41794904 | X21: 119.6518478 | Y21: 153.6388427 | Z21: 102.6560715 | AA21: 92.69991823
B22: 913 | C22: Retten i Svendborg | D22: 10.08241 | E22: 19.53017 | F22: 0.9736 | G22: 1.00003 | H22: 4.40521 | I22: 35.99142 | J22: 9.97281 | K22: 19.04185 | L22: 0.9028 | M22: 0.85002 | N22: 3.7862 | O22: 34.55368 | P22: 100 | Q22: 100 | R22: 100 | S22: 100 | T22: 100 | U22: 100 | V22: 98.91295831 | W22: 97.49966334 | X22: 92.72801972 | Y22: 84.99945002 | Z22: 85.94822948 | AA22: 96.00532571
B23: 914 | C23: Retten i Nykøbing F. | D23: 13.79457 | E23: 27.95344 | F23: 2.00008 | G23: 0.40544 | H23: 2.86914 | I23: 47.02267 | J23: 14.14238 | K23: 28.7564 | L23: 2.00799 | M23: 0.53042 | N23: 2.72643 | O23: 48.16362 | P23: 100 | Q23: 100 | R23: 100 | S23: 100 | T23: 100 | U23: 100 | V23: 102.5213544 | W23: 102.8724908 | X23: 100.3954842 | Y23: 130.8257695 | Z23: 95.02603568 | AA23: 102.4263828
B24: 915 | C24: Retten i Næstved | D24: 16.17279 | E24: 36.56963 | F24: 3.19666 | G24: 3.43953 | H24: 3.96833 | I24: 63.34694 | J24: 16.41913 | K24: 36.95231 | L24: 1.17 | M24: 3.50135 | N24: 4.82814 | O24: 62.87093 | P24: 100 | Q24: 100 | R24: 100 | S24: 100 | T24: 100 | U24: 100 | V24: 101.5231757 | W24: 101.0464421 | X24: 36.60070198 | Y24: 101.7973386 | Z24: 121.6667969 | AA24: 99.2485667
B25: 916 | C25: Retten i Holbæk | D25: 12.42627 | E25: 22.91047 | F25: 1.00003 | G25: 2.27036 | H25: 2.93176 | I25: 41.53889 | J25: 12.75547 | K25: 24.66951 | L25: 1.00005 | M25: 2.32442 | N25: 2.77289 | O25: 43.52234 | P25: 100 | Q25: 100 | R25: 100 | S25: 100 | T25: 100 | U25: 100 | V25: 102.6492262 | W25: 107.677887 | X25: 100.0019999 | Y25: 102.3811202 | Z25: 94.58107076 | AA25: 104.774923
B26: 917 | C26: Retten i Roskilde | D26: 18.74051 | E26: 39.31742 | F26: 1.34573 | G26: 0.56763 | H26: 1.68151 | I26: 61.6528 | J26: 19.50219 | K26: 37.92369 | L26: 2.32796 | M26: 0.62537 | N26: 1.50343 | O26: 61.88264 | P26: 100 | Q26: 100 | R26: 100 | S26: 100 | T26: 100 | U26: 100 | V26: 104.0643504 | W26: 96.4551845 | X26: 172.9886381 | Y26: 110.1721192 | Z26: 89.40951883 | AA26: 100.3727973
B27: 918 | C27: Retten i Hillerød | D27: 13.6351 | E27: 20.30718 | F27: 3.10022 | G27: 1.98214 | H27: 4.83499 | I27: 43.85963 | J27: 12.88277 | K27: 20.90622 | L27: 2.97379 | M27: 2.33491 | N27: 4.94266 | O27: 44.04035 | P27: 100 | Q27: 100 | R27: 100 | S27: 100 | T27: 100 | U27: 100 | V27: 94.48240204 | W27: 102.9498926 | X27: 95.92190232 | Y27: 117.7974311 | Z27: 102.2268919 | AA27: 100.4120418
B28: 919 | C28: Retten i Helsingør | D28: 13.45201 | E28: 23.12831 | F28: 1.00003 | G28: 2.02224 | H28: 3.09498 | I28: 42.69757 | J28: 11.27396 | K28: 22.33957 | L28: 1.08341 | M28: 2.1171 | N28: 3.26392 | O28: 40.07796 | P28: 100 | Q28: 100 | R28: 100 | S28: 100 | T28: 100 | U28: 100 | V28: 83.80873936 | W28: 96.58972056 | X28: 108.3377499 | Y28: =M28*100/G28 -> 104.6908379 | Z28: 105.4585167 | AA28: 93.86473282
B29: 920 | C29: Retten i Lyngby | D29: 14.07554 | E29: 25.67835 | F29: 2.68247 | G29: 0.83788 | H29: 3.07191 | I29: 46.34615 | J29: 13.79679 | K29: 26.14143 | L29: 1.96246 | M29: 1.36889 | N29: 3.39297 | O29: 46.66254 | P29: 100 | Q29: 100 | R29: 100 | S29: 100 | T29: 100 | U29: 100 | V29: 98.01961417 | W29: 101.8033869 | X29: 73.15869329 | Y29: 163.3754237 | Z29: 110.4514781 | AA29: 100.6826673
B30: 921 | C30: Retten i Glostrup | D30: 34.67373 | E30: 56.56037 | F30: 3.60104 | G30: 2.35296 | H30: 6.27428 | I30: 103.46238 | J30: 33.55588 | K30: 57.15677 | L30: 3.58161 | M30: 3.7767 | N30: 6.49253 | O30: 104.56349 | P30: 100 | Q30: 100 | R30: 100 | S30: 100 | T30: 100 | U30: 100 | V30: 96.77608956 | W30: 101.0544485 | X30: 99.46043365 | Y30: 160.5084659 | Z30: 103.4784868 | AA30: 101.0642612
B31: 922 | C31: Retten på Frederiksberg | D31: 24.27912 | E31: 44.21937 | F31: 3.08385 | G31: 4.68668 | H31: 6.55449 | I31: 82.82351 | J31: 23.9493 | K31: 45.90864 | L31: 3.15805 | M31: 5.38945 | N31: 8.86909 | O31: 87.27453 | P31: 100 | Q31: 100 | R31: 100 | S31: 100 | T31: 100 | U31: 100 | V31: 98.64154879 | W31: 103.8202037 | X31: 102.4060833 | Y31: 114.9950498 | Z31: 135.3131975 | AA31: 105.3741021
B32: 923 | C32: Københavns Byret | D32: 61.67602 | E32: 111.06696 | F32: 5.35857 | G32: 0.64853 | H32: 9.47145 | I32: 188.22153 | J32: 55.8816 | K32: 111.31703 | L32: 5.47359 | M32: 0.65033 | N32: 12.22582 | O32: 185.54837 | P32: 100 | Q32: 100 | R32: 100 | S32: 100 | T32: 100 | U32: 100 | V32: 90.60506823 | W32: 100.2251525 | X32: 102.1464682 | Y32: - | Z32: 129.0807638 | AA32: 98.5797799
B34: 1) Det opgjorte årsværksforbrug er inkl. de korrektioner, der foretages som led i produktivitetsberegningen, hvorfor det ikke kan stemmes af i forhold til eksempelvis prognoseværktøjet SOL.

Sheet Årsværk_Sagsområder
C2: ÅRSVÆRKSFORBRUG PR SAGSOMRÅDER I 2023
F4: Straf | H4: Civil | J4: Foged | L4: Skifte | N4: Notarial
F5: Årsværk | G5: Pct. | H5: =F5 -> Årsværk | I5: =G5 -> Pct. | J5: =H5 -> Årsværk | K5: Pct. | L5: Årsværk | M5: Pct. | N5: Årsværk | O5: Pct.
C7: SAMLET BYRETTERNE | E7: Jurister | F7: =SUM(F13,F18,F23,F28,F33,F38,F43,F48,F53,F58,F63,F68,F73,F78,F83,F88,F93,F98,F103,F108,F113,F118,F123,F128) -> 190.1593248 | G7: =F7/SUM($F7,$H7,$J7,$L7,$N7,'Generel ledelse_Adm.'!$G8) -> 0.4507184977 | H7: =SUM(H13,H18,H23,H28,H33,H38,H43,H48,H53,H58,H63,H68,H73,H78,H83,H88,H93,H98,H103,H108,H113,H118,H123,H128) -> 146.1794791 | I7: =H7/SUM($F7,$H7,$J7,$L7,$N7,'Generel ledelse_Adm.'!$G8) -> 0.3464768045 | J7: =SUM(J13,J18,J23,J28,J33,J38,J43,J48,J53,J58,J63,J68,J73,J78,J83,J88,J93,J98,J103,J108,J113,J118,J123,J128) -> 29.19421313 | K7: =J7/SUM($F7,$H7,$J7,$L7,$N7,'Generel ledelse_Adm.'!$G8) -> 0.06919656397 | L7: =SUM(L13,L18,L23,L28,L33,L38,L43,L48,L53,L58,L63,L68,L73,L78,L83,L88,L93,L98,L103,L108,L113,L118,L123,L128) -> 30.14672285 | M7: =L7/SUM($F7,$H7,$J7,$L7,$N7,'Generel ledelse_Adm.'!$G8) -> 0.07145421688 | N7: =SUM(N13,N18,N23,N28,N33,N38,N43,N48,N53,N58,N63,N68,N73,N78,N83,N88,N93,N98,N103,N108,N113,N118,N123,N128) -> 0.3751051542 | O7: =N7/SUM($F7,$H7,$J7,$L7,$N7,'Generel ledelse_Adm.'!$G8) -> 0.0008890798901
E8: Kontor | F8: =SUM(F14,F19,F24,F29,F34,F39,F44,F49,F54,F59,F64,F69,F74,F79,F84,F89,F94,F99,F104,F109,F114,F119,F124) -> 248.5112513 | G8: =F8/SUM($F8,$H8,$J8,$L8,$N8,'Generel ledelse_Adm.'!$G9) -> 0.309412821 | H8: =SUM(H14,H19,H24,H29,H34,H39,H44,H49,H54,H59,H64,H69,H74,H79,H84,H89,H94,H99,H104,H109,H114,H119,H124) -> 136.397391 | I8: =H8/SUM($F8,$H8,$J8,$L8,$N8,'Generel ledelse_Adm.'!$G9) -> 0.1698237054 | J8: =SUM(J14,J19,J24,J29,J34,J39,J44,J49,J54,J59,J64,J69,J74,J79,J84,J89,J94,J99,J104,J109,J114,J119,J124) -> 153.6594166 | K8: =J8/SUM($F8,$H8,$J8,$L8,$N8,'Generel ledelse_Adm.'!$G9) -> 0.1913160604 | L8: =SUM(L14,L19,L24,L29,L34,L39,L44,L49,L54,L59,L64,L69,L74,L79,L84,L89,L94,L99,L104,L109,L114,L119,L124) -> 139.0947136 | M8: =L8/SUM($F8,$H8,$J8,$L8,$N8,'Generel ledelse_Adm.'!$G9) -> 0.1731820491 | N8: =SUM(N14,N19,N24,N29,N34,N39,N44,N49,N54,N59,N64,N69,N74,N79,N84,N89,N94,N99,N104,N109,N114,N119,N124) -> 27.47324786 | O8: =N8/SUM($F8,$H8,$J8,$L8,$N8,'Generel ledelse_Adm.'!$G9) -> 0.03420599702
E9: Elev | F9: =SUM(F15,F20,F25,F30,F35,F40,F45,F50,F55,F60,F65,F70,F75,F80,F85,F90,F95,F100,F105,F110,F115,F120,F125) -> 19.47767328 | G9: =F9/SUM($F9,$H9,$J9,$L9,$N9,'Generel ledelse_Adm.'!$G10) -> 0.3123430178 | H9: =SUM(H15,H20,H25,H30,H35,H40,H45,H50,H55,H60,H65,H70,H75,H80,H85,H90,H95,H100,H105,H110,H115,H120,H125) -> 6.411893016 | I9: =H9/SUM($F9,$H9,$J9,$L9,$N9,'Generel ledelse_Adm.'!$G10) -> 0.1028208034 | J9: =SUM(J15,J20,J25,J30,J35,J40,J45,J50,J55,J60,J65,J70,J75,J80,J85,J90,J95,J100,J105,J110,J115,J120,J125) -> 17.49726172 | K9: =J9/SUM($F9,$H9,$J9,$L9,$N9,'Generel ledelse_Adm.'!$G10) -> 0.2805852347 | L9: =SUM(L15,L20,L25,L30,L35,L40,L45,L50,L55,L60,L65,L70,L75,L80,L85,L90,L95,L100,L105,L110,L115,L120,L125) -> 13.08720595 | M9: =L9/SUM($F9,$H9,$J9,$L9,$N9,'Generel ledelse_Adm.'!$G10) -> 0.2098657957 | N9: =SUM(N15,N20,N25,N30,N35,N40,N45,N50,N55,N60,N65,N70,N75,N80,N85,N90,N95,N100,N105,N110,N115,N120,N125) -> 0.3532620405 | O9: =N9/SUM($F9,$H9,$J9,$L9,$N9,'Generel ledelse_Adm.'!$G10) -> 0.005664892834
E10: Fleks | F10: =SUM(F16,F21,F26,F31,F36,F41,F46,F51,F56,F61,F66,F71,F76,F81,F86,F91,F96,F101,F106,F111,F116,F121,F126) -> 6.92039095 | G10: =F10/SUM($F10,$H10,$J10,$L10,$N10,'Generel ledelse_Adm.'!$G11) -> 0.1671179525 | H10: =SUM(H16,H21,H26,H31,H36,H41,H46,H51,H56,H61,H66,H71,H76,H81,H86,H91,H96,H101,H106,H111,H116,H121,H126) -> 4.512317841 | I10: =H10/SUM($F10,$H10,$J10,$L10,$N10,'Generel ledelse_Adm.'!$G11) -> 0.1089662888 | J10: =SUM(J16,J21,J26,J31,J36,J41,J46,J51,J56,J61,J66,J71,J76,J81,J86,J91,J96,J101,J106,J111,J116,J121,J126) -> 9.976387938 | K10: =J10/SUM($F10,$H10,$J10,$L10,$N10,'Generel ledelse_Adm.'!$G11) -> 0.2409160896 | L10: =SUM(L16,L21,L26,L31,L36,L41,L46,L51,L56,L61,L66,L71,L76,L81,L86,L91,L96,L101,L106,L111,L116,L121,L126) -> 4.376709041 | M10: =L10/SUM($F10,$H10,$J10,$L10,$N10,'Generel ledelse_Adm.'!$G11) -> 0.1056915222 | N10: =SUM(N16,N21,N26,N31,N36,N41,N46,N51,N56,N61,N66,N71,N76,N81,N86,N91,N96,N101,N106,N111,N116,N121,N126) -> 2.340332384 | O10: =N10/SUM($F10,$H10,$J10,$L10,$N10,'Generel ledelse_Adm.'!$G11) -> 0.05651581814
E11: Øvrige | F11: =SUM(F17,F22,F27,F32,F37,F42,F47,F52,F57,F62,F67,F72,F77,F82,F87,F92,F97,F102,F107,F112,F117,F122,F127,F132) -> 14.92747039 | G11: =F11/SUM($F11,$H11,$J11,$L11,$N11,'Generel ledelse_Adm.'!$G12) -> 0.1430467531 | H11: 2.617889043 | I11: =H11/SUM($F11,$H11,$J11,$L11,$N11,'Generel ledelse_Adm.'!$G12) -> 0.02508667027 | J11: =SUM(J17,J22,J27,J32,J37,J42,J47,J52,J57,J62,J67,J72,J77,J82,J87,J92,J97,J102,J107,J112,J117,J122,J127,J132) -> 5.165454288 | K11: =J11/SUM($F11,$H11,$J11,$L11,$N11,'Generel ledelse_Adm.'!$G12) -> 0.04949944264 | L11: =SUM(L17,L22,L27,L32,L37,L42,L47,L52,L57,L62,L67,L72,L77,L82,L87,L92,L97,L102,L107,L112,L117,L122,L127,L132) -> 4.617297507 | M11: =L11/SUM($F11,$H11,$J11,$L11,$N11,'Generel ledelse_Adm.'!$G12) -> 0.04424657355 | N11: =SUM(N17,N22,N27,N32,N37,N42,N47,N52,N57,N62,N67,N72,N77,N82,N87,N92,N97,N102,N107,N112,N117,N122,N127,N132) -> 3.003463184 | O11: =N11/SUM($F11,$H11,$J11,$L11,$N11,'Generel ledelse_Adm.'!$G12) -> 0.02878154472
C12: EID | D12: Ret
C13: 901 | D13: Retten i Hjørring | E13: Jurister | F13: 4.281598261 | G13: =F13/SUM($F13,$H13,$J13,$L13,$N13,'Generel ledelse_Adm.'!$G16) -> 0.3952073285 | H13: 3.916972724 | I13: =H13/SUM($F13,$H13,$J13,$L13,$N13,'Generel ledelse_Adm.'!$G16) -> 0.3615510452 | J13: 0.7180882168 | K13: =J13/SUM($F13,$H13,$J13,$L13,$N13,'Generel ledelse_Adm.'!$G16) -> 0.06628219383 | L13: 1.195042567 | M13: =L13/SUM($F13,$H13,$J13,$L13,$N13,'Generel ledelse_Adm.'!$G16) -> 0.1103068414 | N13: 0.01587000309 | O13: =N13/SUM($F13,$H13,$J13,$L13,$N13,'Generel ledelse_Adm.'!$G16) -> 0.001464859883
C14: 901 | D14: Retten i Hjørring | E14: Kontor | F14: 5.637618031 | G14: =F14/SUM($F14,$H14,$J14,$L14,$N14,'Generel ledelse_Adm.'!$G17) -> 0.2270461007 | H14: 3.696770538 | I14: =H14/SUM($F14,$H14,$J14,$L14,$N14,'Generel ledelse_Adm.'!$G17) -> 0.1488815544 | J14: 6.084285296 | K14: =J14/SUM($F14,$H14,$J14,$L14,$N14,'Generel ledelse_Adm.'!$G17) -> 0.2450349144 | L14: 5.392944078 | M14: =L14/SUM($F14,$H14,$J14,$L14,$N14,'Generel ledelse_Adm.'!$G17) -> 0.2171922463 | N14: 0.8609795051 | O14: =N14/SUM($F14,$H14,$J14,$L14,$N14,'Generel ledelse_Adm.'!$G17) -> 0.03467458034
C15: 901 | D15: Retten i Hjørring | E15: Elev | F15: 0.9025421132 | G15: =F15/SUM($F15,$H15,$J15,$L15,$N15,'Generel ledelse_Adm.'!$G18) -> 0.4267544996 | H15: 0.1883209946 | I15: =H15/SUM($F15,$H15,$J15,$L15,$N15,'Generel ledelse_Adm.'!$G18) -> 0.08904496605 | J15: 0.3995289191 | K15: =J15/SUM($F15,$H15,$J15,$L15,$N15,'Generel ledelse_Adm.'!$G18) -> 0.1889116989 | L15: 0.4571271985 | M15: =L15/SUM($F15,$H15,$J15,$L15,$N15,'Generel ledelse_Adm.'!$G18) -> 0.2161462451 | N15: 0.01495289641 | O15: =N15/SUM($F15,$H15,$J15,$L15,$N15,'Generel ledelse_Adm.'!$G18) -> 0.007070269331
C16: 901 | D16: Retten i Hjørring | E16: Fleks | F16: 0.1613865212 | G16: =F16/SUM($F16,$H16,$J16,$L16,$N16,'Generel ledelse_Adm.'!$G19) -> 0.2340393597 | H16: 0.272274389 | I16: =H16/SUM($F16,$H16,$J16,$L16,$N16,'Generel ledelse_Adm.'!$G19) -> 0.3948466276 | J16: 0.2162733057 | K16: =J16/SUM($F16,$H16,$J16,$L16,$N16,'Generel ledelse_Adm.'!$G19) -> 0.3136350273 | L16: 0 | M16: =L16/SUM($F16,$H16,$J16,$L16,$N16,'Generel ledelse_Adm.'!$G19) -> 0 | N16: 0 | O16: =N16/SUM($F16,$H16,$J16,$L16,$N16,'Generel ledelse_Adm.'!$G19) -> 0
C17: 901 | D17: Retten i Hjørring | E17: Øvrige | F17: 0.3491312878 | G17: =F17/SUM($F17,$H17,$J17,$L17,$N17,'Generel ledelse_Adm.'!$G20) -> 0.1145824267 | H17: 0.07804911582 | I17: =H17/SUM($F17,$H17,$J17,$L17,$N17,'Generel ledelse_Adm.'!$G20) -> 0.02561516943 | J17: 0.3724621739 | K17: =J17/SUM($F17,$H17,$J17,$L17,$N17,'Generel ledelse_Adm.'!$G20) -> 0.122239459 | L17: 0.004404728388 | M17: =L17/SUM($F17,$H17,$J17,$L17,$N17,'Generel ledelse_Adm.'!$G20) -> 0.001445600796 | N17: 0.2073610595 | O17: =N17/SUM($F17,$H17,$J17,$L17,$N17,'Generel ledelse_Adm.'!$G20) -> 0.06805443746
C18: 902 | D18: Retten i Aalborg | E18: Jurister | F18: 8.133335396 | G18: =F18/SUM($F18,$H18,$J18,$L18,$N18,'Generel ledelse_Adm.'!$G23) -> 0.4019714147 | H18: 7.97236578 | I18: =H18/SUM($F18,$H18,$J18,$L18,$N18,'Generel ledelse_Adm.'!$G23) -> 0.3940158613 | J18: 1.451300113 | K18: =J18/SUM($F18,$H18,$J18,$L18,$N18,'Generel ledelse_Adm.'!$G23) -> 0.07172717358 | L18: 1.642417045 | M18: =L18/SUM($F18,$H18,$J18,$L18,$N18,'Generel ledelse_Adm.'!$G23) -> 0.0811726888 | N18: 0.0005381057017 | O18: =N18/SUM($F18,$H18,$J18,$L18,$N18,'Generel ledelse_Adm.'!$G23) -> 2.659463795e-05
C19: 902 | D19: Retten i Aalborg | E19: Kontor | F19: 12.00626301 | G19: =F19/SUM($F19,$H19,$J19,$L19,$N19,'Generel ledelse_Adm.'!$G24) -> 0.2938784327 | H19: 7.116145508 | I19: =H19/SUM($F19,$H19,$J19,$L19,$N19,'Generel ledelse_Adm.'!$G24) -> 0.1741825651 | J19: 8.987217912 | K19: =J19/SUM($F19,$H19,$J19,$L19,$N19,'Generel ledelse_Adm.'!$G24) -> 0.2199809809 | L19: 8.765953558 | M19: =L19/SUM($F19,$H19,$J19,$L19,$N19,'Generel ledelse_Adm.'!$G24) -> 0.2145650725 | N19: 1.126516296 | O19: =N19/SUM($F19,$H19,$J19,$L19,$N19,'Generel ledelse_Adm.'!$G24) -> 0.02757384567
C20: 902 | D20: Retten i Aalborg | E20: Elev | F20: 0.6665025582 | G20: =F20/SUM($F20,$H20,$J20,$L20,$N20,'Generel ledelse_Adm.'!$G25) -> 0.1191523604 | H20: 0.6112218687 | I20: =H20/SUM($F20,$H20,$J20,$L20,$N20,'Generel ledelse_Adm.'!$G25) -> 0.1092696907 | J20: 2.459892174 | K20: =J20/SUM($F20,$H20,$J20,$L20,$N20,'Generel ledelse_Adm.'!$G25) -> 0.4397611911 | L20: 1.599397878 | M20: =L20/SUM($F20,$H20,$J20,$L20,$N20,'Generel ledelse_Adm.'!$G25) -> 0.2859284335 | N20: 0.01202401905 | O20: =N20/SUM($F20,$H20,$J20,$L20,$N20,'Generel ledelse_Adm.'!$G25) -> 0.002149564519
C21: 902 | D21: Retten i Aalborg | E21: Fleks | F21: 0.04605578195 | G21: =F21/SUM($F21,$H21,$J21,$L21,$N21,'Generel ledelse_Adm.'!$G26) -> 0.03868510827 | H21: 0 | I21: =H21/SUM($F21,$H21,$J21,$L21,$N21,'Generel ledelse_Adm.'!$G26) -> 0 | J21: 0.06761097349 | K21: =J21/SUM($F21,$H21,$J21,$L21,$N21,'Generel ledelse_Adm.'!$G26) -> 0.0567906508 | L21: 0 | M21: =L21/SUM($F21,$H21,$J21,$L21,$N21,'Generel ledelse_Adm.'!$G26) -> 0 | N21: 0 | O21: =N21/SUM($F21,$H21,$J21,$L21,$N21,'Generel ledelse_Adm.'!$G26) -> 0
C22: 902 | D22: Retten i Aalborg | E22: Øvrige | F22: 1.165539107 | G22: =F22/SUM($F22,$H22,$J22,$L22,$N22,'Generel ledelse_Adm.'!$G27) -> 0.2374445078 | H22: 0.1936118512 | I22: =H22/SUM($F22,$H22,$J22,$L22,$N22,'Generel ledelse_Adm.'!$G27) -> 0.03944275267 | J22: 1.175870731 | K22: =J22/SUM($F22,$H22,$J22,$L22,$N22,'Generel ledelse_Adm.'!$G27) -> 0.2395492741 | L22: 0.000464169933 | M22: =L22/SUM($F22,$H22,$J22,$L22,$N22,'Generel ledelse_Adm.'!$G27) -> 9.456104961e-05 | N22: 0 | O22: =N22/SUM($F22,$H22,$J22,$L22,$N22,'Generel ledelse_Adm.'!$G27) -> 0
C23: 903 | D23: Retten i Randers | E23: Jurister | F23: 4.836915001 | G23: =F23/SUM($F23,$H23,$J23,$L23,$N23,'Generel ledelse_Adm.'!$G30) -> 0.3887628776 | H23: 4.442513251 | I23: =H23/SUM($F23,$H23,$J23,$L23,$N23,'Generel ledelse_Adm.'!$G30) -> 0.3570631766 | J23: 1.238053404 | K23: =J23/SUM($F23,$H23,$J23,$L23,$N23,'Generel ledelse_Adm.'!$G30) -> 0.09950747614 | L23: 0.9652430957 | M23: =L23/SUM($F23,$H23,$J23,$L23,$N23,'Generel ledelse_Adm.'!$G30) -> 0.07758058253 | N23: 0.02619152487 | O23: =N23/SUM($F23,$H23,$J23,$L23,$N23,'Generel ledelse_Adm.'!$G30) -> 0.002105121255
C24: 903 | D24: Retten i Randers | E24: Kontor | F24: 7.406802038 | G24: =F24/SUM($F24,$H24,$J24,$L24,$N24,'Generel ledelse_Adm.'!$G31) -> 0.2645067225 | H24: 4.439252565 | I24: =H24/SUM($F24,$H24,$J24,$L24,$N24,'Generel ledelse_Adm.'!$G31) -> 0.1585315957 | J24: 6.231312184 | K24: =J24/SUM($F24,$H24,$J24,$L24,$N24,'Generel ledelse_Adm.'!$G31) -> 0.2225284211 | L24: 6.096560052 | M24: =L24/SUM($F24,$H24,$J24,$L24,$N24,'Generel ledelse_Adm.'!$G31) -> 0.2177162437 | N24: 0.9212096616 | O24: =N24/SUM($F24,$H24,$J24,$L24,$N24,'Generel ledelse_Adm.'!$G31) -> 0.03289761858
C25: 903 | D25: Retten i Randers | E25: Elev | F25: 0.1702082071 | G25: =F25/SUM($F25,$H25,$J25,$L25,$N25,'Generel ledelse_Adm.'!$G32) -> 0.0905492848 | H25: 0.1011597305 | I25: =H25/SUM($F25,$H25,$J25,$L25,$N25,'Generel ledelse_Adm.'!$G32) -> 0.0538160962 | J25: 0.6237453413 | K25: =J25/SUM($F25,$H25,$J25,$L25,$N25,'Generel ledelse_Adm.'!$G32) -> 0.3318270929 | L25: 0.9846167211 | M25: =L25/SUM($F25,$H25,$J25,$L25,$N25,'Generel ledelse_Adm.'!$G32) -> 0.5238075261 | N25: 0 | O25: =N25/SUM($F25,$H25,$J25,$L25,$N25,'Generel ledelse_Adm.'!$G32) -> 0
C26: 903 | D26: Retten i Randers | E26: Fleks | F26: 0 | G26: =F26/SUM($F26,$H26,$J26,$L26,$N26,'Generel ledelse_Adm.'!$G33) -> 0 | H26: 0 | I26: =H26/SUM($F26,$H26,$J26,$L26,$N26,'Generel ledelse_Adm.'!$G33) -> 0 | J26: 0.3233467384 | K26: =J26/SUM($F26,$H26,$J26,$L26,$N26,'Generel ledelse_Adm.'!$G33) -> 0.1574068563 | L26: 0.113296234 | M26: =L26/SUM($F26,$H26,$J26,$L26,$N26,'Generel ledelse_Adm.'!$G33) -> 0.05515318981 | N26: 0.1219888738 | O26: =N26/SUM($F26,$H26,$J26,$L26,$N26,'Generel ledelse_Adm.'!$G33) -> 0.05938481159
C27: 903 | D27: Retten i Randers | E27: Øvrige | F27: 0.3059632763 | G27: =F27/SUM($F27,$H27,$J27,$L27,$N27,'Generel ledelse_Adm.'!$G34) -> 0.0772029549 | H27: 0 | I27: =H27/SUM($F27,$H27,$J27,$L27,$N27,'Generel ledelse_Adm.'!$G34) -> 0 | J27: 0.2528467984 | K27: =J27/SUM($F27,$H27,$J27,$L27,$N27,'Generel ledelse_Adm.'!$G34) -> 0.06380020572 | L27: 0.0005794154341 | M27: =L27/SUM($F27,$H27,$J27,$L27,$N27,'Generel ledelse_Adm.'!$G34) -> 0.0001462024599 | N27: 0.008690949692 | O27: =N27/SUM($F27,$H27,$J27,$L27,$N27,'Generel ledelse_Adm.'!$G34) -> 0.002192965787
C28: 904 | D28: Retten i Aarhus | E28: Jurister | F28: 14.75854054 | G28: =F28/SUM($F28,$H28,$J28,$L28,$N28,'Generel ledelse_Adm.'!$G37) -> 0.5255713106 | H28: 7.762693068 | I28: =H28/SUM($F28,$H28,$J28,$L28,$N28,'Generel ledelse_Adm.'!$G37) -> 0.2764398524 | J28: 1.334314432 | K28: =J28/SUM($F28,$H28,$J28,$L28,$N28,'Generel ledelse_Adm.'!$G37) -> 0.04751671636 | L28: 2.871074865 | M28: =L28/SUM($F28,$H28,$J28,$L28,$N28,'Generel ledelse_Adm.'!$G37) -> 0.1022428048 | N28: 0.03392172912 | O28: =N28/SUM($F28,$H28,$J28,$L28,$N28,'Generel ledelse_Adm.'!$G37) -> 0.001207998012
C29: 904 | D29: Retten i Aarhus | E29: Kontor | F29: 19.81307045 | G29: =F29/SUM($F29,$H29,$J29,$L29,$N29,'Generel ledelse_Adm.'!$G38) -> 0.4242875267 | H29: 7.165899093 | I29: =H29/SUM($F29,$H29,$J29,$L29,$N29,'Generel ledelse_Adm.'!$G38) -> 0.1534543376 | J29: 5.892342429 | K29: =J29/SUM($F29,$H29,$J29,$L29,$N29,'Generel ledelse_Adm.'!$G38) -> 0.1261817244 | L29: 8.180814693 | M29: =L29/SUM($F29,$H29,$J29,$L29,$N29,'Generel ledelse_Adm.'!$G38) -> 0.1751882749 | N29: 1.107132212 | O29: =N29/SUM($F29,$H29,$J29,$L29,$N29,'Generel ledelse_Adm.'!$G38) -> 0.02370871233
C30: 904 | D30: Retten i Aarhus | E30: Elev | F30: 1.085687711 | G30: =F30/SUM($F30,$H30,$J30,$L30,$N30,'Generel ledelse_Adm.'!$G39) -> 0.3982202253 | H30: 0.7740054578 | I30: =H30/SUM($F30,$H30,$J30,$L30,$N30,'Generel ledelse_Adm.'!$G39) -> 0.2838980534 | J30: 0.4860496238 | K30: =J30/SUM($F30,$H30,$J30,$L30,$N30,'Generel ledelse_Adm.'!$G39) -> 0.1782785129 | L30: 0.3664682147 | M30: =L30/SUM($F30,$H30,$J30,$L30,$N30,'Generel ledelse_Adm.'!$G39) -> 0.1344171565 | N30: 0 | O30: =N30/SUM($F30,$H30,$J30,$L30,$N30,'Generel ledelse_Adm.'!$G39) -> 0
C31: 904 | D31: Retten i Aarhus | E31: Fleks | F31: 0 | G31: =F31/SUM($F31,$H31,$J31,$L31,$N31,'Generel ledelse_Adm.'!$G40) -> 0 | H31: 0.3243460585 | I31: =H31/SUM($F31,$H31,$J31,$L31,$N31,'Generel ledelse_Adm.'!$G40) -> 0.1276606192 | J31: 1.000435475 | K31: =J31/SUM($F31,$H31,$J31,$L31,$N31,'Generel ledelse_Adm.'!$G40) -> 0.3937652665 | L31: 0.2158622444 | M31: =L31/SUM($F31,$H31,$J31,$L31,$N31,'Generel ledelse_Adm.'!$G40) -> 0.08496205534 | N31: 0 | O31: =N31/SUM($F31,$H31,$J31,$L31,$N31,'Generel ledelse_Adm.'!$G40) -> 0
C32: 904 | D32: Retten i Aarhus | E32: Øvrige | F32: 1.230071548 | G32: =F32/SUM($F32,$H32,$J32,$L32,$N32,'Generel ledelse_Adm.'!$G41) -> 0.1647734301 | H32: 0.2601618846 | I32: =H32/SUM($F32,$H32,$J32,$L32,$N32,'Generel ledelse_Adm.'!$G41) -> 0.03484981517 | J32: 0.5460782118 | K32: =J32/SUM($F32,$H32,$J32,$L32,$N32,'Generel ledelse_Adm.'!$G41) -> 0.07314954987 | L32: 0.6100546712 | M32: =L32/SUM($F32,$H32,$J32,$L32,$N32,'Generel ledelse_Adm.'!$G41) -> 0.08171947467 | N32: 0.05859641904 | O32: =N32/SUM($F32,$H32,$J32,$L32,$N32,'Generel ledelse_Adm.'!$G41) -> 0.007849245007
C33: 905 | D33: Retten i Viborg | E33: Jurister | F33: 5.646263845 | G33: =F33/SUM($F33,$H33,$J33,$L33,$N33,'Generel ledelse_Adm.'!$G44) -> 0.4108639074 | H33: 5.102216964 | I33: =H33/SUM($F33,$H33,$J33,$L33,$N33,'Generel ledelse_Adm.'!$G44) -> 0.3712750334 | J33: 0.8546574325 | K33: =J33/SUM($F33,$H33,$J33,$L33,$N33,'Generel ledelse_Adm.'!$G44) -> 0.06219119435 | L33: 1.264306945 | M33: =L33/SUM($F33,$H33,$J33,$L33,$N33,'Generel ledelse_Adm.'!$G44) -> 0.09200032193 | N33: 0.005520642304 | O33: =N33/SUM($F33,$H33,$J33,$L33,$N33,'Generel ledelse_Adm.'!$G44) -> 0.0004017227551
C34: 905 | D34: Retten i Viborg | E34: Kontor | F34: 9.223717081 | G34: =F34/SUM($F34,$H34,$J34,$L34,$N34,'Generel ledelse_Adm.'!$G45) -> 0.312172908 | H34: 4.58948106 | I34: =H34/SUM($F34,$H34,$J34,$L34,$N34,'Generel ledelse_Adm.'!$G45) -> 0.1553290974 | J34: 6.761692517 | K34: =J34/SUM($F34,$H34,$J34,$L34,$N34,'Generel ledelse_Adm.'!$G45) -> 0.2288467 | L34: 4.243082614 | M34: =L34/SUM($F34,$H34,$J34,$L34,$N34,'Generel ledelse_Adm.'!$G45) -> 0.1436053846 | N34: 1.228784306 | O34: =N34/SUM($F34,$H34,$J34,$L34,$N34,'Generel ledelse_Adm.'!$G45) -> 0.04158769906
C35: 905 | D35: Retten i Viborg | E35: Elev | F35: 1.329664301 | G35: =F35/SUM($F35,$H35,$J35,$L35,$N35,'Generel ledelse_Adm.'!$G46) -> 0.3055576905 | H35: 0.3674591622 | I35: =H35/SUM($F35,$H35,$J35,$L35,$N35,'Generel ledelse_Adm.'!$G46) -> 0.08444234596 | J35: 1.518894126 | K35: =J35/SUM($F35,$H35,$J35,$L35,$N35,'Generel ledelse_Adm.'!$G46) -> 0.3490428229 | L35: 0.9998567481 | M35: =L35/SUM($F35,$H35,$J35,$L35,$N35,'Generel ledelse_Adm.'!$G46) -> 0.2297677078 | N35: 0.04163518636 | O35: =N35/SUM($F35,$H35,$J35,$L35,$N35,'Generel ledelse_Adm.'!$G46) -> 0.009567791941
C36: 905 | D36: Retten i Viborg | E36: Fleks | F36: 0.5897408704 | G36: =F36/SUM($F36,$H36,$J36,$L36,$N36,'Generel ledelse_Adm.'!$G47) -> 0.2988950572 | H36: 0.002122191227 | I36: =H36/SUM($F36,$H36,$J36,$L36,$N36,'Generel ledelse_Adm.'!$G47) -> 0.001075578275 | J36: 0.7813908099 | K36: =J36/SUM($F36,$H36,$J36,$L36,$N36,'Generel ledelse_Adm.'!$G47) -> 0.3960279209 | L36: 0.00093376414 | M36: =L36/SUM($F36,$H36,$J36,$L36,$N36,'Generel ledelse_Adm.'!$G47) -> 0.000473254441 | N36: 0.06307152327 | O36: =N36/SUM($F36,$H36,$J36,$L36,$N36,'Generel ledelse_Adm.'!$G47) -> 0.03196618634
C37: 905 | D37: Retten i Viborg | E37: Øvrige | F37: 0.4609794886 | G37: =F37/SUM($F37,$H37,$J37,$L37,$N37,'Generel ledelse_Adm.'!$G48) -> 0.1384973648 | H37: 0.01456955532 | I37: =H37/SUM($F37,$H37,$J37,$L37,$N37,'Generel ledelse_Adm.'!$G48) -> 0.00437729892 | J37: 0.1944663413 | K37: =J37/SUM($F37,$H37,$J37,$L37,$N37,'Generel ledelse_Adm.'!$G48) -> 0.0584257575 | L37: 0.0802724062 | M37: =L37/SUM($F37,$H37,$J37,$L37,$N37,'Generel ledelse_Adm.'!$G48) -> 0.02411716139 | N37: 0.1672335605 | O37: =N37/SUM($F37,$H37,$J37,$L37,$N37,'Generel ledelse_Adm.'!$G48) -> 0.05024390021
C38: 906 | D38: Retten i Holstebro | E38: Jurister | F38: 3.861778758 | G38: =F38/SUM($F38,$H38,$J38,$L38,$N38,'Generel ledelse_Adm.'!$G51) -> 0.4378656133 | H38: 2.081242043 | I38: =H38/SUM($F38,$H38,$J38,$L38,$N38,'Generel ledelse_Adm.'!$G51) -> 0.2359804589 | J38: 0.9036303103 | K38: =J38/SUM($F38,$H38,$J38,$L38,$N38,'Generel ledelse_Adm.'!$G51) -> 0.1024576147 | L38: 1.088017322 | M38: =L38/SUM($F38,$H38,$J38,$L38,$N38,'Generel ledelse_Adm.'!$G51) -> 0.1233642323 | N38: 0.0127092736 | O38: =N38/SUM($F38,$H38,$J38,$L38,$N38,'Generel ledelse_Adm.'!$G51) -> 0.001441033841
C39: 906 | D39: Retten i Holstebro | E39: Kontor | F39: 5.26895364 | G39: =F39/SUM($F39,$H39,$J39,$L39,$N39,'Generel ledelse_Adm.'!$G52) -> 0.2646937198 | H39: 3.051968771 | I39: =H39/SUM($F39,$H39,$J39,$L39,$N39,'Generel ledelse_Adm.'!$G52) -> 0.1533201888 | J39: 4.425222785 | K39: =J39/SUM($F39,$H39,$J39,$L39,$N39,'Generel ledelse_Adm.'!$G52) -> 0.2223076459 | L39: 4.776136555 | M39: =L39/SUM($F39,$H39,$J39,$L39,$N39,'Generel ledelse_Adm.'!$G52) -> 0.2399363209 | N39: 0.7573048151 | O39: =N39/SUM($F39,$H39,$J39,$L39,$N39,'Generel ledelse_Adm.'!$G52) -> 0.03804433333
C40: 906 | D40: Retten i Holstebro | E40: Elev | F40: 0.8906556877 | G40: =F40/SUM($F40,$H40,$J40,$L40,$N40,'Generel ledelse_Adm.'!$G53) -> 0.4546899091 | H40: 0.002810067304 | I40: =H40/SUM($F40,$H40,$J40,$L40,$N40,'Generel ledelse_Adm.'!$G53) -> 0.001434571479 | J40: 0.6411418174 | K40: =J40/SUM($F40,$H40,$J40,$L40,$N40,'Generel ledelse_Adm.'!$G53) -> 0.3273102262 | L40: 0.2997120346 | M40: =L40/SUM($F40,$H40,$J40,$L40,$N40,'Generel ledelse_Adm.'!$G53) -> 0.1530064195 | N40: 0 | O40: =N40/SUM($F40,$H40,$J40,$L40,$N40,'Generel ledelse_Adm.'!$G53) -> 0
C41: 906 | D41: Retten i Holstebro | E41: Fleks | F41: 0.1840101988 | G41: =F41/SUM($F41,$H41,$J41,$L41,$N41,'Generel ledelse_Adm.'!$G54) -> 0.07858084402 | H41: 0 | I41: =H41/SUM($F41,$H41,$J41,$L41,$N41,'Generel ledelse_Adm.'!$G54) -> 0 | J41: 0.1705207319 | K41: =J41/SUM($F41,$H41,$J41,$L41,$N41,'Generel ledelse_Adm.'!$G54) -> 0.07282021934 | L41: 0.1254139383 | M41: =L41/SUM($F41,$H41,$J41,$L41,$N41,'Generel ledelse_Adm.'!$G54) -> 0.05355753751 | N41: 0.1210049822 | O41: =N41/SUM($F41,$H41,$J41,$L41,$N41,'Generel ledelse_Adm.'!$G54) -> 0.05167470986
C42: 906 | D42: Retten i Holstebro | E42: Øvrige | F42: 0.2498604944 | G42: =F42/SUM($F42,$H42,$J42,$L42,$N42,'Generel ledelse_Adm.'!$G55) -> 0.09296892522 | H42: 0.0001500063004 | I42: =H42/SUM($F42,$H42,$J42,$L42,$N42,'Generel ledelse_Adm.'!$G55) -> 5.581484404e-05 | J42: 0 | K42: =J42/SUM($F42,$H42,$J42,$L42,$N42,'Generel ledelse_Adm.'!$G55) -> 0 | L42: 0 | M42: =L42/SUM($F42,$H42,$J42,$L42,$N42,'Generel ledelse_Adm.'!$G55) -> 0 | N42: 0.4255267188 | O42: =N42/SUM($F42,$H42,$J42,$L42,$N42,'Generel ledelse_Adm.'!$G55) -> 0.1583313993
C43: 907 | D43: Retten i Herning | E43: Jurister | F43: 5.898419799 | G43: =F43/SUM($F43,$H43,$J43,$L43,$N43,'Generel ledelse_Adm.'!$G58) -> 0.4542636703 | H43: 4.102096799 | I43: =H43/SUM($F43,$H43,$J43,$L43,$N43,'Generel ledelse_Adm.'!$G58) -> 0.3159208079 | J43: 0.8662313505 | K43: =J43/SUM($F43,$H43,$J43,$L43,$N43,'Generel ledelse_Adm.'!$G58) -> 0.06671234773 | L43: 1.67262428 | M43: =L43/SUM($F43,$H43,$J43,$L43,$N43,'Generel ledelse_Adm.'!$G58) -> 0.1288162712 | N43: 0.01255151806 | O43: =N43/SUM($F43,$H43,$J43,$L43,$N43,'Generel ledelse_Adm.'!$G58) -> 0.0009666485021
C44: 907 | D44: Retten i Herning | E44: Kontor | F44: 8.719722678 | G44: =F44/SUM($F44,$H44,$J44,$L44,$N44,'Generel ledelse_Adm.'!$G59) -> 0.3805724873 | H44: 2.761351742 | I44: =H44/SUM($F44,$H44,$J44,$L44,$N44,'Generel ledelse_Adm.'!$G59) -> 0.1205192573 | J44: 4.776288038 | K44: =J44/SUM($F44,$H44,$J44,$L44,$N44,'Generel ledelse_Adm.'!$G59) -> 0.2084611961 | L44: 3.784380686 | M44: =L44/SUM($F44,$H44,$J44,$L44,$N44,'Generel ledelse_Adm.'!$G59) -> 0.165169378 | N44: 1.389939377 | O44: =N44/SUM($F44,$H44,$J44,$L44,$N44,'Generel ledelse_Adm.'!$G59) -> 0.06066393454
C45: 907 | D45: Retten i Herning | E45: Elev | F45: 1.298450717 | G45: =F45/SUM($F45,$H45,$J45,$L45,$N45,'Generel ledelse_Adm.'!$G60) -> 0.4172318779 | H45: 0.07287378797 | I45: =H45/SUM($F45,$H45,$J45,$L45,$N45,'Generel ledelse_Adm.'!$G60) -> 0.02341657408 | J45: 0.7952646174 | K45: =J45/SUM($F45,$H45,$J45,$L45,$N45,'Generel ledelse_Adm.'!$G60) -> 0.2555428138 | L45: 0.8822816634 | M45: =L45/SUM($F45,$H45,$J45,$L45,$N45,'Generel ledelse_Adm.'!$G60) -> 0.2835040487 | N45: 0.02347152801 | O45: =N45/SUM($F45,$H45,$J45,$L45,$N45,'Generel ledelse_Adm.'!$G60) -> 0.007542118912
C46: 907 | D46: Retten i Herning | E46: Fleks | F46: 0 | G46: =F46/SUM($F46,$H46,$J46,$L46,$N46,'Generel ledelse_Adm.'!$G61) -> 0 | H46: 0.004119372 | I46: =H46/SUM($F46,$H46,$J46,$L46,$N46,'Generel ledelse_Adm.'!$G61) -> 0.01270127013 | J46: 0 | K46: =J46/SUM($F46,$H46,$J46,$L46,$N46,'Generel ledelse_Adm.'!$G61) -> 0 | L46: 0.320208192 | M46: =L46/SUM($F46,$H46,$J46,$L46,$N46,'Generel ledelse_Adm.'!$G61) -> 0.9872987299 | N46: 0 | O46: =N46/SUM($F46,$H46,$J46,$L46,$N46,'Generel ledelse_Adm.'!$G61) -> 0
C47: 907 | D47: Retten i Herning | E47: Øvrige | F47: 0.2211691963 | G47: =F47/SUM($F47,$H47,$J47,$L47,$N47,'Generel ledelse_Adm.'!$G62) -> 0.05492023896 | H47: 0.0006903637772 | I47: =H47/SUM($F47,$H47,$J47,$L47,$N47,'Generel ledelse_Adm.'!$G62) -> 0.0001714295853 | J47: 0.003411995244 | K47: =J47/SUM($F47,$H47,$J47,$L47,$N47,'Generel ledelse_Adm.'!$G62) -> 0.0008472590092 | L47: 0.9133078609 | M47: =L47/SUM($F47,$H47,$J47,$L47,$N47,'Generel ledelse_Adm.'!$G62) -> 0.2267905603 | N47: 0.0946466541 | O47: =N47/SUM($F47,$H47,$J47,$L47,$N47,'Generel ledelse_Adm.'!$G62) -> 0.02350244494
C48: 908 | D48: Retten i Horsens | E48: Jurister | F48: 6.021794843 | G48: =F48/SUM($F48,$H48,$J48,$L48,$N48,'Generel ledelse_Adm.'!$G65) -> 0.4570803954 | H48: 4.517552036 | I48: =H48/SUM($F48,$H48,$J48,$L48,$N48,'Generel ledelse_Adm.'!$G65) -> 0.3429018299 | J48: 0.9134876835 | K48: =J48/SUM($F48,$H48,$J48,$L48,$N48,'Generel ledelse_Adm.'!$G65) -> 0.0693376846 | L48: 0.9256680419 | M48: =L48/SUM($F48,$H48,$J48,$L48,$N48,'Generel ledelse_Adm.'!$G65) -> 0.07026222673 | N48: 0.01876576123 | O48: =N48/SUM($F48,$H48,$J48,$L48,$N48,'Generel ledelse_Adm.'!$G65) -> 0.001424402821
C49: 908 | D49: Retten i Horsens | E49: Kontor | F49: 6.56470375 | G49: =F49/SUM($F49,$H49,$J49,$L49,$N49,'Generel ledelse_Adm.'!$G66) -> 0.304328041 | H49: 3.081949652 | I49: =H49/SUM($F49,$H49,$J49,$L49,$N49,'Generel ledelse_Adm.'!$G66) -> 0.1428737283 | J49: 4.538457866 | K49: =J49/SUM($F49,$H49,$J49,$L49,$N49,'Generel ledelse_Adm.'!$G66) -> 0.2103948699 | L49: 4.565369227 | M49: =L49/SUM($F49,$H49,$J49,$L49,$N49,'Generel ledelse_Adm.'!$G66) -> 0.2116424329 | N49: 0.9631085879 | O49: =N49/SUM($F49,$H49,$J49,$L49,$N49,'Generel ledelse_Adm.'!$G66) -> 0.04464800865
C50: 908 | D50: Retten i Horsens | E50: Elev | F50: 0.9335444865 | G50: =F50/SUM($F50,$H50,$J50,$L50,$N50,'Generel ledelse_Adm.'!$G67) -> 0.4224164092 | H50: 0.0984092026 | I50: =H50/SUM($F50,$H50,$J50,$L50,$N50,'Generel ledelse_Adm.'!$G67) -> 0.04452884956 | J50: 0.659464853 | K50: =J50/SUM($F50,$H50,$J50,$L50,$N50,'Generel ledelse_Adm.'!$G67) -> 0.2983990364 | L50: 0.09027098124 | M50: =L50/SUM($F50,$H50,$J50,$L50,$N50,'Generel ledelse_Adm.'!$G67) -> 0.04084641311 | N50: 0.0374684575 | O50: =N50/SUM($F50,$H50,$J50,$L50,$N50,'Generel ledelse_Adm.'!$G67) -> 0.01695397649
C51: 908 | D51: Retten i Horsens | E51: Fleks | F51: 0.0239566239 | G51: =F51/SUM($F51,$H51,$J51,$L51,$N51,'Generel ledelse_Adm.'!$G68) -> 0.01185080119 | H51: 0.9760708817 | I51: =H51/SUM($F51,$H51,$J51,$L51,$N51,'Generel ledelse_Adm.'!$G68) -> 0.4828402374 | J51: 0.1520522754 | K51: =J51/SUM($F51,$H51,$J51,$L51,$N51,'Generel ledelse_Adm.'!$G68) -> 0.07521682916 | L51: 0.4293612723 | M51: =L51/SUM($F51,$H51,$J51,$L51,$N51,'Generel ledelse_Adm.'!$G68) -> 0.2123953317 | N51: 0.2036493504 | O51: =N51/SUM($F51,$H51,$J51,$L51,$N51,'Generel ledelse_Adm.'!$G68) -> 0.1007407377
C52: 908 | D52: Retten i Horsens | E52: Øvrige | F52: 0.5763065496 | G52: =F52/SUM($F52,$H52,$J52,$L52,$N52,'Generel ledelse_Adm.'!$G69) -> 0.1129733892 | H52: 0.1091791396 | I52: =H52/SUM($F52,$H52,$J52,$L52,$N52,'Generel ledelse_Adm.'!$G69) -> 0.02140238981 | J52: 0.5337090247 | K52: =J52/SUM($F52,$H52,$J52,$L52,$N52,'Generel ledelse_Adm.'!$G69) -> 0.1046229952 | L52: 0.8490407111 | M52: =L52/SUM($F52,$H52,$J52,$L52,$N52,'Generel ledelse_Adm.'!$G69) -> 0.1664374746 | N52: 0.5104731549 | O52: =N52/SUM($F52,$H52,$J52,$L52,$N52,'Generel ledelse_Adm.'!$G69) -> 0.100068067
C53: 909 | D53: Retten i Kolding | E53: Jurister | F53: 10.23470739 | G53: =F53/SUM($F53,$H53,$J53,$L53,$N53,'Generel ledelse_Adm.'!$G72) -> 0.447251429 | H53: 8.673579932 | I53: =H53/SUM($F53,$H53,$J53,$L53,$N53,'Generel ledelse_Adm.'!$G72) -> 0.3790309652 | J53: 1.465601693 | K53: =J53/SUM($F53,$H53,$J53,$L53,$N53,'Generel ledelse_Adm.'!$G72) -> 0.06404603736 | L53: 1.609313655 | M53: =L53/SUM($F53,$H53,$J53,$L53,$N53,'Generel ledelse_Adm.'!$G72) -> 0.07032617591 | N53: 0.02396144097 | O53: =N53/SUM($F53,$H53,$J53,$L53,$N53,'Generel ledelse_Adm.'!$G72) -> 0.0010471026
C54: 909 | D54: Retten i Kolding | E54: Kontor | F54: 10.67587789 | G54: =F54/SUM($F54,$H54,$J54,$L54,$N54,'Generel ledelse_Adm.'!$G73) -> 0.2934942246 | H54: 6.498808704 | I54: =H54/SUM($F54,$H54,$J54,$L54,$N54,'Generel ledelse_Adm.'!$G73) -> 0.1786609814 | J54: 5.17159471 | K54: =J54/SUM($F54,$H54,$J54,$L54,$N54,'Generel ledelse_Adm.'!$G73) -> 0.1421740858 | L54: 7.349068775 | M54: =L54/SUM($F54,$H54,$J54,$L54,$N54,'Generel ledelse_Adm.'!$G73) -> 0.2020357729 | N54: 1.624319806 | O54: =N54/SUM($F54,$H54,$J54,$L54,$N54,'Generel ledelse_Adm.'!$G73) -> 0.04465473349
C55: 909 | D55: Retten i Kolding | E55: Elev | F55: 2.858928367 | G55: =F55/SUM($F55,$H55,$J55,$L55,$N55,'Generel ledelse_Adm.'!$G74) -> 0.4514066534 | H55: 0.4004534683 | I55: =H55/SUM($F55,$H55,$J55,$L55,$N55,'Generel ledelse_Adm.'!$G74) -> 0.06322906235 | J55: 1.893288913 | K55: =J55/SUM($F55,$H55,$J55,$L55,$N55,'Generel ledelse_Adm.'!$G74) -> 0.2989383092 | L55: 0.9316309733 | M55: =L55/SUM($F55,$H55,$J55,$L55,$N55,'Generel ledelse_Adm.'!$G74) -> 0.1470986208 | N55: 0.007866928213 | O55: =N55/SUM($F55,$H55,$J55,$L55,$N55,'Generel ledelse_Adm.'!$G74) -> 0.001242138061
C56: 909 | D56: Retten i Kolding | E56: Fleks | F56: 0.8900267239 | G56: =F56/SUM($F56,$H56,$J56,$L56,$N56,'Generel ledelse_Adm.'!$G75) -> 0.4738444261 | H56: 0.1038234243 | I56: =H56/SUM($F56,$H56,$J56,$L56,$N56,'Generel ledelse_Adm.'!$G75) -> 0.05527491429 | J56: 0.8810777503 | K56: =J56/SUM($F56,$H56,$J56,$L56,$N56,'Generel ledelse_Adm.'!$G75) -> 0.4690800508 | L56: 0 | M56: =L56/SUM($F56,$H56,$J56,$L56,$N56,'Generel ledelse_Adm.'!$G75) -> 0 | N56: 0 | O56: =N56/SUM($F56,$H56,$J56,$L56,$N56,'Generel ledelse_Adm.'!$G75) -> 0
C57: 909 | D57: Retten i Kolding | E57: Øvrige | F57: 0.4381841798 | G57: =F57/SUM($F57,$H57,$J57,$L57,$N57,'Generel ledelse_Adm.'!$G76) -> 0.2088321656 | H57: 0 | I57: =H57/SUM($F57,$H57,$J57,$L57,$N57,'Generel ledelse_Adm.'!$G76) -> 0 | J57: 0.09240063582 | K57: =J57/SUM($F57,$H57,$J57,$L57,$N57,'Generel ledelse_Adm.'!$G76) -> 0.0440367904 | L57: 0.03899737968 | M57: =L57/SUM($F57,$H57,$J57,$L57,$N57,'Generel ledelse_Adm.'!$G76) -> 0.01858558028 | N57: 0.03641816795 | O57: =N57/SUM($F57,$H57,$J57,$L57,$N57,'Generel ledelse_Adm.'!$G76) -> 0.01735636573
C58: 910 | D58: Retten i Esbjerg | E58: Jurister | F58: 7.484206329 | G58: =F58/SUM($F58,$H58,$J58,$L58,$N58,'Generel ledelse_Adm.'!$G79) -> 0.4766049447 | H58: 4.197000126 | I58: =H58/SUM($F58,$H58,$J58,$L58,$N58,'Generel ledelse_Adm.'!$G79) -> 0.2672709604 | J58: 0.9821450685 | K58: =J58/SUM($F58,$H58,$J58,$L58,$N58,'Generel ledelse_Adm.'!$G79) -> 0.06254440023 | L58: 1.391320804 | M58: =L58/SUM($F58,$H58,$J58,$L58,$N58,'Generel ledelse_Adm.'!$G79) -> 0.08860129528 | N58: 0.007911307326 | O58: =N58/SUM($F58,$H58,$J58,$L58,$N58,'Generel ledelse_Adm.'!$G79) -> 0.000503803346
C59: 910 | D59: Retten i Esbjerg | E59: Kontor | F59: 8.325895473 | G59: =F59/SUM($F59,$H59,$J59,$L59,$N59,'Generel ledelse_Adm.'!$G80) -> 0.3006690797 | H59: 4.007846461 | I59: =H59/SUM($F59,$H59,$J59,$L59,$N59,'Generel ledelse_Adm.'!$G80) -> 0.1447334417 | J59: 5.948513673 | K59: =J59/SUM($F59,$H59,$J59,$L59,$N59,'Generel ledelse_Adm.'!$G80) -> 0.2148158283 | L59: 5.69602669 | M59: =L59/SUM($F59,$H59,$J59,$L59,$N59,'Generel ledelse_Adm.'!$G80) -> 0.2056978866 | N59: 1.303430871 | O59: =N59/SUM($F59,$H59,$J59,$L59,$N59,'Generel ledelse_Adm.'!$G80) -> 0.04707017542
C60: 910 | D60: Retten i Esbjerg | E60: Elev | F60: 0.373033458 | G60: =F60/SUM($F60,$H60,$J60,$L60,$N60,'Generel ledelse_Adm.'!$G81) -> 0.4494 | H60: 0.382330242 | I60: =H60/SUM($F60,$H60,$J60,$L60,$N60,'Generel ledelse_Adm.'!$G81) -> 0.4606 | J60: 0 | K60: =J60/SUM($F60,$H60,$J60,$L60,$N60,'Generel ledelse_Adm.'!$G81) -> 0 | L60: 0.0747063 | M60: =L60/SUM($F60,$H60,$J60,$L60,$N60,'Generel ledelse_Adm.'!$G81) -> 0.09 | N60: 0 | O60: =N60/SUM($F60,$H60,$J60,$L60,$N60,'Generel ledelse_Adm.'!$G81) -> 0
C61: 910 | D61: Retten i Esbjerg | E61: Fleks | F61: 0 | G61: =F61/SUM($F61,$H61,$J61,$L61,$N61,'Generel ledelse_Adm.'!$G82) -> 0 | H61: 0 | I61: =H61/SUM($F61,$H61,$J61,$L61,$N61,'Generel ledelse_Adm.'!$G82) -> 0 | J61: 0 | K61: =J61/SUM($F61,$H61,$J61,$L61,$N61,'Generel ledelse_Adm.'!$G82) -> 0 | L61: 1.00003 | M61: =L61/SUM($F61,$H61,$J61,$L61,$N61,'Generel ledelse_Adm.'!$G82) -> 1 | N61: 0 | O61: =N61/SUM($F61,$H61,$J61,$L61,$N61,'Generel ledelse_Adm.'!$G82) -> 0
C62: 910 | D62: Retten i Esbjerg | E62: Øvrige | F62: 7.463840731e-05 | G62: =F62/SUM($F62,$H62,$J62,$L62,$N62,'Generel ledelse_Adm.'!$G83) -> 1.465639165e-05 | H62: 0 | I62: =H62/SUM($F62,$H62,$J62,$L62,$N62,'Generel ledelse_Adm.'!$G83) -> 0 | J62: 0.3567801421 | K62: =J62/SUM($F62,$H62,$J62,$L62,$N62,'Generel ledelse_Adm.'!$G83) -> 0.07005923204 | L62: 0.2875458228 | M62: =L62/SUM($F62,$H62,$J62,$L62,$N62,'Generel ledelse_Adm.'!$G83) -> 0.05646401564 | N62: 0.08327697796 | O62: =N62/SUM($F62,$H62,$J62,$L62,$N62,'Generel ledelse_Adm.'!$G83) -> 0.01635270699
C63: 911 | D63: Retten i Sønderborg | E63: Jurister | F63: 8.362287362 | G63: =F63/SUM($F63,$H63,$J63,$L63,$N63,'Generel ledelse_Adm.'!$G86) -> 0.4809674948 | H63: 6.133596523 | I63: =H63/SUM($F63,$H63,$J63,$L63,$N63,'Generel ledelse_Adm.'!$G86) -> 0.3527815329 | J63: 0.9072571223 | K63: =J63/SUM($F63,$H63,$J63,$L63,$N63,'Generel ledelse_Adm.'!$G86) -> 0.05218203661 | L63: 0.8771144947 | M63: =L63/SUM($F63,$H63,$J63,$L63,$N63,'Generel ledelse_Adm.'!$G86) -> 0.0504483454 | N63: 0.03265386204 | O63: =N63/SUM($F63,$H63,$J63,$L63,$N63,'Generel ledelse_Adm.'!$G86) -> 0.001878128022
C64: 911 | D64: Retten i Sønderborg | E64: Kontor | F64: 10.99876553 | G64: =F64/SUM($F64,$H64,$J64,$L64,$N64,'Generel ledelse_Adm.'!$G87) -> 0.3337526028 | H64: 5.410052608 | I64: =H64/SUM($F64,$H64,$J64,$L64,$N64,'Generel ledelse_Adm.'!$G87) -> 0.1641656179 | J64: 5.166943348 | K64: =J64/SUM($F64,$H64,$J64,$L64,$N64,'Generel ledelse_Adm.'!$G87) -> 0.1567885765 | L64: 5.027913312 | M64: =L64/SUM($F64,$H64,$J64,$L64,$N64,'Generel ledelse_Adm.'!$G87) -> 0.1525697725 | N64: 1.818700941 | O64: =N64/SUM($F64,$H64,$J64,$L64,$N64,'Generel ledelse_Adm.'!$G87) -> 0.05518766368
C65: 911 | D65: Retten i Sønderborg | E65: Elev | F65: 1.092710373 | G65: =F65/SUM($F65,$H65,$J65,$L65,$N65,'Generel ledelse_Adm.'!$G88) -> 0.546342439 | H65: 0.004033494667 | I65: =H65/SUM($F65,$H65,$J65,$L65,$N65,'Generel ledelse_Adm.'!$G88) -> 0.002016700278 | J65: 0.5263877213 | K65: =J65/SUM($F65,$H65,$J65,$L65,$N65,'Generel ledelse_Adm.'!$G88) -> 0.2631877198 | L65: 0.3598477267 | M65: =L65/SUM($F65,$H65,$J65,$L65,$N65,'Generel ledelse_Adm.'!$G88) -> 0.1799196653 | N65: 0 | O65: =N65/SUM($F65,$H65,$J65,$L65,$N65,'Generel ledelse_Adm.'!$G88) -> 0
C66: 911 | D66: Retten i Sønderborg | E66: Fleks | F66: 0 | G66: =F66/SUM($F66,$H66,$J66,$L66,$N66,'Generel ledelse_Adm.'!$G89) -> 0 | H66: 0 | I66: =H66/SUM($F66,$H66,$J66,$L66,$N66,'Generel ledelse_Adm.'!$G89) -> 0 | J66: 0 | K66: =J66/SUM($F66,$H66,$J66,$L66,$N66,'Generel ledelse_Adm.'!$G89) -> 0 | L66: 0.2611949308 | M66: =L66/SUM($F66,$H66,$J66,$L66,$N66,'Generel ledelse_Adm.'!$G89) -> 0.2291826923 | N66: 0 | O66: =N66/SUM($F66,$H66,$J66,$L66,$N66,'Generel ledelse_Adm.'!$G89) -> 0
C67: 911 | D67: Retten i Sønderborg | E67: Øvrige | F67: 0.1441735094 | G67: =F67/SUM($F67,$H67,$J67,$L67,$N67,'Generel ledelse_Adm.'!$G90) -> 0.04913922707 | H67: 0 | I67: =H67/SUM($F67,$H67,$J67,$L67,$N67,'Generel ledelse_Adm.'!$G90) -> 0 | J67: 0.3228947995 | K67: =J67/SUM($F67,$H67,$J67,$L67,$N67,'Generel ledelse_Adm.'!$G90) -> 0.1100535108 | L67: 0.4382383419 | M67: =L67/SUM($F67,$H67,$J67,$L67,$N67,'Generel ledelse_Adm.'!$G90) -> 0.1493665062 | N67: 0 | O67: =N67/SUM($F67,$H67,$J67,$L67,$N67,'Generel ledelse_Adm.'!$G90) -> 0
C68: 912 | D68: Retten i Odense | E68: Jurister | F68: 9.987041632 | G68: =F68/SUM($F68,$H68,$J68,$L68,$N68,'Generel ledelse_Adm.'!$G93) -> 0.4656637141 | H68: 6.270216095 | I68: =H68/SUM($F68,$H68,$J68,$L68,$N68,'Generel ledelse_Adm.'!$G93) -> 0.2923600624 | J68: 2.235520292 | K68: =J68/SUM($F68,$H68,$J68,$L68,$N68,'Generel ledelse_Adm.'!$G93) -> 0.10423514 | L68: 1.955399825 | M68: =L68/SUM($F68,$H68,$J68,$L68,$N68,'Generel ledelse_Adm.'!$G93) -> 0.09117402113 | N68: 0.0244302083 | O68: =N68/SUM($F68,$H68,$J68,$L68,$N68,'Generel ledelse_Adm.'!$G93) -> 0.001139102244
C69: 912 | D69: Retten i Odense | E69: Kontor | F69: 13.00965611 | G69: =F69/SUM($F69,$H69,$J69,$L69,$N69,'Generel ledelse_Adm.'!$G94) -> 0.3208622911 | H69: 5.914342908 | I69: =H69/SUM($F69,$H69,$J69,$L69,$N69,'Generel ledelse_Adm.'!$G94) -> 0.145867777 | J69: 8.195514314 | K69: =J69/SUM($F69,$H69,$J69,$L69,$N69,'Generel ledelse_Adm.'!$G94) -> 0.2021292091 | L69: 9.351780827 | M69: =L69/SUM($F69,$H69,$J69,$L69,$N69,'Generel ledelse_Adm.'!$G94) -> 0.2306466671 | N69: 0.966257621 | O69: =N69/SUM($F69,$H69,$J69,$L69,$N69,'Generel ledelse_Adm.'!$G94) -> 0.02383119365
C70: 912 | D70: Retten i Odense | E70: Elev | F70: 0.7354175663 | G70: =F70/SUM($F70,$H70,$J70,$L70,$N70,'Generel ledelse_Adm.'!$G95) -> 0.2039874703 | H70: 0.001266725631 | I70: =H70/SUM($F70,$H70,$J70,$L70,$N70,'Generel ledelse_Adm.'!$G95) -> 0.0003513597839 | J70: 1.610141617 | K70: =J70/SUM($F70,$H70,$J70,$L70,$N70,'Generel ledelse_Adm.'!$G95) -> 0.4466152706 | L70: 1.225968303 | M70: =L70/SUM($F70,$H70,$J70,$L70,$N70,'Generel ledelse_Adm.'!$G95) -> 0.3400546632 | N70: 0.02931514554 | O70: =N70/SUM($F70,$H70,$J70,$L70,$N70,'Generel ledelse_Adm.'!$G95) -> 0.008131329269
C71: 912 | D71: Retten i Odense | E71: Fleks | F71: 0.72115 | G71: =F71/SUM($F71,$H71,$J71,$L71,$N71,'Generel ledelse_Adm.'!$G96) -> 1 | H71: 0 | I71: =H71/SUM($F71,$H71,$J71,$L71,$N71,'Generel ledelse_Adm.'!$G96) -> 0 | J71: 0 | K71: =J71/SUM($F71,$H71,$J71,$L71,$N71,'Generel ledelse_Adm.'!$G96) -> 0 | L71: 0 | M71: =L71/SUM($F71,$H71,$J71,$L71,$N71,'Generel ledelse_Adm.'!$G96) -> 0 | N71: 0 | O71: =N71/SUM($F71,$H71,$J71,$L71,$N71,'Generel ledelse_Adm.'!$G96) -> 0
C72: 912 | D72: Retten i Odense | E72: Øvrige | F72: 0.006581095962 | G72: =F72/SUM($F72,$H72,$J72,$L72,$N72,'Generel ledelse_Adm.'!$G97) -> 0.001344142407 | H72: 0 | I72: =H72/SUM($F72,$H72,$J72,$L72,$N72,'Generel ledelse_Adm.'!$G97) -> 0 | J72: 0 | K72: =J72/SUM($F72,$H72,$J72,$L72,$N72,'Generel ledelse_Adm.'!$G97) -> 0 | L72: 0 | M72: =L72/SUM($F72,$H72,$J72,$L72,$N72,'Generel ledelse_Adm.'!$G97) -> 0 | N72: 0 | O72: =N72/SUM($F72,$H72,$J72,$L72,$N72,'Generel ledelse_Adm.'!$G97) -> 0
C73: 913 | D73: Retten i Svendborg | E73: Jurister | F73: 4.296481785 | G73: =F73/SUM($F73,$H73,$J73,$L73,$N73,'Generel ledelse_Adm.'!$G100) -> 0.4308172185 | H73: 3.708343376 | I73: =H73/SUM($F73,$H73,$J73,$L73,$N73,'Generel ledelse_Adm.'!$G100) -> 0.3718433496 | J73: 0.7080563285 | K73: =J73/SUM($F73,$H73,$J73,$L73,$N73,'Generel ledelse_Adm.'!$G100) -> 0.07099828959 | L73: 0.5815055444 | M73: =L73/SUM($F73,$H73,$J73,$L73,$N73,'Generel ledelse_Adm.'!$G100) -> 0.05830877767 | N73: 0.002382622493 | O73: =N73/SUM($F73,$H73,$J73,$L73,$N73,'Generel ledelse_Adm.'!$G100) -> 0.0002389105427
C74: 913 | D74: Retten i Svendborg | E74: Kontor | F74: 5.190582975 | G74: =F74/SUM($F74,$H74,$J74,$L74,$N74,'Generel ledelse_Adm.'!$G101) -> 0.2725877946 | H74: 3.502074592 | I74: =H74/SUM($F74,$H74,$J74,$L74,$N74,'Generel ledelse_Adm.'!$G101) -> 0.1839143684 | J74: 4.190752987 | K74: =J74/SUM($F74,$H74,$J74,$L74,$N74,'Generel ledelse_Adm.'!$G101) -> 0.2200808888 | L74: 3.734205977 | M74: =L74/SUM($F74,$H74,$J74,$L74,$N74,'Generel ledelse_Adm.'!$G101) -> 0.1961049418 | N74: 0.2614429209 | O74: =N74/SUM($F74,$H74,$J74,$L74,$N74,'Generel ledelse_Adm.'!$G101) -> 0.01372989307
C75: 913 | D75: Retten i Svendborg | E75: Elev | F75: 0.013542 | G75: =F75/SUM($F75,$H75,$J75,$L75,$N75,'Generel ledelse_Adm.'!$G102) -> 0.015 | H75: 0.08739104 | I75: =H75/SUM($F75,$H75,$J75,$L75,$N75,'Generel ledelse_Adm.'!$G102) -> 0.0968 | J75: 0.53454788 | K75: =J75/SUM($F75,$H75,$J75,$L75,$N75,'Generel ledelse_Adm.'!$G102) -> 0.5921 | L75: 0.1936506 | M75: =L75/SUM($F75,$H75,$J75,$L75,$N75,'Generel ledelse_Adm.'!$G102) -> 0.2145 | N75: 0 | O75: =N75/SUM($F75,$H75,$J75,$L75,$N75,'Generel ledelse_Adm.'!$G102) -> 0
C76: 913 | D76: Retten i Svendborg | E76: Fleks | F76: 0 | G76: =F76/SUM($F76,$H76,$J76,$L76,$N76,'Generel ledelse_Adm.'!$G103) -> 0 | H76: 0 | I76: =H76/SUM($F76,$H76,$J76,$L76,$N76,'Generel ledelse_Adm.'!$G103) -> 0 | J76: 0 | K76: =J76/SUM($F76,$H76,$J76,$L76,$N76,'Generel ledelse_Adm.'!$G103) -> 0 | L76: 0.848234958 | M76: =L76/SUM($F76,$H76,$J76,$L76,$N76,'Generel ledelse_Adm.'!$G103) -> 0.9979 | N76: 0.001785042 | O76: =N76/SUM($F76,$H76,$J76,$L76,$N76,'Generel ledelse_Adm.'!$G103) -> 0.0021
C77: 913 | D77: Retten i Svendborg | E77: Øvrige | F77: 0.09820853573 | G77: =F77/SUM($F77,$H77,$J77,$L77,$N77,'Generel ledelse_Adm.'!$G104) -> 0.02593792374 | H77: 0.05497771834 | I77: =H77/SUM($F77,$H77,$J77,$L77,$N77,'Generel ledelse_Adm.'!$G104) -> 0.0145202029 | J77: 0.0006392449314 | K77: =J77/SUM($F77,$H77,$J77,$L77,$N77,'Generel ledelse_Adm.'!$G104) -> 0.0001688314173 | L77: 0.3501054076 | M77: =L77/SUM($F77,$H77,$J77,$L77,$N77,'Generel ledelse_Adm.'!$G104) -> 0.09246657936 | N77: 0.3078048942 | O77: =N77/SUM($F77,$H77,$J77,$L77,$N77,'Generel ledelse_Adm.'!$G104) -> 0.08129456173
C78: 914 | D78: Retten i Nykøbing F. | E78: Jurister | F78: 5.957606207 | G78: =F78/SUM($F78,$H78,$J78,$L78,$N78,'Generel ledelse_Adm.'!$G107) -> 0.4212677612 | H78: 4.382751751 | I78: =H78/SUM($F78,$H78,$J78,$L78,$N78,'Generel ledelse_Adm.'!$G107) -> 0.3099083682 | J78: 1.34035483 | K78: =J78/SUM($F78,$H78,$J78,$L78,$N78,'Generel ledelse_Adm.'!$G107) -> 0.09477771086 | L78: 1.313959483 | M78: =L78/SUM($F78,$H78,$J78,$L78,$N78,'Generel ledelse_Adm.'!$G107) -> 0.09291127183 | N78: 0.004460700863 | O78: =N78/SUM($F78,$H78,$J78,$L78,$N78,'Generel ledelse_Adm.'!$G107) -> 0.0003154202209
C79: 914 | D79: Retten i Nykøbing F. | E79: Kontor | F79: 7.131975282 | G79: =F79/SUM($F79,$H79,$J79,$L79,$N79,'Generel ledelse_Adm.'!$G108) -> 0.2480131257 | H79: 4.815385586 | I79: =H79/SUM($F79,$H79,$J79,$L79,$N79,'Generel ledelse_Adm.'!$G108) -> 0.1674541461 | J79: 6.108171117 | K79: =J79/SUM($F79,$H79,$J79,$L79,$N79,'Generel ledelse_Adm.'!$G108) -> 0.2124105246 | L79: 5.903968548 | M79: =L79/SUM($F79,$H79,$J79,$L79,$N79,'Generel ledelse_Adm.'!$G108) -> 0.2053094179 | N79: 0.8686904385 | O79: =N79/SUM($F79,$H79,$J79,$L79,$N79,'Generel ledelse_Adm.'!$G108) -> 0.03020854986
C80: 914 | D80: Retten i Nykøbing F. | E80: Elev | F80: 0.5256471292 | G80: =F80/SUM($F80,$H80,$J80,$L80,$N80,'Generel ledelse_Adm.'!$G109) -> 0.2617866723 | H80: 0.2877545013 | I80: =H80/SUM($F80,$H80,$J80,$L80,$N80,'Generel ledelse_Adm.'!$G109) -> 0.1433096257 | J80: 0.5120763525 | K80: =J80/SUM($F80,$H80,$J80,$L80,$N80,'Generel ledelse_Adm.'!$G109) -> 0.2550280536 | L80: 0.4247803024 | M80: =L80/SUM($F80,$H80,$J80,$L80,$N80,'Generel ledelse_Adm.'!$G109) -> 0.2115522289 | N80: 0.002500092179 | O80: =N80/SUM($F80,$H80,$J80,$L80,$N80,'Generel ledelse_Adm.'!$G109) -> 0.001245114404
C81: 914 | D81: Retten i Nykøbing F. | E81: Fleks | F81: 0 | G81: =F81/SUM($F81,$H81,$J81,$L81,$N81,'Generel ledelse_Adm.'!$G110) -> 0 | H81: 0 | I81: =H81/SUM($F81,$H81,$J81,$L81,$N81,'Generel ledelse_Adm.'!$G110) -> 0 | J81: 0.0009247314418 | K81: =J81/SUM($F81,$H81,$J81,$L81,$N81,'Generel ledelse_Adm.'!$G110) -> 0.001743353675 | L81: 0.1240514733 | M81: =L81/SUM($F81,$H81,$J81,$L81,$N81,'Generel ledelse_Adm.'!$G110) -> 0.2338685396 | N81: 0 | O81: =N81/SUM($F81,$H81,$J81,$L81,$N81,'Generel ledelse_Adm.'!$G110) -> 0
C82: 914 | D82: Retten i Nykøbing F. | E82: Øvrige | F82: 0.005166149691 | G82: =F82/SUM($F82,$H82,$J82,$L82,$N82,'Generel ledelse_Adm.'!$G111) -> 0.001894840392 | H82: 0.003709919577 | I82: =H82/SUM($F82,$H82,$J82,$L82,$N82,'Generel ledelse_Adm.'!$G111) -> 0.001360724309 | J82: 0.1639992486 | K82: =J82/SUM($F82,$H82,$J82,$L82,$N82,'Generel ledelse_Adm.'!$G111) -> 0.06015164467 | L82: 0 | M82: =L82/SUM($F82,$H82,$J82,$L82,$N82,'Generel ledelse_Adm.'!$G111) -> 0 | N82: 0.02167414652 | O82: =N82/SUM($F82,$H82,$J82,$L82,$N82,'Generel ledelse_Adm.'!$G111) -> 0.007949643498
C83: 915 | D83: Retten i Næstved | E83: Jurister | F83: 6.906724692 | G83: =F83/SUM($F83,$H83,$J83,$L83,$N83,'Generel ledelse_Adm.'!$G114) -> 0.4206538661 | H83: 5.061781883 | I83: =H83/SUM($F83,$H83,$J83,$L83,$N83,'Generel ledelse_Adm.'!$G114) -> 0.3082876781 | J83: 1.432166861 | K83: =J83/SUM($F83,$H83,$J83,$L83,$N83,'Generel ledelse_Adm.'!$G114) -> 0.08722608095 | L83: 1.68894515 | M83: =L83/SUM($F83,$H83,$J83,$L83,$N83,'Generel ledelse_Adm.'!$G114) -> 0.1028651551 | N83: 0.01054015938 | O83: =N83/SUM($F83,$H83,$J83,$L83,$N83,'Generel ledelse_Adm.'!$G114) -> 0.0006419480998
C84: 915 | D84: Retten i Næstved | E84: Kontor | F84: 9.618501173 | G84: =F84/SUM($F84,$H84,$J84,$L84,$N84,'Generel ledelse_Adm.'!$G115) -> 0.2602939596 | H84: 5.393529579 | I84: =H84/SUM($F84,$H84,$J84,$L84,$N84,'Generel ledelse_Adm.'!$G115) -> 0.1459586213 | J84: 7.265305286 | K84: =J84/SUM($F84,$H84,$J84,$L84,$N84,'Generel ledelse_Adm.'!$G115) -> 0.196612242 | L84: 6.843654938 | M84: =L84/SUM($F84,$H84,$J84,$L84,$N84,'Generel ledelse_Adm.'!$G115) -> 0.1852016244 | N84: 1.717924976 | O84: =N84/SUM($F84,$H84,$J84,$L84,$N84,'Generel ledelse_Adm.'!$G115) -> 0.04649014293
C85: 915 | D85: Retten i Næstved | E85: Elev | F85: 0.7116204461 | G85: =F85/SUM($F85,$H85,$J85,$L85,$N85,'Generel ledelse_Adm.'!$G116) -> 0.6082052746 | H85: 0.02996416995 | I85: =H85/SUM($F85,$H85,$J85,$L85,$N85,'Generel ledelse_Adm.'!$G116) -> 0.025609672 | J85: 0.03910248751 | K85: =J85/SUM($F85,$H85,$J85,$L85,$N85,'Generel ledelse_Adm.'!$G116) -> 0.0334199773 | L85: 0 | M85: =L85/SUM($F85,$H85,$J85,$L85,$N85,'Generel ledelse_Adm.'!$G116) -> 0 | N85: 0.01289333773 | O85: =N85/SUM($F85,$H85,$J85,$L85,$N85,'Generel ledelse_Adm.'!$G116) -> 0.01101963281
C86: 915 | D86: Retten i Næstved | E86: Fleks | F86: 0.3990626872 | G86: =F86/SUM($F86,$H86,$J86,$L86,$N86,'Generel ledelse_Adm.'!$G117) -> 0.1139706941 | H86: 0 | I86: =H86/SUM($F86,$H86,$J86,$L86,$N86,'Generel ledelse_Adm.'!$G117) -> 0 | J86: 1.584428955 | K86: =J86/SUM($F86,$H86,$J86,$L86,$N86,'Generel ledelse_Adm.'!$G117) -> 0.4525065197 | L86: 0.5378968715 | M86: =L86/SUM($F86,$H86,$J86,$L86,$N86,'Generel ledelse_Adm.'!$G117) -> 0.1536211772 | N86: 0.3020133308 | O86: =N86/SUM($F86,$H86,$J86,$L86,$N86,'Generel ledelse_Adm.'!$G117) -> 0.08625378927
C87: 915 | D87: Retten i Næstved | E87: Øvrige | F87: 0.004666422451 | G87: =F87/SUM($F87,$H87,$J87,$L87,$N87,'Generel ledelse_Adm.'!$G118) -> 0.0009665052072 | H87: 0 | I87: =H87/SUM($F87,$H87,$J87,$L87,$N87,'Generel ledelse_Adm.'!$G118) -> 0 | J87: 0.5932589342 | K87: =J87/SUM($F87,$H87,$J87,$L87,$N87,'Generel ledelse_Adm.'!$G118) -> 0.1228752551 | L87: 0.001715688577 | M87: =L87/SUM($F87,$H87,$J87,$L87,$N87,'Generel ledelse_Adm.'!$G118) -> 0.0003553518699 | N87: 0.07393058051 | O87: =N87/SUM($F87,$H87,$J87,$L87,$N87,'Generel ledelse_Adm.'!$G118) -> 0.01531243512
C88: 916 | D88: Retten i Holbæk | E88: Jurister | F88: 6.079291626 | G88: =F88/SUM($F88,$H88,$J88,$L88,$N88,'Generel ledelse_Adm.'!$G121) -> 0.4766012455 | H88: 3.650083591 | I88: =H88/SUM($F88,$H88,$J88,$L88,$N88,'Generel ledelse_Adm.'!$G121) -> 0.2861574165 | J88: 0.9746331677 | K88: =J88/SUM($F88,$H88,$J88,$L88,$N88,'Generel ledelse_Adm.'!$G121) -> 0.0764088006 | L88: 1.134790071 | M88: =L88/SUM($F88,$H88,$J88,$L88,$N88,'Generel ledelse_Adm.'!$G121) -> 0.08896470087 | N88: 0 | O88: =N88/SUM($F88,$H88,$J88,$L88,$N88,'Generel ledelse_Adm.'!$G121) -> 0
C89: 916 | D89: Retten i Holbæk | E89: Kontor | F89: 6.496097092 | G89: =F89/SUM($F89,$H89,$J89,$L89,$N89,'Generel ledelse_Adm.'!$G122) -> 0.2633248832 | H89: 3.099790992 | I89: =H89/SUM($F89,$H89,$J89,$L89,$N89,'Generel ledelse_Adm.'!$G122) -> 0.1256526942 | J89: 5.962567577 | K89: =J89/SUM($F89,$H89,$J89,$L89,$N89,'Generel ledelse_Adm.'!$G122) -> 0.2416978054 | L89: 4.976295782 | M89: =L89/SUM($F89,$H89,$J89,$L89,$N89,'Generel ledelse_Adm.'!$G122) -> 0.2017184299 | N89: 0.8403514454 | O89: =N89/SUM($F89,$H89,$J89,$L89,$N89,'Generel ledelse_Adm.'!$G122) -> 0.03406436867
C90: 916 | D90: Retten i Holbæk | E90: Elev | F90: 0.046635665 | G90: =F90/SUM($F90,$H90,$J90,$L90,$N90,'Generel ledelse_Adm.'!$G123) -> 0.04663644243 | H90: 0.019300965 | I90: =H90/SUM($F90,$H90,$J90,$L90,$N90,'Generel ledelse_Adm.'!$G123) -> 0.01930128675 | J90: 0.38701935 | K90: =J90/SUM($F90,$H90,$J90,$L90,$N90,'Generel ledelse_Adm.'!$G123) -> 0.3870258017 | L90: 0.385919295 | M90: =L90/SUM($F90,$H90,$J90,$L90,$N90,'Generel ledelse_Adm.'!$G123) -> 0.3859257284 | N90: 0.021301065 | O90: =N90/SUM($F90,$H90,$J90,$L90,$N90,'Generel ledelse_Adm.'!$G123) -> 0.02130142009
C91: 916 | D91: Retten i Holbæk | E91: Fleks | F91: 1.000038262 | G91: =F91/SUM($F91,$H91,$J91,$L91,$N91,'Generel ledelse_Adm.'!$G124) -> 0.43023131 | H91: 1.000038262 | I91: =H91/SUM($F91,$H91,$J91,$L91,$N91,'Generel ledelse_Adm.'!$G124) -> 0.43023131 | J91: 0.08205889959 | K91: =J91/SUM($F91,$H91,$J91,$L91,$N91,'Generel ledelse_Adm.'!$G124) -> 0.03530295712 | L91: 0 | M91: =L91/SUM($F91,$H91,$J91,$L91,$N91,'Generel ledelse_Adm.'!$G124) -> 0 | N91: 0 | O91: =N91/SUM($F91,$H91,$J91,$L91,$N91,'Generel ledelse_Adm.'!$G124) -> 0
C92: 916 | D92: Retten i Holbæk | E92: Øvrige | F92: 0.1261490042 | G92: =F92/SUM($F92,$H92,$J92,$L92,$N92,'Generel ledelse_Adm.'!$G125) -> 0.04549369221 | H92: 0.001300063224 | I92: =H92/SUM($F92,$H92,$J92,$L92,$N92,'Generel ledelse_Adm.'!$G125) -> 0.000468847745 | J92: 0 | K92: =J92/SUM($F92,$H92,$J92,$L92,$N92,'Generel ledelse_Adm.'!$G125) -> 0 | L92: 0.006145209346 | M92: =L92/SUM($F92,$H92,$J92,$L92,$N92,'Generel ledelse_Adm.'!$G125) -> 0.002216174946 | N92: 0.1964917335 | O92: =N92/SUM($F92,$H92,$J92,$L92,$N92,'Generel ledelse_Adm.'!$G125) -> 0.07086171235
C93: 917 | D93: Retten i Roskilde | E93: Jurister | F93: 8.535830699 | G93: =F93/SUM($F93,$H93,$J93,$L93,$N93,'Generel ledelse_Adm.'!$G128) -> 0.4376870174 | H93: 6.53168354 | I93: =H93/SUM($F93,$H93,$J93,$L93,$N93,'Generel ledelse_Adm.'!$G128) -> 0.3349214843 | J93: 1.585703891 | K93: =J93/SUM($F93,$H93,$J93,$L93,$N93,'Generel ledelse_Adm.'!$G128) -> 0.08130925168 | L93: 1.665625357 | M93: =L93/SUM($F93,$H93,$J93,$L93,$N93,'Generel ledelse_Adm.'!$G128) -> 0.08540734 | N93: 0.01013000165 | O93: =N93/SUM($F93,$H93,$J93,$L93,$N93,'Generel ledelse_Adm.'!$G128) -> 0.0005194304296
C94: 917 | D94: Retten i Roskilde | E94: Kontor | F94: 10.38797209 | G94: =F94/SUM($F94,$H94,$J94,$L94,$N94,'Generel ledelse_Adm.'!$G129) -> 0.2739201506 | H94: 6.165233016 | I94: =H94/SUM($F94,$H94,$J94,$L94,$N94,'Generel ledelse_Adm.'!$G129) -> 0.1625708601 | J94: 6.53826602 | K94: =J94/SUM($F94,$H94,$J94,$L94,$N94,'Generel ledelse_Adm.'!$G129) -> 0.1724073571 | L94: 6.751243914 | M94: =L94/SUM($F94,$H94,$J94,$L94,$N94,'Generel ledelse_Adm.'!$G129) -> 0.1780233654 | N94: 0.8471648201 | O94: =N94/SUM($F94,$H94,$J94,$L94,$N94,'Generel ledelse_Adm.'!$G129) -> 0.02233886588
C95: 917 | D95: Retten i Roskilde | E95: Elev | F95: 0.6706520194 | G95: =F95/SUM($F95,$H95,$J95,$L95,$N95,'Generel ledelse_Adm.'!$G130) -> 0.2880857143 | H95: 0.3480965331 | I95: =H95/SUM($F95,$H95,$J95,$L95,$N95,'Generel ledelse_Adm.'!$G130) -> 0.1495285714 | J95: 0.5036375177 | K95: =J95/SUM($F95,$H95,$J95,$L95,$N95,'Generel ledelse_Adm.'!$G130) -> 0.2163428571 | L95: 0.8055739297 | M95: =L95/SUM($F95,$H95,$J95,$L95,$N95,'Generel ledelse_Adm.'!$G130) -> 0.3460428571 | N95: 0 | O95: =N95/SUM($F95,$H95,$J95,$L95,$N95,'Generel ledelse_Adm.'!$G130) -> 0
C96: 917 | D96: Retten i Roskilde | E96: Fleks | F96: 0 | G96: =F96/SUM($F96,$H96,$J96,$L96,$N96,'Generel ledelse_Adm.'!$G131) -> 0 | H96: 0 | I96: =H96/SUM($F96,$H96,$J96,$L96,$N96,'Generel ledelse_Adm.'!$G131) -> 0 | J96: 0 | K96: =J96/SUM($F96,$H96,$J96,$L96,$N96,'Generel ledelse_Adm.'!$G131) -> 0 | L96: 0 | M96: =L96/SUM($F96,$H96,$J96,$L96,$N96,'Generel ledelse_Adm.'!$G131) -> 0 | N96: 0 | O96: =N96/SUM($F96,$H96,$J96,$L96,$N96,'Generel ledelse_Adm.'!$G131) -> 0
C97: 917 | D97: Retten i Roskilde | E97: Øvrige | F97: 0.1678491114 | G97: =F97/SUM($F97,$H97,$J97,$L97,$N97,'Generel ledelse_Adm.'!$G132) -> 0.1116441147 | H97: 0.1951685396 | I97: =H97/SUM($F97,$H97,$J97,$L97,$N97,'Generel ledelse_Adm.'!$G132) -> 0.129815515 | J97: 0 | K97: =J97/SUM($F97,$H97,$J97,$L97,$N97,'Generel ledelse_Adm.'!$G132) -> 0 | L97: 0 | M97: =L97/SUM($F97,$H97,$J97,$L97,$N97,'Generel ledelse_Adm.'!$G132) -> 0 | N97: 0.008484831164 | O97: =N97/SUM($F97,$H97,$J97,$L97,$N97,'Generel ledelse_Adm.'!$G132) -> 0.005643648965
C98: 918 | D98: Retten i Hillerød | E98: Jurister | F98: 4.722386086 | G98: =F98/SUM($F98,$H98,$J98,$L98,$N98,'Generel ledelse_Adm.'!$G135) -> 0.3665652209 | H98: 5.025068006 | I98: =H98/SUM($F98,$H98,$J98,$L98,$N98,'Generel ledelse_Adm.'!$G135) -> 0.3900602641 | J98: 1.003926588 | K98: =J98/SUM($F98,$H98,$J98,$L98,$N98,'Generel ledelse_Adm.'!$G135) -> 0.07792767573 | L98: 0.9643412714 | M98: =L98/SUM($F98,$H98,$J98,$L98,$N98,'Generel ledelse_Adm.'!$G135) -> 0.07485494934 | N98: 0.0121655309 | O98: =N98/SUM($F98,$H98,$J98,$L98,$N98,'Generel ledelse_Adm.'!$G135) -> 0.0009443235776
C99: 918 | D99: Retten i Hillerød | E99: Kontor | F99: 4.420770952 | G99: =F99/SUM($F99,$H99,$J99,$L99,$N99,'Generel ledelse_Adm.'!$G136) -> 0.2114568803 | H99: 4.81632339 | I99: =H99/SUM($F99,$H99,$J99,$L99,$N99,'Generel ledelse_Adm.'!$G136) -> 0.2303771739 | J99: 3.236213236 | K99: =J99/SUM($F99,$H99,$J99,$L99,$N99,'Generel ledelse_Adm.'!$G136) -> 0.1547964285 | L99: 4.74651898 | M99: =L99/SUM($F99,$H99,$J99,$L99,$N99,'Generel ledelse_Adm.'!$G136) -> 0.2270382489 | N99: 0.653620353 | O99: =N99/SUM($F99,$H99,$J99,$L99,$N99,'Generel ledelse_Adm.'!$G136) -> 0.03126434783
C100: 918 | D100: Retten i Hillerød | E100: Elev | F100: 0.8222349229 | G100: =F100/SUM($F100,$H100,$J100,$L100,$N100,'Generel ledelse_Adm.'!$G137) -> 0.2764877445 | H100: 0.2656202107 | I100: =H100/SUM($F100,$H100,$J100,$L100,$N100,'Generel ledelse_Adm.'!$G137) -> 0.08931843066 | J100: 0.9359266419 | K100: =J100/SUM($F100,$H100,$J100,$L100,$N100,'Generel ledelse_Adm.'!$G137) -> 0.3147181407 | L100: 0.7273649207 | M100: =L100/SUM($F100,$H100,$J100,$L100,$N100,'Generel ledelse_Adm.'!$G137) -> 0.244586408 | N100: 0 | O100: =N100/SUM($F100,$H100,$J100,$L100,$N100,'Generel ledelse_Adm.'!$G137) -> 0
C101: 918 | D101: Retten i Hillerød | E101: Fleks | F101: 0.4517894273 | G101: =F101/SUM($F101,$H101,$J101,$L101,$N101,'Generel ledelse_Adm.'!$G138) -> 0.1934834093 | H101: 0.007463586185 | I101: =H101/SUM($F101,$H101,$J101,$L101,$N101,'Generel ledelse_Adm.'!$G138) -> 0.003196356563 | J101: 1.402831608 | K101: =J101/SUM($F101,$H101,$J101,$L101,$N101,'Generel ledelse_Adm.'!$G138) -> 0.6007768793 | L101: 0.2537432557 | M101: =L101/SUM($F101,$H101,$J101,$L101,$N101,'Generel ledelse_Adm.'!$G138) -> 0.1086681255 | N101: 0.2192014096 | O101: =N101/SUM($F101,$H101,$J101,$L101,$N101,'Generel ledelse_Adm.'!$G138) -> 0.09387522923
C102: 918 | D102: Retten i Hillerød | E102: Øvrige | F102: 1.511740916 | G102: =F102/SUM($F102,$H102,$J102,$L102,$N102,'Generel ledelse_Adm.'!$G139) -> 0.3058371424 | H102: 0.0587252849 | I102: =H102/SUM($F102,$H102,$J102,$L102,$N102,'Generel ledelse_Adm.'!$G139) -> 0.01188058954 | J102: 0.05041465635 | K102: =J102/SUM($F102,$H102,$J102,$L102,$N102,'Generel ledelse_Adm.'!$G139) -> 0.01019928367 | L102: 0.03576339318 | M102: =L102/SUM($F102,$H102,$J102,$L102,$N102,'Generel ledelse_Adm.'!$G139) -> 0.007235217262 | N102: 0.3769597173 | O102: =N102/SUM($F102,$H102,$J102,$L102,$N102,'Generel ledelse_Adm.'!$G139) -> 0.07626193185
C103: 919 | D103: Retten i Helsingør | E103: Jurister | F103: 3.976820299 | G103: =F103/SUM($F103,$H103,$J103,$L103,$N103,'Generel ledelse_Adm.'!$G142) -> 0.3527486293 | H103: 4.867788545 | I103: =H103/SUM($F103,$H103,$J103,$L103,$N103,'Generel ledelse_Adm.'!$G142) -> 0.4317785586 | J103: 0.8435541926 | K103: =J103/SUM($F103,$H103,$J103,$L103,$N103,'Generel ledelse_Adm.'!$G142) -> 0.0748242472 | L103: 1.058075252 | M103: =L103/SUM($F103,$H103,$J103,$L103,$N103,'Generel ledelse_Adm.'!$G142) -> 0.093852517 | N103: 0.009686668281 | O103: =N103/SUM($F103,$H103,$J103,$L103,$N103,'Generel ledelse_Adm.'!$G142) -> 0.0008592188485
C104: 919 | D104: Retten i Helsingør | E104: Kontor | F104: 4.373224938 | G104: =F104/SUM($F104,$H104,$J104,$L104,$N104,'Generel ledelse_Adm.'!$G143) -> 0.195761928 | H104: 3.269433732 | I104: =H104/SUM($F104,$H104,$J104,$L104,$N104,'Generel ledelse_Adm.'!$G143) -> 0.1463520994 | J104: 6.135950656 | K104: =J104/SUM($F104,$H104,$J104,$L104,$N104,'Generel ledelse_Adm.'!$G143) -> 0.2746681334 | L104: 5.649855111 | M104: =L104/SUM($F104,$H104,$J104,$L104,$N104,'Generel ledelse_Adm.'!$G143) -> 0.2529086761 | N104: 0.3251030154 | O104: =N104/SUM($F104,$H104,$J104,$L104,$N104,'Generel ledelse_Adm.'!$G143) -> 0.01455282863
C105: 919 | D105: Retten i Helsingør | E105: Elev | F105: 0.1234670704 | G105: =F105/SUM($F105,$H105,$J105,$L105,$N105,'Generel ledelse_Adm.'!$G144) -> 0.1139615385 | H105: 0.5226869875 | I105: =H105/SUM($F105,$H105,$J105,$L105,$N105,'Generel ledelse_Adm.'!$G144) -> 0.4824461538 | J105: 0.3327902163 | K105: =J105/SUM($F105,$H105,$J105,$L105,$N105,'Generel ledelse_Adm.'!$G144) -> 0.3071692308 | L105: 0 | M105: =L105/SUM($F105,$H105,$J105,$L105,$N105,'Generel ledelse_Adm.'!$G144) -> 0 | N105: 0.003291899615 | O105: =N105/SUM($F105,$H105,$J105,$L105,$N105,'Generel ledelse_Adm.'!$G144) -> 0.003038461538
C106: 919 | D106: Retten i Helsingør | E106: Fleks | F106: 0.358226483 | G106: =F106/SUM($F106,$H106,$J106,$L106,$N106,'Generel ledelse_Adm.'!$G145) -> 0.1692064378 | H106: 0.06735593078 | I106: =H106/SUM($F106,$H106,$J106,$L106,$N106,'Generel ledelse_Adm.'!$G145) -> 0.03181522767 | J106: 0.160745806 | K106: =J106/SUM($F106,$H106,$J106,$L106,$N106,'Generel ledelse_Adm.'!$G145) -> 0.07592745517 | L106: 0.1079944663 | M106: =L106/SUM($F106,$H106,$J106,$L106,$N106,'Generel ledelse_Adm.'!$G145) -> 0.05101063104 | N106: 0.2547801564 | O106: =N106/SUM($F106,$H106,$J106,$L106,$N106,'Generel ledelse_Adm.'!$G145) -> 0.1203440972
C107: 919 | D107: Retten i Helsingør | E107: Øvrige | F107: 0.4689695308 | G107: =F107/SUM($F107,$H107,$J107,$L107,$N107,'Generel ledelse_Adm.'!$G146) -> 0.1436792437 | H107: 0.202058415 | I107: =H107/SUM($F107,$H107,$J107,$L107,$N107,'Generel ledelse_Adm.'!$G146) -> 0.06190508835 | J107: 0 | K107: =J107/SUM($F107,$H107,$J107,$L107,$N107,'Generel ledelse_Adm.'!$G146) -> 0 | L107: 0 | M107: =L107/SUM($F107,$H107,$J107,$L107,$N107,'Generel ledelse_Adm.'!$G146) -> 0 | N107: 0.1179184236 | O107: =N107/SUM($F107,$H107,$J107,$L107,$N107,'Generel ledelse_Adm.'!$G146) -> 0.03612693108
C108: 920 | D108: Retten i Lyngby | E108: Jurister | F108: 4.195487807 | G108: =F108/SUM($F108,$H108,$J108,$L108,$N108,'Generel ledelse_Adm.'!$G149) -> 0.3039968877 | H108: 6.626164707 | I108: =H108/SUM($F108,$H108,$J108,$L108,$N108,'Generel ledelse_Adm.'!$G149) -> 0.480119009 | J108: 0.9479838368 | K108: =J108/SUM($F108,$H108,$J108,$L108,$N108,'Generel ledelse_Adm.'!$G149) -> 0.0686890653 | L108: 1.2535315 | M108: =L108/SUM($F108,$H108,$J108,$L108,$N108,'Generel ledelse_Adm.'!$G149) -> 0.09082845479 | N108: 0.008049848055 | O108: =N108/SUM($F108,$H108,$J108,$L108,$N108,'Generel ledelse_Adm.'!$G149) -> 0.0005832763358
C109: 920 | D109: Retten i Lyngby | E109: Kontor | F109: 5.345823256 | G109: =F109/SUM($F109,$H109,$J109,$L109,$N109,'Generel ledelse_Adm.'!$G150) -> 0.2031728224 | H109: 6.465637178 | I109: =H109/SUM($F109,$H109,$J109,$L109,$N109,'Generel ledelse_Adm.'!$G150) -> 0.245732358 | J109: 3.532278872 | K109: =J109/SUM($F109,$H109,$J109,$L109,$N109,'Generel ledelse_Adm.'!$G150) -> 0.1342474365 | L109: 5.781879517 | M109: =L109/SUM($F109,$H109,$J109,$L109,$N109,'Generel ledelse_Adm.'!$G150) -> 0.2197455329 | N109: 1.850164771 | O109: =N109/SUM($F109,$H109,$J109,$L109,$N109,'Generel ledelse_Adm.'!$G150) -> 0.07031717671
C110: 920 | D110: Retten i Lyngby | E110: Elev | F110: 0.05494891275 | G110: =F110/SUM($F110,$H110,$J110,$L110,$N110,'Generel ledelse_Adm.'!$G151) -> 0.02799954108 | H110: 0.06795277293 | I110: =H110/SUM($F110,$H110,$J110,$L110,$N110,'Generel ledelse_Adm.'!$G151) -> 0.03462573437 | J110: 0.05093899618 | K110: =J110/SUM($F110,$H110,$J110,$L110,$N110,'Generel ledelse_Adm.'!$G151) -> 0.02595626455 | L110: 0.2132358634 | M110: =L110/SUM($F110,$H110,$J110,$L110,$N110,'Generel ledelse_Adm.'!$G151) -> 0.1086555861 | N110: 0.0464108221 | O110: =N110/SUM($F110,$H110,$J110,$L110,$N110,'Generel ledelse_Adm.'!$G151) -> 0.02364890686
C111: 920 | D111: Retten i Lyngby | E111: Fleks | F111: 0 | G111: =F111/SUM($F111,$H111,$J111,$L111,$N111,'Generel ledelse_Adm.'!$G152) -> 0 | H111: 0.04025546442 | I111: =H111/SUM($F111,$H111,$J111,$L111,$N111,'Generel ledelse_Adm.'!$G152) -> 0.02940737709 | J111: 0.7117301407 | K111: =J111/SUM($F111,$H111,$J111,$L111,$N111,'Generel ledelse_Adm.'!$G152) -> 0.5199323106 | L111: 0.005708308101 | M111: =L111/SUM($F111,$H111,$J111,$L111,$N111,'Generel ledelse_Adm.'!$G152) -> 0.004170026884 | N111: 0.1896723039 | O111: =N111/SUM($F111,$H111,$J111,$L111,$N111,'Generel ledelse_Adm.'!$G152) -> 0.1385592005
C112: 920 | D112: Retten i Lyngby | E112: Øvrige | F112: 0 | G112: =F112/SUM($F112,$H112,$J112,$L112,$N112,'Generel ledelse_Adm.'!$G153) -> 0 | H112: 0.002100086398 | I112: =H112/SUM($F112,$H112,$J112,$L112,$N112,'Generel ledelse_Adm.'!$G153) -> 0.0006189522448 | J112: 0.02994697466 | K112: =J112/SUM($F112,$H112,$J112,$L112,$N112,'Generel ledelse_Adm.'!$G153) -> 0.008826183156 | L112: 0.2123397384 | M112: =L112/SUM($F112,$H112,$J112,$L112,$N112,'Generel ledelse_Adm.'!$G153) -> 0.06258226228 | N112: 0.1516599062 | O112: =N112/SUM($F112,$H112,$J112,$L112,$N112,'Generel ledelse_Adm.'!$G153) -> 0.04469827504
C113: 921 | D113: Retten i Glostrup | E113: Jurister | F113: 14.14217975 | G113: =F113/SUM($F113,$H113,$J113,$L113,$N113,'Generel ledelse_Adm.'!$G156) -> 0.421452797 | H113: 13.39361023 | I113: =H113/SUM($F113,$H113,$J113,$L113,$N113,'Generel ledelse_Adm.'!$G156) -> 0.3991445868 | J113: 2.464720801 | K113: =J113/SUM($F113,$H113,$J113,$L113,$N113,'Generel ledelse_Adm.'!$G156) -> 0.07345144057 | L113: 1.150663382 | M113: =L113/SUM($F113,$H113,$J113,$L113,$N113,'Generel ledelse_Adm.'!$G156) -> 0.03429105762 | N113: 0.02365330991 | O113: =N113/SUM($F113,$H113,$J113,$L113,$N113,'Generel ledelse_Adm.'!$G156) -> 0.0007048951293
C114: 921 | D114: Retten i Glostrup | E114: Kontor | F114: 18.01662547 | G114: =F114/SUM($F114,$H114,$J114,$L114,$N114,'Generel ledelse_Adm.'!$G157) -> 0.315215681 | H114: 10.78770794 | I114: =H114/SUM($F114,$H114,$J114,$L114,$N114,'Generel ledelse_Adm.'!$G157) -> 0.1887398232 | J114: 14.93036728 | K114: =J114/SUM($F114,$H114,$J114,$L114,$N114,'Generel ledelse_Adm.'!$G157) -> 0.2612190556 | L114: 5.686242051 | M114: =L114/SUM($F114,$H114,$J114,$L114,$N114,'Generel ledelse_Adm.'!$G157) -> 0.09948548156 | N114: 0.6464458616 | O114: =N114/SUM($F114,$H114,$J114,$L114,$N114,'Generel ledelse_Adm.'!$G157) -> 0.01131010204
C115: 921 | D115: Retten i Glostrup | E115: Elev | F115: 0.6120937989 | G115: =F115/SUM($F115,$H115,$J115,$L115,$N115,'Generel ledelse_Adm.'!$G158) -> 0.1709020407 | H115: 0.7737112331 | I115: =H115/SUM($F115,$H115,$J115,$L115,$N115,'Generel ledelse_Adm.'!$G158) -> 0.2160270679 | J115: 0.9223803426 | K115: =J115/SUM($F115,$H115,$J115,$L115,$N115,'Generel ledelse_Adm.'!$G158) -> 0.2575368075 | L115: 0.7774451241 | M115: =L115/SUM($F115,$H115,$J115,$L115,$N115,'Generel ledelse_Adm.'!$G158) -> 0.2170696036 | N115: 0.004603355919 | O115: =N115/SUM($F115,$H115,$J115,$L115,$N115,'Generel ledelse_Adm.'!$G158) -> 0.001285297976
C116: 921 | D116: Retten i Glostrup | E116: Fleks | F116: 0.919999409 | G116: =F116/SUM($F116,$H116,$J116,$L116,$N116,'Generel ledelse_Adm.'!$G159) -> 0.2435987526 | H116: 0 | I116: =H116/SUM($F116,$H116,$J116,$L116,$N116,'Generel ledelse_Adm.'!$G159) -> 0 | J116: 1.568326252 | K116: =J116/SUM($F116,$H116,$J116,$L116,$N116,'Generel ledelse_Adm.'!$G159) -> 0.4152636566 | L116: 0 | M116: =L116/SUM($F116,$H116,$J116,$L116,$N116,'Generel ledelse_Adm.'!$G159) -> 0 | N116: 0.08892214895 | O116: =N116/SUM($F116,$H116,$J116,$L116,$N116,'Generel ledelse_Adm.'!$G159) -> 0.02354493313
C117: 921 | D117: Retten i Glostrup | E117: Øvrige | F117: 0.6779265994 | G117: =F117/SUM($F117,$H117,$J117,$L117,$N117,'Generel ledelse_Adm.'!$G160) -> 0.1044172363 | H117: 0.1965810424 | I117: =H117/SUM($F117,$H117,$J117,$L117,$N117,'Generel ledelse_Adm.'!$G160) -> 0.0302782767 | J117: 0.4173179149 | K117: =J117/SUM($F117,$H117,$J117,$L117,$N117,'Generel ledelse_Adm.'!$G160) -> 0.06427714059 | L117: 0.002344381849 | M117: =L117/SUM($F117,$H117,$J117,$L117,$N117,'Generel ledelse_Adm.'!$G160) -> 0.0003610920028 | N117: 0.1492097184 | O117: =N117/SUM($F117,$H117,$J117,$L117,$N117,'Generel ledelse_Adm.'!$G160) -> 0.02298193704
C118: 922 | D118: Retten på Frederiksberg | E118: Jurister | F118: 12.67512362 | G118: =F118/SUM($F118,$H118,$J118,$L118,$N118,'Generel ledelse_Adm.'!$G163) -> 0.5291433394 | H118: 8.391866508 | I118: =H118/SUM($F118,$H118,$J118,$L118,$N118,'Generel ledelse_Adm.'!$G163) -> 0.3503319099 | J118: 0.972263542 | K118: =J118/SUM($F118,$H118,$J118,$L118,$N118,'Generel ledelse_Adm.'!$G163) -> 0.04058869899 | L118: 0.9188036772 | M118: =L118/SUM($F118,$H118,$J118,$L118,$N118,'Generel ledelse_Adm.'!$G163) -> 0.0383569313 | N118: 0.07073196721 | O118: =N118/SUM($F118,$H118,$J118,$L118,$N118,'Generel ledelse_Adm.'!$G163) -> 0.002952819273
C119: 922 | D119: Retten på Frederiksberg | E119: Kontor | F119: 12.86837869 | G119: =F119/SUM($F119,$H119,$J119,$L119,$N119,'Generel ledelse_Adm.'!$G164) -> 0.2803052599 | H119: 8.422185645 | I119: =H119/SUM($F119,$H119,$J119,$L119,$N119,'Generel ledelse_Adm.'!$G164) -> 0.1834561286 | J119: 9.378004742 | K119: =J119/SUM($F119,$H119,$J119,$L119,$N119,'Generel ledelse_Adm.'!$G164) -> 0.2042762433 | L119: 8.192508054 | M119: =L119/SUM($F119,$H119,$J119,$L119,$N119,'Generel ledelse_Adm.'!$G164) -> 0.17845318 | N119: 0.3834029986 | O119: =N119/SUM($F119,$H119,$J119,$L119,$N119,'Generel ledelse_Adm.'!$G164) -> 0.00835146989
C120: 922 | D120: Retten på Frederiksberg | E120: Elev | F120: 0.5082001358 | G120: =F120/SUM($F120,$H120,$J120,$L120,$N120,'Generel ledelse_Adm.'!$G165) -> 0.160918747 | H120: 0.2907169691 | I120: =H120/SUM($F120,$H120,$J120,$L120,$N120,'Generel ledelse_Adm.'!$G165) -> 0.09205391167 | J120: 1.021280257 | K120: =J120/SUM($F120,$H120,$J120,$L120,$N120,'Generel ledelse_Adm.'!$G165) -> 0.3233827143 | L120: 0.5786446626 | M120: =L120/SUM($F120,$H120,$J120,$L120,$N120,'Generel ledelse_Adm.'!$G165) -> 0.1832246147 | N120: 0.004781605563 | O120: =N120/SUM($F120,$H120,$J120,$L120,$N120,'Generel ledelse_Adm.'!$G165) -> 0.001514068812
C121: 922 | D121: Retten på Frederiksberg | E121: Fleks | F121: 1.174947962 | G121: =F121/SUM($F121,$H121,$J121,$L121,$N121,'Generel ledelse_Adm.'!$G166) -> 0.2180072296 | H121: 1.403339204 | I121: =H121/SUM($F121,$H121,$J121,$L121,$N121,'Generel ledelse_Adm.'!$G166) -> 0.2603843762 | J121: 0.8726334846 | K121: =J121/SUM($F121,$H121,$J121,$L121,$N121,'Generel ledelse_Adm.'!$G166) -> 0.1619139014 | L121: 0.03277913255 | M121: =L121/SUM($F121,$H121,$J121,$L121,$N121,'Generel ledelse_Adm.'!$G166) -> 0.006082046277 | N121: 0.774243263 | O121: =N121/SUM($F121,$H121,$J121,$L121,$N121,'Generel ledelse_Adm.'!$G166) -> 0.1436579613
C122: 922 | D122: Retten på Frederiksberg | E122: Øvrige | F122: 2.277386748 | G122: =F122/SUM($F122,$H122,$J122,$L122,$N122,'Generel ledelse_Adm.'!$G167) -> 0.2567779499 | H122: 0.003264083587 | I122: =H122/SUM($F122,$H122,$J122,$L122,$N122,'Generel ledelse_Adm.'!$G167) -> 0.0003680291424 | J122: 0.05895646063 | K122: =J122/SUM($F122,$H122,$J122,$L122,$N122,'Generel ledelse_Adm.'!$G167) -> 0.006647408092 | L122: 0.7859781798 | M122: =L122/SUM($F122,$H122,$J122,$L122,$N122,'Generel ledelse_Adm.'!$G167) -> 0.08861993506 | N122: 0 | O122: =N122/SUM($F122,$H122,$J122,$L122,$N122,'Generel ledelse_Adm.'!$G167) -> 0
C123: 923 | D123: Københavns Byret | E123: Jurister | F123: 29.16450306 | G123: =F123/SUM($F123,$H123,$J123,$L123,$N123,'Generel ledelse_Adm.'!$G170) -> 0.5216117502 | H123: 19.3682916 | I123: =H123/SUM($F123,$H123,$J123,$L123,$N123,'Generel ledelse_Adm.'!$G170) -> 0.3464049588 | J123: 3.050561971 | K123: =J123/SUM($F123,$H123,$J123,$L123,$N123,'Generel ledelse_Adm.'!$G170) -> 0.05455978336 | L123: 0.9589392283 | M123: =L123/SUM($F123,$H123,$J123,$L123,$N123,'Generel ledelse_Adm.'!$G170) -> 0.01715077978 | N123: 0.008278968891 | O123: =N123/SUM($F123,$H123,$J123,$L123,$N123,'Generel ledelse_Adm.'!$G170) -> 0.0001480706681
C124: 923 | D124: Københavns Byret | E124: Kontor | F124: 47.01025372 | G124: =F124/SUM($F124,$H124,$J124,$L124,$N124,'Generel ledelse_Adm.'!$G171) -> 0.4223095998 | H124: 21.92621976 | I124: =H124/SUM($F124,$H124,$J124,$L124,$N124,'Generel ledelse_Adm.'!$G171) -> 0.1969709235 | J124: 14.20215378 | K124: =J124/SUM($F124,$H124,$J124,$L124,$N124,'Generel ledelse_Adm.'!$G171) -> 0.1275829294 | L124: 7.598309633 | M124: =L124/SUM($F124,$H124,$J124,$L124,$N124,'Generel ledelse_Adm.'!$G171) -> 0.06825828084 | N124: 5.011252254 | O124: =N124/SUM($F124,$H124,$J124,$L124,$N124,'Generel ledelse_Adm.'!$G171) -> 0.04501783689
C125: 923 | D125: Københavns Byret | E125: Elev | F125: 3.051285632 | G125: =F125/SUM($F125,$H125,$J125,$L125,$N125,'Generel ledelse_Adm.'!$G172) -> 0.5572219415 | H125: 0.7143534312 | I125: =H125/SUM($F125,$H125,$J125,$L125,$N125,'Generel ledelse_Adm.'!$G172) -> 0.1304543245 | J125: 0.6437619556 | K125: =J125/SUM($F125,$H125,$J125,$L125,$N125,'Generel ledelse_Adm.'!$G172) -> 0.1175629981 | L125: 0.7087065097 | M125: =L125/SUM($F125,$H125,$J125,$L125,$N125,'Generel ledelse_Adm.'!$G172) -> 0.1294230908 | N125: 0.0907457013 | O125: =N125/SUM($F125,$H125,$J125,$L125,$N125,'Generel ledelse_Adm.'!$G172) -> 0.01657186575
C126: 923 | D126: Københavns Byret | E126: Fleks | F126: 0 | G126: =F126/SUM($F126,$H126,$J126,$L126,$N126,'Generel ledelse_Adm.'!$G173) -> 0 | H126: 0.3111090766 | I126: =H126/SUM($F126,$H126,$J126,$L126,$N126,'Generel ledelse_Adm.'!$G173) -> 0.4341675913 | J126: 0 | K126: =J126/SUM($F126,$H126,$J126,$L126,$N126,'Generel ledelse_Adm.'!$G173) -> 0 | L126: 0 | M126: =L126/SUM($F126,$H126,$J126,$L126,$N126,'Generel ledelse_Adm.'!$G173) -> 0 | N126: 0 | O126: =N126/SUM($F126,$H126,$J126,$L126,$N126,'Generel ledelse_Adm.'!$G173) -> 0
C127: 923 | D127: Københavns Byret | E127: Øvrige | F127: 4.441373001 | G127: =F127/SUM($F127,$H127,$J127,$L127,$N127,'Generel ledelse_Adm.'!$G174) -> 0.3632781278 | H127: 1.243591974 | I127: =H127/SUM($F127,$H127,$J127,$L127,$N127,'Generel ledelse_Adm.'!$G174) -> 0.101718492 | J127: 0 | K127: =J127/SUM($F127,$H127,$J127,$L127,$N127,'Generel ledelse_Adm.'!$G174) -> 0 | L127: 0 | M127: =L127/SUM($F127,$H127,$J127,$L127,$N127,'Generel ledelse_Adm.'!$G174) -> 0 | N127: 0.007105570352 | O127: =N127/SUM($F127,$H127,$J127,$L127,$N127,'Generel ledelse_Adm.'!$G174) -> 0.0005811937646
C129: 1) Procenten er beregnet i forhold til det samlede årsværksforbrug ved retten inkl. generel ledelse og administration, hvorfor der ikke kan summes op til 100 % for den enkelte ret.
C130: 2) Ansatte under socialt kapitel (fleksjobbere mv.) uden tidsfordeling indgår ikke i denne opgørelse.
C131: 3) Det opgjorte årsværksforbrug er inkl. de korrektioner, der foretages som led i produktivitetsberegningen.

Sheet Dataark til 901-924 (hidden)
B11: Samlet produktivitet, retten | D11: Samlet produktivitet, jurister | F11: Samlet produktivitet, kontor | H11: ÅRVK ledelse og adm. | J11: Sagstider domsmandssager | L11: Sagstider hfh. alm. Civil | N11: Sagstid alm. fogedsag | P11: Målopfyldelse vold | R11: Målopfyldelse voldtægt | T11: Sygefravær | V11: Personaleomsætning | X11: Årsværk retten | Z11: Årsværk jurist | AB11: Årsværk kontor | AD11: Samlet lønsum
A12: Ret | B12: 2013 | C12: 2014 | D12: 2013 | E12: 2014 | F12: 2013 | G12: 2014 | H12: 2013 | I12: 2014 | J12: 2013 | K12: 2014 | L12: 2013 | M12: 2014 | N12: 2013 | O12: 2014 | P12: 2013 | Q12: 2014 | R12: 2013 | S12: 2014 | T12: 2013 | U12: 2014 | V12: 2013 | W12: 2014 | X12: 2013 | Y12: 2014 | Z12: 2013 | AA12: 2014 | AB12: 2013 | AC12: 2014 | AD12: 2013 | AE12: 2014
A13: Retten i Hjørring | B13: 102.9146793 | C13: 103.5231212 | D13: 101.4346809 | E13: 100.759754 | F13: 103.2149744 | G13: 103.3974315 | H13: 0.1868261939 | I13: 0.1665256771 | J13: 96 | K13: 95 | L13: 631.7745665 | M13: 525.5742574 | N13: 49.86269469 | O13: 49.91041129 | P13: 64 | Q13: 56.25 | R13: 75 | S13: 33.33333333 | T13: 5.7 | U13: 8.9 | V13: 12.7 | W13: 5.7 | X13: 53.476 | Y13: 50.05401 | Z13: 14.51677 | AA13: 13.73052 | AB13: 29.3254 | AC13: 28.51714 | AD13: 25.23077424 | AE13: 23.90913679 | AF13: Retten i Hjørring
A14: Retten i Aalborg | B14: 98.62855147 | C14: 96.6556053 | D14: 98.45801217 | E14: 89.37239006 | F14: 98.27397591 | G14: 106.1063077 | H14: 0.1339181623 | I14: 0.1197207669 | J14: 106 | K14: 114 | L14: 593.4757282 | M14: 527.4122807 | N14: 41.55710276 | O14: 43.94413408 | P14: 33.89830508 | Q14: 54.28571429 | R14: 60 | S14: 100 | T14: 5.1 | U14: 7.5 | V14: 12 | W14: 14.9 | X14: 75.60557 | Y14: 74.76297 | Z14: 20.77576 | AA14: 23.25516 | AB14: 43.97071 | AC14: 40.42406 | AD14: 36.32284163 | AE14: 36.63402749 | AF14: Retten i Aalborg
A15: Retten i Randers | B15: 97.0241151 | C15: 103.339095 | D15: 91.55018696 | E15: 96.00976208 | F15: 105.3368061 | G15: 117.9593277 | H15: 0.1980503732 | I15: 0.2099300769 | J15: 151 | K15: 124 | L15: 622.7865854 | M15: 555.5109489 | N15: 47.72560892 | O15: 58.37249399 | P15: 40 | Q15: 47.72727273 | R15: 0 | S15: 66.66666667 | T15: 6.9 | U15: 8.2 | V15: 10.8 | W15: 16.8 | X15: 51.35568 | Y15: 51.06822 | Z15: 14.54448 | AA15: 14.54934 | AB15: 28.09834 | AC15: 26.15055 | AD15: 26.74664964 | AE15: 25.62575263 | AF15: Retten i Randers
A16: Retten i Århus | B16: 98.14882931 | C16: 96.18247078 | D16: 94.28098483 | E16: 89.7982108 | F16: 104.1593869 | G16: 109.6431052 | H16: 0.1656399121 | I16: 0.1516882453 | J16: 140 | K16: 139 | L16: 494.8684211 | M16: 483.0638298 | N16: 56.95581015 | O16: 59.21347896 | P16: 38.46153846 | Q16: 27.08333333 | R16: 100 | S16: 14.28571429 | T16: 10.8 | U16: 9.6 | V16: 11.6 | W16: 13.7 | X16: 83.99051 | Y16: 81.20104 | Z16: 25.22725 | AA16: 25.26038 | AB16: 45.35235 | AC16: 41.33383 | AD16: 41.02113215 | AE16: 40.6273674 | AF16: Retten i Århus
A17: Retten i Viborg | B17: 97.24417792 | C17: 96.93034019 | D17: 92.31263346 | E17: 86.7549527 | F17: 105.8387295 | G17: 111.2954665 | H17: 0.1831987808 | I17: 0.1776954429 | J17: 108 | K17: 128 | L17: 534.7073171 | M17: 519.2689655 | N17: 47.35630204 | O17: 51.79351254 | P17: 67.74193548 | Q17: 62.16216216 | R17: 0 | S17: 100 | T17: 4.7 | U17: 5.9 | V17: 16.2 | W17: 19.2 | X17: 53.08464 | Y17: 52.03653 | Z17: 15.00269 | AA17: 15.44982 | AB17: 28.03999 | AC17: 26.36467 | AD17: 25.88336059 | AE17: 24.61018693 | AF17: Retten i Viborg
A18: Retten i Holstebro | B18: 103.5572491 | C18: 100.812459 | D18: 103.5300145 | E18: 99.45621923 | F18: 106.9435187 | G18: 105.1031682 | H18: 0.2155162205 | I18: 0.2143408913 | J18: 86 | K18: 84 | L18: 475.9032258 | M18: 413.4242424 | N18: 32.54022491 | O18: 34.27151899 | P18: 72.72727273 | Q18: 71.42857143 | R18: 100 | S18: 50 | T18: 5 | U18: 7.3 | V18: 16.2 | W18: 14.1 | X18: 38.40156 | Y18: 37.12805 | Z18: 9.67165 | AA18: 9.58671 | AB18: 20.53304 | AC18: 20.18777 | AD18: 19.40336905 | AE18: 19.09541128 | AF18: Retten i Holstebro
A19: Retten i Herning | B19: 92.5848018 | C19: 99.65816242 | D19: 82.04356593 | E19: 89.417041 | F19: 104.7436876 | G19: 111.3990738 | H19: 0.1955231872 | I19: 0.1893007858 | J19: 94 | K19: 91 | L19: 433.9708738 | M19: 520.7297297 | N19: 46.84155791 | O19: 46.73239437 | P19: 52.63157895 | Q19: 76.92307692 | R19: 16.66666667 | S19: 66.66666667 | T19: 8.6 | U19: 5.7 | V19: 15.3 | W19: 15.6 | X19: 38.76992 | Y19: 37.47035 | Z19: 11.84085 | AA19: 11.39788 | AB19: 20.75833 | AC19: 20.21608 | AD19: 20.02559767 | AE19: 19.00288448 | AF19: Retten i Herning
A20: Retten i Horsens | B20: 96.30874721 | C20: 89.74637006 | D20: 90.97352822 | E20: 80.99846156 | F20: 103.1020684 | G20: 100.8419553 | H20: 0.1979407442 | I20: 0.1918271636 | J20: 96 | K20: 111 | L20: 418 | M20: 434.1073826 | N20: 49.71742972 | O20: 46.29432687 | P20: 47.05882353 | Q20: 40 | R20: 0 | S20: 50 | T20: 5.3 | U20: 7.7 | V20: 13.3 | W20: 15.7 | X20: 49.88988 | Y20: 48.3814 | Z20: 14.06581 | AA20: 14.3927 | AB20: 25.31688 | AC20: 24.3045 | AD20: 24.53226103 | AE20: 24.09609649 | AF20: Retten i Horsens
A21: Retten i Kolding | B21: 103.4065127 | C21: 102.7438446 | D21: 93.44213967 | E21: 95.50833868 | F21: 112.1976912 | G21: 109.1412959 | H21: 0.1814648532 | I21: 0.1734292531 | J21: 105 | K21: 99 | L21: 510.0465116 | M21: 480.371134 | N21: 46.31372549 | O21: 52.97362322 | P21: 61.2244898 | Q21: 60 | R21: 100 | S21: 75 | T21: 11.7 | U21: 15.9 | V21: 6.6 | W21: 15.3 | X21: 67.53552 | Y21: 66.6538 | Z21: 21.33572 | AA21: 19.78779 | AB21: 37.2161 | AC21: 36.96165 | AD21: 35.21200134 | AE21: 33.98298785 | AF21: Retten i Kolding
A22: Retten i Esbjerg | B22: 99.69839621 | C22: 96.95557776 | D22: 95.03327915 | E22: 90.16354519 | F22: 101.4630039 | G22: 101.1639788 | H22: 0.1544399994 | I22: 0.1449473346 | J22: 143 | K22: 133 | L22: 631.4972067 | M22: 627.1860465 | N22: 58.91485835 | O22: 42.71642026 | P22: 30.86419753 | Q22: 40 | R22: 0 | S22: 0 | T22: 10.3 | U22: 8.5 | V22: 15 | W22: 15.2 | X22: 54.27444 | Y22: 51.83652 | Z22: 14.92874 | AA22: 14.62602 | AB22: 29.74744 | AC22: 27.96305 | AD22: 26.28483427 | AE22: 25.05472688 | AF22: Retten i Esbjerg
A23: Retten i Sønderborg | B23: 103.0055282 | C23: 106.4151909 | D23: 98.84884045 | E23: 103.7144091 | F23: 105.9415153 | G23: 108.6960709 | H23: 0.1968216784 | I23: 0.2000639601 | J23: 77 | K23: 81 | L23: 588.0246914 | M23: 405.7076923 | N23: 52.85101266 | O23: 51.7282204 | P23: 75.67567568 | Q23: 63.82978723 | R23: 100 | S23: - | T23: 7 | U23: 6.2 | V23: 10.2 | W23: 10.3 | X23: 58.41784 | Y23: 55.80884 | Z23: 17.36145 | AA23: 15.55415 | AB23: 33.50583 | AC23: 32.17316 | AD23: 32.07104816 | AE23: 30.87363142 | AF23: Retten i Sønderborg
A24: Retten i Odense | B24: 108.3800934 | C24: 96.5395286 | D24: 106.2807687 | E24: 89.58908157 | F24: 110.9626462 | G24: 104.5850874 | H24: 0.1610274217 | I24: 0.1668205188 | J24: 97 | K24: 92 | L24: 460.0165746 | M24: 410.88 | N24: 50.36748596 | O24: 60.92986425 | P24: 51.11111111 | Q24: 45.71428571 | R24: 40 | S24: 30.76923077 | T24: 7.7 | U24: 9.5 | V24: 8.3 | W24: 7.9 | X24: 77.86296 | Y24: 77.07732 | Z24: 21.81471 | AA24: 23.71285 | AB24: 45.22965 | AC24: 43.9482 | AD24: 38.81514503 | AE24: 38.61886183 | AF24: Retten i Odense
A25: Retten i Svendborg | B25: 98.99112703 | C25: 99.80214422 | D25: 96.48288534 | E25: 95.62400779 | F25: 103.5551398 | G25: 107.9791467 | H25: 0.1662743921 | I25: 0.1705922523 | J25: 105 | K25: 122 | L25: 479.2658228 | M25: 477.09375 | N25: 47.2630719 | O25: 56.18881119 | P25: 56.60377358 | Q25: 51.28205128 | R25: 40 | S25: 0 | T25: 14.2 | U25: 7.4 | V25: 17.7 | W25: 14.5 | X25: 36.96098 | Y25: 36.62017 | Z25: 10.30021 | AA25: 10.27236 | AB25: 21.70681 | AC25: 20.21508 | AD25: 19.70705955 | AE25: 18.51114105 | AF25: Retten i Svendborg
A26: Retten i Nykøbing F. | B26: 101.1958707 | C26: 99.31443827 | D26: 103.2506045 | E26: 101.3997252 | F26: 99.98645671 | G26: 96.93095285 | H26: 0.2136326657 | I26: 0.1807260383 | J26: 94 | K26: 80 | L26: 390.2222222 | M26: 382.2692308 | N26: 51.22872467 | O26: 46.03074305 | P26: 43.83561644 | Q26: 67.30769231 | R26: 100 | S26: 50 | T26: 3.8 | U26: 7.2 | V26: 15.8 | W26: 11.5 | X26: 49.93317 | Y26: 50.32492 | Z26: 13.97805 | AA26: 13.82973 | AB26: 30.55141 | AC26: 30.67865 | AD26: 25.6823684 | AE26: 25.17850572 | AF26: Retten i Nykøbing F.
A27: Retten i Næstved | B27: 106.4522251 | C27: 102.3117616 | D27: 101.2406033 | E27: 95.96222851 | F27: 111.6879755 | G27: 108.2319237 | H27: 0.2110018934 | I27: 0.2055415245 | J27: 132 | K27: 137 | L27: 524.7538462 | M27: 502.7627119 | N27: 59.44236241 | O27: 69.69931074 | P27: 38.0952381 | Q27: 31.81818182 | R27: 50 | S27: 22.22222222 | T27: 9 | U27: 8 | V27: 19.7 | W27: 12.6 | X27: 63.45753 | Y27: 60.64993 | Z27: 18.70124 | AA27: 17.55258 | AB27: 35.80973 | AC27: 34.2524 | AD27: 31.63077126 | AE27: 29.79163161 | AF27: Retten i Næstved
A28: Retten i Holbæk | B28: 97.5198651 | C28: 101.478968 | D28: 98.0654575 | E28: 98.97449175 | F28: 95.65987869 | G28: 102.2496137 | H28: 0.1791150763 | I28: 0.1726009196 | J28: 121 | K28: 92 | L28: 423.1904762 | M28: 406.2105263 | N28: 61.38024691 | O28: 62.59675489 | P28: 66.66666667 | Q28: 60 | R28: 66.66666667 | S28: 33.33333333 | T28: 7.3 | U28: 8.7 | V28: 14.1 | W28: 18.7 | X28: 49.02491 | Y28: 45.54094 | Z28: 12.88079 | AA28: 12.52644 | AB28: 27.5082 | AC28: 25.08951 | AD28: 23.08612638 | AE28: 22.46541318 | AF28: Retten i Holbæk
A29: Retten i Roskilde | B29: 101.069153 | C29: 101.644567 | D29: 93.84592474 | E29: 99.36044334 | F29: 107.666467 | G29: 101.7161825 | H29: 0.1856861136 | I29: 0.1794598483 | J29: 152 | K29: 133 | L29: 631.7375566 | M29: 468.0430108 | N29: 62.14235163 | O29: 56.66790871 | P29: 38.46153846 | Q29: 26.66666667 | R29: - | S29: 0 | T29: 8 | U29: 4.5 | V29: 19.9 | W29: 11.9 | X29: 73.92877 | Y29: 71.54561 | Z29: 22.48327 | AA29: 20.71814 | AB29: 41.59892 | AC29: 43.09007 | AD29: 38.57747683 | AE29: 37.60096141 | AF29: Retten i Roskilde
A30: Retten i Hillerød | B30: 98.37624366 | C30: 92.68948395 | D30: 93.0362009 | E30: 83.08629181 | F30: 111.8642549 | G30: 111.2224862 | H30: 0.2259331167 | I30: 0.1991529722 | J30: 93 | K30: 113 | L30: 457.4690265 | M30: 502.826087 | N30: 49.4952913 | O30: 52.278487 | P30: 56.25 | Q30: 41.37931034 | R30: 50 | S30: 50 | T30: 9.2 | U30: 11.2 | V30: 20.1 | W30: 12.9 | X30: 51.95118 | Y30: 51.27185 | Z30: 14.9175 | AA30: 15.82924 | AB30: 25.88941 | AC30: 24.89634 | AD30: 26.59530339 | AE30: 25.43023796 | AF30: Retten i Hillerød
A31: Retten i Helsingør | B31: 96.60724523 | C31: 95.73488114 | D31: 85.9110245 | E31: 81.20297998 | F31: 105.9668203 | G31: 112.4083829 | H31: 0.1578139783 | I31: 0.1449705115 | J31: 106 | K31: 112 | L31: 446.7733333 | M31: 559.9230769 | N31: 55.7016081 | O31: 68.93901858 | P31: 53.84615385 | Q31: 40 | R31: - | S31: 0 | T31: 13.1 | U31: 10.5 | V31: 17.9 | W31: 8.1 | X31: 47.84352 | Y31: 48.75499 | Z31: 14.47586 | AA31: 15.65373 | AB31: 25.18211 | AC31: 23.82526 | AD31: 25.17136882 | AE31: 24.29663369 | AF31: Retten i Helsingør
A32: Retten i Lyngby | B32: 96.82753324 | C32: 88.90590959 | D32: 86.51477605 | E32: 79.383929 | F32: 110.7851418 | G32: 101.3125505 | H32: 0.2167293196 | I32: 0.2029569311 | J32: 103 | K32: 105 | L32: 475.2258065 | M32: 385.046729 | N32: 39.57969813 | O32: 41.28764479 | P32: 72.72727273 | Q32: 60 | R32: 100 | S32: 33.33333333 | T32: 9.7 | U32: 8.8 | V32: 15.3 | W32: 16.5 | X32: 55.74239 | Y32: 55.26352 | Z32: 19.51242 | AA32: 18.80749 | AB32: 29.6227 | AC32: 29.49397 | AD32: 31.14209533 | AE32: 29.34078699 | AF32: Retten i Lyngby
A33: Retten i Glostrup | B33: 98.98202225 | C33: 104.7182355 | D33: 100.008897 | E33: 103.6593422 | F33: 99.29484206 | G33: 101.7834329 | H33: 0.2005362955 | I33: 0.1838177813 | J33: 146 | K33: 142 | L33: 614.8410405 | M33: 509.8187702 | N33: 75.69489089 | O33: 80.59972946 | P33: 43.75 | Q33: 32.89473684 | R33: 0 | S33: 0 | T33: 11.8 | U33: 7.5 | V33: 20.6 | W33: 17.3 | X33: 115.40872 | Y33: 106.84539 | Z33: 32.60759 | AA33: 30.84999 | AB33: 66.42532 | AC33: 63.61432 | AD33: 56.2588608 | AE33: 54.12637493 | AF33: Retten i Glostrup
A34: Retten på Frederiksberg | B34: 101.2561076 | C34: 103.1249909 | D34: 97.63529013 | E34: 96.62965753 | F34: 107.7453051 | G34: 112.175938 | H34: 0.2027823079 | I34: 0.1769760671 | J34: 180 | K34: 162 | L34: 551.3023256 | M34: 542.7112299 | N34: 86.15949623 | O34: 76.66579713 | P34: 8.695652174 | Q34: 26.47058824 | R34: 0 | S34: 40 | T34: 12 | U34: 10.9 | V34: 18.3 | W34: 15.6 | X34: 79.92535 | Y34: 80.89792 | Z34: 23.83584 | AA34: 25.78624 | AB34: 44.71399 | AC34: 43.13565 | AD34: 40.40890417 | AE34: 40.72638703 | AF34: Retten på Frederiksberg
A35: Københavns Byret | B35: 96.14494276 | C35: 94.63679124 | D35: 97.09472333 | E35: 93.86221962 | F35: 91.31934696 | G35: 91.19352344 | H35: 0.2065795179 | I35: 0.2060769464 | J35: 96 | K35: 104 | L35: 512.7992278 | M35: 529.8726592 | N35: 78.12335474 | O35: 73.15736591 | P35: 70 | Q35: 38.02816901 | R35: - | S35: 16.66666667 | T35: 8.1 | U35: 10.3 | V35: 9.6 | W35: 8.7 | X35: 190.18872 | Y35: 186.12346 | Z35: 58.73651 | AA35: 59.37777 | AB35: 113.64497 | AC35: 108.74881 | AD35: 102.9923745 | AE35: 101.9412044 | AF35: Københavns Byret
A36: Retten på Bornholm | B36: 63.43657445 | C36: 62.38123174 | D36: 64.7059556 | E36: 61.18431382 | F36: 66.6434586 | G36: 67.97281795 | H36: 0.3379421224 | I36: 0.3262324987 | J36: 46 | K36: 35 | L36: 291.3529412 | M36: 332.1111111 | N36: 27.57464366 | O36: 27.50285249 | P36: 94.73684211 | Q36: 78.94736842 | R36: 100 | S36: - | T36: 7.2 | U36: 8.7 | V36: 6.4 | W36: 19.4 | X36: 14.55013 | Y36: 14.58443 | Z36: 3.48785 | AA36: 3.77068 | AB36: 7.80507 | AC36: 7.52959 | AD36: 7.31 | AE36: 7.08154941 | AF36: Retten på Bornholm
B37: 0 | C37: 0 | D37: 0 | E37: 0 | F37: 0 | G37: 0 | H37: 0 | I37: 0 | J37: 0 | K37: 0 | L37: 0 | M37: 0 | N37: 0 | O37: 0 | P37: 0 | Q37: 0 | R37: 0 | S37: 0 | T37: 0 | U37: 0 | V37: 0 | W37: 0 | X37: 0 | Y37: 0 | Z37: 0 | AA37: 0 | AB37: 0 | AC37: 0 | AD37: 0 | AE37: 0
B41: Samlet produktivitet, retten | D41: Samlet produktivitet, jurister | F41: Samlet produktivitet, kontor | H41: ÅRVK ledelse og adm. | J41: Sagstider domsmandssager | L41: Sagstider hfh. alm. Civil | N41: Sagstid alm. fogedsag | P41: Målopfyldelse vold | R41: Målopfyldelse voldtægt | T41: Sygefravær | V41: Personaleomsætning | X41: Årsværk retten | Z41: Årsværk jurist | AB41: Årsværk kontor | AD41: Samlet lønsum
A42: Ret | B42: 2010 | C42: 2011 | D42: 2010 | E42: 2011 | F42: 2010 | G42: 2011 | H42: 2011 | J42: 2011 | L42: 2011 | N42: 2011 | P42: 2011 | R42: 2011 | T42: 2011 | V42: 2011 | X42: 2011 | Z42: 2011 | AB42: 2011 | AD42: 2011
A43: Retten i Hjørring | H43: 0.1808500373 | I43: =#REF!-H43 ->  | J43: 93 | K43: =J13-J43 -> 3 | L43: 588.737931 | M43: =L13-L43 -> 43.03663544 | N43: 59.02804965 | O43: =N13-N43 -> -9.165354958 | P43: 72.72727273 | Q43: =P13-P43 -> -8.727272727 | R43: 75 | S43: =R13-R43 -> 0 | T43: 9.195340336 | U43: =T13-T43 -> -3.495340336 | V43: 13.3 | W43: =V13-V43 -> -0.6 | X43: 59.79526 | Y43: =#REF!-X43 ->  | Z43: 13.34803 | AA43: =#REF!-Z43 ->  | AB43: 33.06976 | AC43: =#REF!-AB43 ->  | AD43: 25.84077727 | AE43: =AD13-AD43 -> -0.61000303
A44: Retten i Aalborg | H44: 0.1440885883 | I44: =#REF!-H44 ->  | J44: 89 | K44: =J14-J44 -> 17 | L44: 549.7346939 | M44: =L14-L44 -> 43.74103428 | N44: 81.29756381 | O44: =N14-N44 -> -39.74046105 | P44: 70 | Q44: =P14-P44 -> -36.10169492 | R44: 0 | S44: =R14-R44 -> 60 | T44: 7.44756948 | U44: =T14-T44 -> -2.34756948 | V44: 11.1 | W44: =V14-V44 -> 0.9 | X44: 80.50898 | Y44: =#REF!-X44 ->  | Z44: 22.18722 | AA44: =#REF!-Z44 ->  | AB44: 48.742 | AC44: =#REF!-AB44 ->  | AD44: 38.77436805 | AE44: =AD14-AD44 -> -2.45152642
A45: Retten i Randers | H45: 0.2242573374 | I45: =#REF!-H45 ->  | J45: 160 | K45: -9 | L45: 633.4363636 | M45: -10.64977827 | N45: 76.65538674 | O45: -28.92977782 | P45: 43.1372549 | Q45: -3.137254902 | R45: 0 | S45: 0 | T45: 7.923213529 | U45: -1.023213529 | V45: 6.1 | W45: 4.7 | X45: 58.17027 | Y45: =#REF!-X45 ->  | Z45: 16.642 | AA45: =#REF!-Z45 ->  | AB45: 31.602 | AC45: =#REF!-AB45 ->  | AD45: 28.27830635 | AE45: -1.53165671
A46: Retten i Århus | H46: 0.1740744916 | I46: =#REF!-H46 ->  | J46: 187 | K46: -47 | L46: 585.8815789 | M46: -91.01315789 | N46: 68.09649662 | O46: -11.14068647 | P46: 44.44444444 | Q46: -5.982905983 | R46: 0 | S46: 100 | T46: 10.94548768 | U46: -0.1454876758 | V46: 11.4 | W46: 0.2 | X46: 90.00205 | Y46: =#REF!-X46 ->  | Z46: 26.56876 | AA46: =#REF!-Z46 ->  | AB46: 50.61565 | AC46: =#REF!-AB46 ->  | AD46: 43.96941009 | AE46: -2.94827794
A47: Retten i Viborg | H47: 0.1869106164 | I47: =#REF!-H47 ->  | J47: 110 | K47: -2 | L47: 598.0942408 | M47: -63.38692376 | N47: 70.36160608 | O47: -23.00530404 | P47: 67.64705882 | Q47: 0.09487666034 | R47: 100 | S47: -100 | T47: 7.021671724 | U47: -2.321671724 | V47: 10.2 | W47: 6 | X47: 55.19659 | Y47: =#REF!-X47 ->  | Z47: 15.1701 | AA47: =#REF!-Z47 ->  | AB47: 30.18242 | AC47: =#REF!-AB47 ->  | AD47: 26.64360749 | AE47: -0.7602469
A48: Retten i Holstebro | H48: 0.2156894162 | I48: =#REF!-H48 ->  | J48: 99 | K48: -13 | L48: 517.1038961 | M48: -41.2006703 | N48: 33.32733875 | O48: -0.787113838 | P48: 44.06779661 | Q48: 28.65947612 | R48: 66.66666667 | S48: 33.33333333 | T48: 7.512563132 | U48: -2.512563132 | V48: 11.9 | W48: 4.3 | X48: 46.44103 | Y48: =#REF!-X48 ->  | Z48: 11.27 | AA48: =#REF!-Z48 ->  | AB48: 23.056 | AC48: =#REF!-AB48 ->  | AD48: 21.76629581 | AE48: -2.36292676
A49: Retten i Herning | H49: 0.2140891957 | I49: =#REF!-H49 ->  | J49: 93 | K49: 1 | L49: 504 | M49: -70.02912621 | N49: 46.15043463 | O49: 0.6911232819 | P49: 60.41666667 | Q49: -7.785087719 | R49: 0 | S49: 16.66666667 | T49: 12.53367166 | U49: -3.933671661 | V49: 17.4 | W49: -2.1 | X49: 42.52615 | Y49: =#REF!-X49 ->  | Z49: 11.84873 | AA49: =#REF!-Z49 ->  | AB49: 23.57106 | AC49: =#REF!-AB49 ->  | AD49: 21.11471095 | AE49: -1.08911328
A50: Retten i Horsens | H50: 0.1978894442 | I50: =#REF!-H50 ->  | J50: 75 | K50: 21 | L50: 454.2037037 | M50: -36.2037037 | N50: 53.19851049 | O50: -3.481080771 | P50: 54.23728814 | Q50: -7.178464606 | R50: 999 | S50: -999 | T50: 9.656788281 | U50: -4.356788281 | V50: 12.5 | W50: 0.8 | X50: 53.41053 | Y50: =#REF!-X50 ->  | Z50: 14.38903 | AA50: =#REF!-Z50 ->  | AB50: 26.41923 | AC50: =#REF!-AB50 ->  | AD50: 25.08928797 | AE50: -0.55702694
A51: Retten i Kolding | H51: 0.1649720064 | I51: =#REF!-H51 ->  | J51: 150 | K51: -45 | L51: 651.4146341 | M51: -141.3681225 | N51: 50.7865086 | O51: -4.47278311 | P51: 65.51724138 | Q51: -4.292751583 | R51: 999 | S51: -899 | T51: 8.675627926 | U51: 3.024372074 | V51: 6.1 | W51: 0.5 | X51: 76.6875 | Y51: =#REF!-X51 ->  | Z51: 20.54952 | AA51: =#REF!-Z51 ->  | AB51: 45.06554 | AC51: =#REF!-AB51 ->  | AD51: 36.12998449 | AE51: -0.91798315
A52: Retten i Esbjerg | H52: 0.160884098 | I52: =#REF!-H52 ->  | J52: 134 | K52: 9 | L52: 627.5329949 | M52: 3.96421178 | N52: 57.25041368 | O52: 1.664444668 | P52: 31.91489362 | Q52: -1.050696086 | R52: 20 | S52: -20 | T52: 9.830962196 | U52: 0.469037804 | V52: 12.2 | W52: 2.8 | X52: 56.23196 | Y52: =#REF!-X52 ->  | Z52: 15.1442 | AA52: =#REF!-Z52 ->  | AB52: 32.03157 | AC52: =#REF!-AB52 ->  | AD52: 27.40345038 | AE52: -1.11861611
A53: Retten i Sønderborg | H53: 0.2093655007 | I53: =#REF!-H53 ->  | J53: 146 | K53: -69 | L53: 670.3020134 | M53: -82.27732206 | N53: 66.74565217 | O53: -13.89463951 | P53: 51.25 | Q53: 24.42567568 | R53: 0 | S53: 100 | T53: 5.1 | U53: 1.9 | V53: 12.9 | W53: -2.7 | X53: 62.58565 | Y53: =#REF!-X53 ->  | Z53: 15.411 | AA53: =#REF!-Z53 ->  | AB53: 36.905 | AC53: =#REF!-AB53 ->  | AD53: 32.31378702 | AE53: -0.24273886
A54: Retten i Odense | H54: 0.1463671875 | I54: =#REF!-H54 ->  | J54: 86 | K54: 11 | L54: 428.4694836 | M54: 31.54709102 | N54: 66.62457364 | O54: -16.25708768 | P54: 60.46511628 | Q54: -9.354005168 | R54: 37.5 | S54: 2.5 | T54: 7.222463525 | U54: 0.4775364751 | V54: 20.8 | W54: -12.5 | X54: 89.18757 | Y54: =#REF!-X54 ->  | Z54: 24.26146 | AA54: =#REF!-Z54 ->  | AB54: 52.27552 | AC54: =#REF!-AB54 ->  | AD54: 42.19547545 | AE54: -3.38033042
A55: Retten i Svendborg | H55: 0.2310023534 | I55: =#REF!-H55 ->  | J55: 100 | K55: 5 | L55: 457.0487805 | M55: 22.2170423 | N55: 39.74894068 | O55: 7.514131217 | P55: 60.52631579 | Q55: -3.922542205 | R55: 0 | S55: 40 | T55: 7.534810135 | U55: 6.665189865 | V55: 13.5 | W55: 4.2 | X55: 46.62935 | Y55: =#REF!-X55 ->  | Z55: 12.16381 | AA55: =#REF!-Z55 ->  | AB55: 26.86367 | AC55: =#REF!-AB55 ->  | AD55: 21.33413431 | AE55: -1.62707476
A56: Retten i Nykøbing F. | H56: 0.2106800886 | I56: =#REF!-H56 ->  | J56: 89 | K56: 5 | L56: 511.1076923 | M56: -120.8854701 | N56: 58.32441823 | O56: -7.095693557 | P56: 75 | Q56: -31.16438356 | R56: 33.33333333 | S56: 66.66666667 | T56: 3.1 | U56: 0.7 | V56: 5.9 | W56: 9.9 | X56: 57.71872 | Y56: =#REF!-X56 ->  | Z56: 15.11914 | AA56: =#REF!-Z56 ->  | AB56: 36.06329 | AC56: =#REF!-AB56 ->  | AD56: 27.75952561 | AE56: -2.07715721
A57: Retten i Næstved | H57: 0.2009634119 | I57: =#REF!-H57 ->  | J57: 175 | K57: -43 | L57: 667.1578947 | M57: -142.4040486 | N57: 90.31952363 | O57: -30.87716122 | P57: 19.60784314 | Q57: 18.48739496 | R57: 42.85714286 | S57: 7.142857143 | T57: 9.143692893 | U57: -0.1436928928 | V57: 8.7 | W57: 11 | X57: 71.95559 | Y57: =#REF!-X57 ->  | Z57: 19.95737 | AA57: =#REF!-Z57 ->  | AB57: 40.2327 | AC57: =#REF!-AB57 ->  | AD57: 33.44395386 | AE57: -1.8131826
A58: Retten i Holbæk | H58: 0.2013305659 | I58: =#REF!-H58 ->  | J58: 129 | K58: -8 | L58: 492.7288136 | M58: -69.53833737 | N58: 79.91707956 | O58: -18.53683265 | P58: 45.90163934 | Q58: 20.76502732 | R58: 0 | S58: 66.66666667 | T58: 10.0927266 | U58: -2.792726598 | V58: 3.7 | W58: 10.4 | X58: 52.84805 | Y58: =#REF!-X58 ->  | Z58: 12.96697 | AA58: =#REF!-Z58 ->  | AB58: 31.22812 | AC58: =#REF!-AB58 ->  | AD58: 24.06054675 | AE58: -0.97442037
A59: Retten i Roskilde | H59: 0.1985138754 | I59: =#REF!-H59 ->  | J59: 161 | K59: -9 | L59: 580.0681818 | M59: 51.66937474 | N59: 78.76805332 | O59: -16.62570169 | P59: 57.69230769 | Q59: -19.23076923 | R59: 0 | T59: 8.041632025 | U59: -0.04163202497 | V59: 8.1 | W59: 11.8 | X59: 81.93291 | Y59: =#REF!-X59 ->  | Z59: 20.991 | AA59: =#REF!-Z59 ->  | AB59: 50.15184 | AC59: =#REF!-AB59 ->  | AD59: 40.35202857 | AE59: -1.77455174
A60: Retten i Hillerød | H60: 0.1966681251 | I60: =#REF!-H60 ->  | J60: 94 | K60: =J30-J60 -> -1 | L60: 535.2297297 | M60: -77.76070318 | N60: 69.77698997 | O60: -20.28169867 | P60: 67.56756757 | Q60: -11.31756757 | R60: 0 | S60: 50 | T60: 10.53646297 | U60: -1.33646297 | V60: 15.7 | W60: 4.4 | X60: 59.93847 | Y60: =#REF!-X60 ->  | Z60: 15.51429 | AA60: =#REF!-Z60 ->  | AB60: 31.81079 | AC60: =#REF!-AB60 ->  | AD60: 28.1485882 | AE60: -1.55328481
A61: Retten i Helsingør | H61: 0.1747076542 | I61: =#REF!-H61 ->  | J61: 91 | K61: 15 | L61: 625.1616766 | M61: -178.3883433 | N61: 80.56226998 | O61: -24.86066188 | P61: 65.71428571 | Q61: -11.86813187 | R61: 33.33333333 | T61: 8.100239201 | U61: 4.999760799 | V61: 11 | W61: 6.9 | X61: 59.49472 | Y61: =#REF!-X61 ->  | Z61: 16.67005 | AA61: =#REF!-Z61 ->  | AB61: 30.65085 | AC61: =#REF!-AB61 ->  | AD61: 27.2421141 | AE61: -2.07074528
A62: Retten i Lyngby | H62: 0.215369746 | I62: =#REF!-H62 ->  | J62: 97 | K62: 6 | L62: 681.4340426 | M62: -206.2082361 | N62: 48.64405845 | O62: -9.064360324 | P62: 92 | Q62: -19.27272727 | R62: 0 | S62: 100 | T62: 13.96319244 | U62: -4.263192438 | V62: 11.4 | W62: 3.9 | X62: 64.72881 | Y62: =#REF!-X62 ->  | Z62: 18.96953 | AA62: =#REF!-Z62 ->  | AB62: 37.24601 | AC62: =#REF!-AB62 ->  | AD62: 32.28066977 | AE62: -1.13857444
A63: Retten i Glostrup | H63: 0.1969059645 | I63: =#REF!-H63 ->  | J63: 204 | K63: -58 | L63: 771.7123746 | M63: -156.8713341 | N63: 86.84454431 | O63: -11.14965342 | P63: 31.86813187 | Q63: 11.88186813 | R63: 0 | S63: 0 | T63: 10.93379043 | U63: 0.8662095749 | V63: 11.7 | W63: 8.9 | X63: 130.88573 | Y63: =#REF!-X63 ->  | Z63: 35.62068 | AA63: =#REF!-Z63 ->  | AB63: 77.10199 | AC63: =#REF!-AB63 ->  | AD63: 61.81072972 | AE63: -5.55186892
A64: Retten på Frederiksberg | H64: 0.174762062 | I64: =#REF!-H64 ->  | J64: 165 | K64: 15 | L64: 581.0327869 | M64: -29.7304613 | N64: 111.6069617 | O64: -25.44746547 | P64: 13.79310345 | Q64: -5.097451274 | R64: 0 | S64: 0 | T64: 13.6 | U64: -1.6 | V64: 6.9 | W64: 11.4 | X64: 85.6221 | Y64: =#REF!-X64 ->  | Z64: 23.5809 | AA64: =#REF!-Z64 ->  | AB64: 50.499 | AC64: =#REF!-AB64 ->  | AD64: 41.59169201 | AE64: -1.18278784
A65: Københavns Byret | H65: 0.2193251818 | I65: =#REF!-H65 ->  | J65: 149 | K65: -53 | L65: 545 | M65: -32.2007722 | N65: 119.5509634 | O65: -41.42760866 | P65: 31.50684932 | Q65: 38.49315068 | R65: 12.5 | T65: 9.68431915 | U65: -1.58431915 | V65: 7 | W65: 2.6 | X65: 193.76867 | Y65: =#REF!-X65 ->  | Z65: 57.94189 | AA65: =#REF!-Z65 ->  | AB65: 116.4215 | AC65: =#REF!-AB65 ->  | AD65: 102.5840725 | AE65: 0.40830193
A66: Retten på Bornholm | H66: 0.3437150824 | I66: =#REF!-H66 ->  | J66: 37 | K66: 9 | L66: 359.8181818 | M66: -68.46524064 | N66: 39.08944028 | O66: -11.51479662 | P66: 100 | Q66: -5.263157895 | R66: 999 | S66: -899 | T66: 6.887992143 | U66: 0.3120078568 | V66: 6.4 | W66: 0 | X66: 15.32718 | Y66: =#REF!-X66 ->  | Z66: 3.68583 | AA66: =#REF!-Z66 ->  | AB66: 8.36564 | AC66: =#REF!-AB66 ->  | AD66: 7.34 | AE66: -0.03
B67: 0 | C67: 0 | D67: 0 | E67: 0 | F67: 0 | G67: 0 | H67: 0 | I67: 0 | J67: 0 | K67: 0 | L67: 0 | M67: 0 | N67: 0 | O67: 0 | P67: 0 | Q67: 0 | R67: 0 | S67: 0 | T67: 0 | U67: 0 | V67: 0 | W67: 0 | X67: 0 | Y67: 0 | Z67: 0 | AA67: 0 | AB67: 0 | AC67: 0 | AD67: 0 | AE67: 0
